Body Name,Body,Service Area Catergorisation,Service Division Catergorisation,Responsible Unit,Expenses Type,Detailed Expenses Type,Expenses Code,Date,Transaction Number,Amount,Capital / Revenue,Supplier Name,Supplier ID
North East Lincolnshire Council,http://statistics.data.gov.uk/id/local-authority/00FC,Environment Economy & Housing,Hps-Disabled Fac. Grants,Hps-Disabled Fac. Grants,Cap Grants To O/Side Sources,Cap Grants To O/Side Sources,YJ101,18/04/2012,106737,503.05,CAPITAL,MEARS LTD,102433
North East Lincolnshire Council,http://statistics.data.gov.uk/id/local-authority/00FC,Environment Economy & Housing,Hps-Disabled Fac. Grants,Hps-Disabled Fac. Grants,Cap Grants To O/Side Sources,Cap Grants To O/Side Sources,YJ101,11/04/2012,104506,589.99,CAPITAL,MEARS LTD,102433
North East Lincolnshire Council,http://statistics.data.gov.uk/id/local-authority/00FC,Environment Economy & Housing,Hps-Disabled Fac. Grants,Hps-Disabled Fac. Grants,Cap Grants To O/Side Sources,Cap Grants To O/Side Sources,YJ101,18/04/2012,106746,802.00,CAPITAL,DOLPHIN MOBILITY EAST MIDLANDS LTD,101317
North East Lincolnshire Council,http://statistics.data.gov.uk/id/local-authority/00FC,Environment Economy & Housing,Hps-Disabled Fac. Grants,Hps-Disabled Fac. Grants,Cap Grants To O/Side Sources,Cap Grants To O/Side Sources,YJ101,30/04/2012,109360,900.23,CAPITAL,F R TOWNSEND & CO LTD,104217
North East Lincolnshire Council,http://statistics.data.gov.uk/id/local-authority/00FC,Environment Economy & Housing,Hps-Disabled Fac. Grants,Hps-Disabled Fac. Grants,Cap Grants To O/Side Sources,Cap Grants To O/Side Sources,YJ101,25/04/2012,108475,912.49,CAPITAL,MEARS LTD,102433
North East Lincolnshire Council,http://statistics.data.gov.uk/id/local-authority/00FC,Environment Economy & Housing,Hps-Disabled Fac. Grants,Hps-Disabled Fac. Grants,Cap Grants To O/Side Sources,Cap Grants To O/Side Sources,YJ101,24/04/2012,108112,"1,075.68",CAPITAL,HUGH STEEPER LIMITED,101616
North East Lincolnshire Council,http://statistics.data.gov.uk/id/local-authority/00FC,Environment Economy & Housing,Hps-Disabled Fac. Grants,Hps-Disabled Fac. Grants,Cap Grants To O/Side Sources,Cap Grants To O/Side Sources,YJ101,30/04/2012,109363,"1,147.02",CAPITAL,F R TOWNSEND & CO LTD,104217
North East Lincolnshire Council,http://statistics.data.gov.uk/id/local-authority/00FC,Environment Economy & Housing,Hps-Disabled Fac. Grants,Hps-Disabled Fac. Grants,Cap Grants To O/Side Sources,Cap Grants To O/Side Sources,YJ101,05/04/2012,104521,"1,565.00",CAPITAL,DOLPHIN MOBILITY EAST MIDLANDS LTD,101317
North East Lincolnshire Council,http://statistics.data.gov.uk/id/local-authority/00FC,Environment Economy & Housing,Hps-Disabled Fac. Grants,Hps-Disabled Fac. Grants,Cap Grants To O/Side Sources,Cap Grants To O/Side Sources,YJ101,24/04/2012,108134,"1,695.00",CAPITAL,DOLPHIN MOBILITY EAST MIDLANDS LTD,101317
North East Lincolnshire Council,http://statistics.data.gov.uk/id/local-authority/00FC,Environment Economy & Housing,Hps-Disabled Fac. Grants,Hps-Disabled Fac. Grants,Cap Grants To O/Side Sources,Cap Grants To O/Side Sources,YJ101,25/04/2012,108522,"1,770.00",CAPITAL,E J PARMENTER,100924
North East Lincolnshire Council,http://statistics.data.gov.uk/id/local-authority/00FC,Environment Economy & Housing,Hps-Disabled Fac. Grants,Hps-Disabled Fac. Grants,Cap Grants To O/Side Sources,Cap Grants To O/Side Sources,YJ101,24/04/2012,108127,"1,781.00",CAPITAL,M D BUILDING,103356
North East Lincolnshire Council,http://statistics.data.gov.uk/id/local-authority/00FC,Environment Economy & Housing,Hps-Disabled Fac. Grants,Hps-Disabled Fac. Grants,Cap Grants To O/Side Sources,Cap Grants To O/Side Sources,YJ101,30/04/2012,109349,"2,242.00",CAPITAL,B P JOINERY,101296
North East Lincolnshire Council,http://statistics.data.gov.uk/id/local-authority/00FC,Environment Economy & Housing,Hps-Disabled Fac. Grants,Hps-Disabled Fac. Grants,Cap Grants To O/Side Sources,Cap Grants To O/Side Sources,YJ101,05/04/2012,104509,"2,466.00",CAPITAL,HANDICARE ACCESSIIBILITY LTD,102647
North East Lincolnshire Council,http://statistics.data.gov.uk/id/local-authority/00FC,Environment Economy & Housing,Hps-Disabled Fac. Grants,Hps-Disabled Fac. Grants,Cap Grants To O/Side Sources,Cap Grants To O/Side Sources,YJ101,30/04/2012,109347,"2,693.00",CAPITAL,B P JOINERY,101296
North East Lincolnshire Council,http://statistics.data.gov.uk/id/local-authority/00FC,Environment Economy & Housing,Hps-Disabled Fac. Grants,Hps-Disabled Fac. Grants,Cap Grants To O/Side Sources,Cap Grants To O/Side Sources,YJ101,18/04/2012,106742,"2,875.45",CAPITAL,MD BUILDING,103978
North East Lincolnshire Council,http://statistics.data.gov.uk/id/local-authority/00FC,Environment Economy & Housing,Hps-Disabled Fac. Grants,Hps-Disabled Fac. Grants,Cap Grants To O/Side Sources,Cap Grants To O/Side Sources,YJ101,24/04/2012,108129,"3,061.72",CAPITAL,VIC HANSEN BUILDING & JOINERY LTD,103981
North East Lincolnshire Council,http://statistics.data.gov.uk/id/local-authority/00FC,Environment Economy & Housing,Hps-Disabled Fac. Grants,Hps-Disabled Fac. Grants,Cap Grants To O/Side Sources,Cap Grants To O/Side Sources,YJ101,25/04/2012,108474,"3,731.00",CAPITAL,TOTAL HYGIENE LTD,100849
North East Lincolnshire Council,http://statistics.data.gov.uk/id/local-authority/00FC,Environment Economy & Housing,Hps-Disabled Fac. Grants,Hps-Disabled Fac. Grants,Cap Grants To O/Side Sources,Cap Grants To O/Side Sources,YJ101,24/04/2012,108130,"3,740.00",CAPITAL,BLAKES BUILDING SERVICES,101805
North East Lincolnshire Council,http://statistics.data.gov.uk/id/local-authority/00FC,Environment Economy & Housing,Hps-Disabled Fac. Grants,Hps-Disabled Fac. Grants,Cap Grants To O/Side Sources,Cap Grants To O/Side Sources,YJ101,05/04/2012,104520,"3,977.84",CAPITAL,MEARS LTD,102433
North East Lincolnshire Council,http://statistics.data.gov.uk/id/local-authority/00FC,Environment Economy & Housing,Hps-Disabled Fac. Grants,Hps-Disabled Fac. Grants,Cap Grants To O/Side Sources,Cap Grants To O/Side Sources,YJ101,24/04/2012,108146,"4,151.00",CAPITAL,VALAM BUILDERS LTD,100566
North East Lincolnshire Council,http://statistics.data.gov.uk/id/local-authority/00FC,Environment Economy & Housing,Hps-Disabled Fac. Grants,Hps-Disabled Fac. Grants,Cap Grants To O/Side Sources,Cap Grants To O/Side Sources,YJ101,05/04/2012,104504,"4,299.00",CAPITAL,THM CONSRUCTION,109687
North East Lincolnshire Council,http://statistics.data.gov.uk/id/local-authority/00FC,Environment Economy & Housing,Hps-Disabled Fac. Grants,Hps-Disabled Fac. Grants,Cap Grants To O/Side Sources,Cap Grants To O/Side Sources,YJ101,05/04/2012,104505,"4,485.00",CAPITAL,MD BUILDING,103978
North East Lincolnshire Council,http://statistics.data.gov.uk/id/local-authority/00FC,Environment Economy & Housing,Hps-Disabled Fac. Grants,Hps-Disabled Fac. Grants,Cap Grants To O/Side Sources,Cap Grants To O/Side Sources,YJ101,05/04/2012,104510,"4,813.00",CAPITAL,HANDICARE ACCESSIIBILITY LTD,102647
North East Lincolnshire Council,http://statistics.data.gov.uk/id/local-authority/00FC,Environment Economy & Housing,Hps-Disabled Fac. Grants,Hps-Disabled Fac. Grants,Cap Grants To O/Side Sources,Cap Grants To O/Side Sources,YJ101,24/04/2012,108110,"5,065.19",CAPITAL,JAMES BRATTON & CO LTD,100714
North East Lincolnshire Council,http://statistics.data.gov.uk/id/local-authority/00FC,Environment Economy & Housing,Hps-Disabled Fac. Grants,Hps-Disabled Fac. Grants,Cap Grants To O/Side Sources,Cap Grants To O/Side Sources,YJ101,18/04/2012,106737,"5,240.13",CAPITAL,MEARS LTD,102433
North East Lincolnshire Council,http://statistics.data.gov.uk/id/local-authority/00FC,Environment Economy & Housing,Hps-Disabled Fac. Grants,Hps-Disabled Fac. Grants,Cap Grants To O/Side Sources,Cap Grants To O/Side Sources,YJ101,24/04/2012,108151,"5,600.00",CAPITAL,MARK BENNETT,101838
North East Lincolnshire Council,http://statistics.data.gov.uk/id/local-authority/00FC,Environment Economy & Housing,Hps-Disabled Fac. Grants,Hps-Disabled Fac. Grants,Cap Grants To O/Side Sources,Cap Grants To O/Side Sources,YJ101,24/04/2012,108136,"6,050.00",CAPITAL,E J PARMENTER,100924
North East Lincolnshire Council,http://statistics.data.gov.uk/id/local-authority/00FC,Environment Economy & Housing,Hps-Disabled Fac. Grants,Hps-Disabled Fac. Grants,Cap Grants To O/Side Sources,Cap Grants To O/Side Sources,YJ101,11/04/2012,104506,"6,145.79",CAPITAL,MEARS LTD,102433
North East Lincolnshire Council,http://statistics.data.gov.uk/id/local-authority/00FC,Environment Economy & Housing,Hps-Disabled Fac. Grants,Hps-Disabled Fac. Grants,Cap Grants To O/Side Sources,Cap Grants To O/Side Sources,YJ101,25/04/2012,108475,"7,134.14",CAPITAL,MEARS LTD,102433
North East Lincolnshire Council,http://statistics.data.gov.uk/id/local-authority/00FC,Environment Economy & Housing,Hps-Disabled Fac. Grants,Hps-Disabled Fac. Grants,Cap Grants To O/Side Sources,Cap Grants To O/Side Sources,YJ101,24/04/2012,108154,"8,000.00",CAPITAL,E J PARMENTER,100924
North East Lincolnshire Council,http://statistics.data.gov.uk/id/local-authority/00FC,Environment Economy & Housing,Hps-Disabled Fac. Grants,Hps-Disabled Fac. Grants,Cap Grants To O/Side Sources,Cap Grants To O/Side Sources,YJ101,30/04/2012,109360,"8,230.38",CAPITAL,F R TOWNSEND & CO LTD,104217
North East Lincolnshire Council,http://statistics.data.gov.uk/id/local-authority/00FC,Environment Economy & Housing,Hps-Disabled Fac. Grants,Hps-Disabled Fac. Grants,Cap Grants To O/Side Sources,Cap Grants To O/Side Sources,YJ101,24/04/2012,108150,"8,387.00",CAPITAL,DOLPHIN MOBILITY EAST MIDLANDS LTD,101317
North East Lincolnshire Council,http://statistics.data.gov.uk/id/local-authority/00FC,Environment Economy & Housing,Hps-Disabled Fac. Grants,Hps-Disabled Fac. Grants,Cap Grants To O/Side Sources,Cap Grants To O/Side Sources,YJ101,18/04/2012,106759,"9,292.00",CAPITAL,E J PARMENTER,100924
North East Lincolnshire Council,http://statistics.data.gov.uk/id/local-authority/00FC,Environment Economy & Housing,Hps-Disabled Fac. Grants,Hps-Disabled Fac. Grants,Cap Grants To O/Side Sources,Cap Grants To O/Side Sources,YJ101,05/04/2012,104522,"12,150.00",CAPITAL,E J PARMENTER,100924
North East Lincolnshire Council,http://statistics.data.gov.uk/id/local-authority/00FC,Environment Economy & Housing,Integrated Transport,Integrated Transport,Cap Infrastr-Build Enh Wrk,Cap Infrastr-Build Enh Wrk,YC102,20/04/2012,107512,669.00,CAPITAL,NORTHERN POWERGRID (YORKSHIRE) PLC,108328
North East Lincolnshire Council,http://statistics.data.gov.uk/id/local-authority/00FC,Environment Economy & Housing,Integrated Transport,Integrated Transport,Cap Infrastr-Build Enh Wrk,Cap Infrastr-Build Enh Wrk,YC102,05/04/2012,104789,"1,003.50",CAPITAL,NORTHERN POWERGRID (YORKSHIRE) PLC,108328
North East Lincolnshire Council,http://statistics.data.gov.uk/id/local-authority/00FC,Environment Economy & Housing,Integrated Transport,Integrated Transport,Cap Infrastr-Purchase,Cap Infrastr-Purchase,YC101,20/04/2012,107518,"1,650.00",CAPITAL,SIGNPOST SOLUTIONS LTD,103474
North East Lincolnshire Council,http://statistics.data.gov.uk/id/local-authority/00FC,Environment Economy & Housing,Integrated Transport,Integrated Transport,Cap Infrastr-Purchase,Cap Infrastr-Purchase,YC101,03/04/2012,104127,"1,685.00",CAPITAL,BANAMAN,100513
North East Lincolnshire Council,http://statistics.data.gov.uk/id/local-authority/00FC,Environment Economy & Housing,Integrated Transport,Integrated Transport,Cap Infrastr-Build Enh Wrk,Cap Infrastr-Build Enh Wrk,YC102,19/04/2012,106970,"1,911.91",CAPITAL,SPECIALIST SURFACING LIMITED,100579
North East Lincolnshire Council,http://statistics.data.gov.uk/id/local-authority/00FC,Environment Economy & Housing,Integrated Transport,Integrated Transport,Cap Infrastr-Purchase,Cap Infrastr-Purchase,YC101,05/04/2012,104255,"2,070.00",CAPITAL,BANAMAN,100513
North East Lincolnshire Council,http://statistics.data.gov.uk/id/local-authority/00FC,Environment Economy & Housing,Integrated Transport,Integrated Transport,Cap Infrastr-Prof Fees,Cap Infrastr-Prof Fees,YC103,19/04/2012,106974,"2,210.00",CAPITAL,MASON CLARK ASSOCIATES,100793
North East Lincolnshire Council,http://statistics.data.gov.uk/id/local-authority/00FC,Environment Economy & Housing,Integrated Transport,Integrated Transport,Cap Infrastr-Purchase,Cap Infrastr-Purchase,YC101,02/04/2012,103913,"2,461.00",CAPITAL,NETWORK RAIL,103294
North East Lincolnshire Council,http://statistics.data.gov.uk/id/local-authority/00FC,Environment Economy & Housing,Integrated Transport,Integrated Transport,Cap Infrastr-Build Enh Wrk,Cap Infrastr-Build Enh Wrk,YC102,19/04/2012,106970,"2,741.91",CAPITAL,SPECIALIST SURFACING LIMITED,100579
North East Lincolnshire Council,http://statistics.data.gov.uk/id/local-authority/00FC,Environment Economy & Housing,Integrated Transport,Integrated Transport,Cap Infrastr-Build Enh Wrk,Cap Infrastr-Build Enh Wrk,YC102,17/04/2012,106039,"3,400.00",CAPITAL,D ROBERTS COUNTRYSIDE SERVICES,101043
North East Lincolnshire Council,http://statistics.data.gov.uk/id/local-authority/00FC,Environment Economy & Housing,Integrated Transport,Integrated Transport,Cap Infrastr-Purchase,Cap Infrastr-Purchase,YC101,20/04/2012,107515,"5,150.00",CAPITAL,HORIZON SIGNS LTD,103466
North East Lincolnshire Council,http://statistics.data.gov.uk/id/local-authority/00FC,Environment Economy & Housing,Integrated Transport,Integrated Transport,Cap Infrastr-Build Enh Wrk,Cap Infrastr-Build Enh Wrk,YC102,19/04/2012,106968,"6,440.00",CAPITAL,P H CONSTRUCTION SERVICES LTD,102107
North East Lincolnshire Council,http://statistics.data.gov.uk/id/local-authority/00FC,Environment Economy & Housing,Integrated Transport,Integrated Transport,Cap Infrastr-Build Enh Wrk,Cap Infrastr-Build Enh Wrk,YC102,17/04/2012,106344,"7,000.00",CAPITAL,P H CONSTRUCTION SERVICES LTD,102107
North East Lincolnshire Council,http://statistics.data.gov.uk/id/local-authority/00FC,Environment Economy & Housing,Integrated Transport,Integrated Transport,Cap Infrastr-Purchase,Cap Infrastr-Purchase,YC101,20/04/2012,107513,"9,504.00",CAPITAL,LOCK IT SAFE LTD,101779
North East Lincolnshire Council,http://statistics.data.gov.uk/id/local-authority/00FC,Environment Economy & Housing,Integrated Transport,Integrated Transport,Cap Infrastr-Build Enh Wrk,Cap Infrastr-Build Enh Wrk,YC102,19/04/2012,106966,"16,945.22",CAPITAL,P H CONSTRUCTION SERVICES LTD,102107
North East Lincolnshire Council,http://statistics.data.gov.uk/id/local-authority/00FC,Environment Economy & Housing,Integrated Transport,Integrated Transport,Cap Infrastr-Build Enh Wrk,Cap Infrastr-Build Enh Wrk,YC102,19/04/2012,106970,"39,507.66",CAPITAL,SPECIALIST SURFACING LIMITED,100579
North East Lincolnshire Council,http://statistics.data.gov.uk/id/local-authority/00FC,Environment Economy & Housing,Integrated Transport,Integrated Transport,Cap Infrastr-Build Enh Wrk,Cap Infrastr-Build Enh Wrk,YC102,19/04/2012,106968,"56,161.14",CAPITAL,P H CONSTRUCTION SERVICES LTD,102107
North East Lincolnshire Council,http://statistics.data.gov.uk/id/local-authority/00FC,Environment Economy & Housing,Integrated Transport,Integrated Transport,Cap Infrastr-Build Enh Wrk,Cap Infrastr-Build Enh Wrk,YC102,17/04/2012,106344,"78,500.00",CAPITAL,P H CONSTRUCTION SERVICES LTD,102107
North East Lincolnshire Council,http://statistics.data.gov.uk/id/local-authority/00FC,Environment Economy & Housing,Integrated Transport,Integrated Transport,Cap Infrastr-Build Enh Wrk,Cap Infrastr-Build Enh Wrk,YC102,17/04/2012,106337,"134,321.50",CAPITAL,SPECIALIST SURFACING LIMITED,100579
North East Lincolnshire Council,http://statistics.data.gov.uk/id/local-authority/00FC,Environment Economy & Housing,Freeman Street Regeneration,Freeman Street Regeneration,Cap Land/Build-Build Enh Wrk,Cap Land/Build-Build Enh Wrk,YA102,05/04/2012,104865,"21,119.00",CAPITAL,BALFOUR BEATTY,102595
North East Lincolnshire Council,http://statistics.data.gov.uk/id/local-authority/00FC,People And Communities,Aiming High For Disabled Child,Aiming High For Disabled Child,Cap Land/Build-Purchase,Cap Land/Build-Purchase,YA101,25/04/2012,108133,698.28,CAPITAL,ARGOS BUSINESS SOLUTIONS,101032
North East Lincolnshire Council,http://statistics.data.gov.uk/id/local-authority/00FC,People And Communities,Aiming High For Disabled Child,Aiming High For Disabled Child,Cap Land/Build-Purchase,Cap Land/Build-Purchase,YA101,25/04/2012,108229,"2,051.16",CAPITAL,ARGOS BUSINESS SOLUTIONS,101032
North East Lincolnshire Council,http://statistics.data.gov.uk/id/local-authority/00FC,People And Communities,Aiming High For Disabled Child,Aiming High For Disabled Child,Cap Veh Plt Eqp-Build Enh Wrk,Cap Veh Plt Eqp-Build Enh Wrk,YB102,24/04/2012,108145,"15,146.80",CAPITAL,E S RUDKIN LTD,100632
North East Lincolnshire Council,http://statistics.data.gov.uk/id/local-authority/00FC,Environment Economy & Housing,East Marsh Renewal,East Marsh Renewal,Cap Land/Build-Build Enh Wrk,Cap Land/Build-Build Enh Wrk,YA102,20/04/2012,107507,980.19,CAPITAL,NORTHERN POWERGRID (YORKSHIRE) PLC,108328
North East Lincolnshire Council,http://statistics.data.gov.uk/id/local-authority/00FC,Environment Economy & Housing,East Marsh Renewal,East Marsh Renewal,Cap Land/Build-Build Enh Wrk,Cap Land/Build-Build Enh Wrk,YA102,05/04/2012,104866,"34,100.00",CAPITAL,BALFOUR BEATTY,102595
North East Lincolnshire Council,http://statistics.data.gov.uk/id/local-authority/00FC,Environment Economy & Housing,East Marsh Renewal,East Marsh Renewal,Cap Land/Build-Build Enh Wrk,Cap Land/Build-Build Enh Wrk,YA102,19/04/2012,106311,"63,374.26",CAPITAL,THOMAS BOW LTD,102567
North East Lincolnshire Council,http://statistics.data.gov.uk/id/local-authority/00FC,People And Communities,Childrens Centres Initiative,Childrens Centres Initiative,Cap Invest Prop-Build Enh Wrk,Cap Invest Prop-Build Enh Wrk,YE102,23/04/2012,107889,537.06,CAPITAL,E S RUDKIN LTD,100632
North East Lincolnshire Council,http://statistics.data.gov.uk/id/local-authority/00FC,People And Communities,Devolved Formula Cap Grant,Devolved Formula Cap Grant,Cap Land/Build-Build Enh Wrk,Cap Land/Build-Build Enh Wrk,YA102,27/04/2012,108717,"11,572.00",CAPITAL,HAITH'S HEATING LTD,101342
North East Lincolnshire Council,http://statistics.data.gov.uk/id/local-authority/00FC,People And Communities,East Ravendale School,East Ravendale School,Cap Land/Build-Build Enh Wrk,Cap Land/Build-Build Enh Wrk,YA102,26/04/2012,108709,"1,780.00",CAPITAL,STANNAH LIFT SERVICES LTD,100622
North East Lincolnshire Council,http://statistics.data.gov.uk/id/local-authority/00FC,People And Communities,School'S Kitchens,School'S Kitchens,Cap Auc-Build Enh Wrk,Cap Auc-Build Enh Wrk,YF102,19/04/2012,107011,"5,864.00",CAPITAL,HAITH'S HEATING LTD,101342
North East Lincolnshire Council,http://statistics.data.gov.uk/id/local-authority/00FC,People And Communities,Schools - Capital Allocation,Schools - Capital Allocation,Cap Land/Build-Build Enh Wrk,Cap Land/Build-Build Enh Wrk,YA102,25/04/2012,108486,"1,760.00",CAPITAL,ORCHARD FIRE & SECURITY LTD,100650
North East Lincolnshire Council,http://statistics.data.gov.uk/id/local-authority/00FC,People And Communities,Schools - Capital Allocation,Schools - Capital Allocation,Cap Land/Build-Build Enh Wrk,Cap Land/Build-Build Enh Wrk,YA102,19/04/2012,106998,"1,964.00",CAPITAL,DENTON & NICKELS LTD,107629
North East Lincolnshire Council,http://statistics.data.gov.uk/id/local-authority/00FC,People And Communities,Schools - Capital Allocation,Schools - Capital Allocation,Cap Comm Asset-Build Enh Wrk,Cap Comm Asset-Build Enh Wrk,YD102,18/04/2012,106767,"2,066.30",CAPITAL,K BINKS (HTG) LTD,100854
North East Lincolnshire Council,http://statistics.data.gov.uk/id/local-authority/00FC,People And Communities,Schools - Capital Allocation,Schools - Capital Allocation,Cap Land/Build-Build Enh Wrk,Cap Land/Build-Build Enh Wrk,YA102,24/04/2012,108141,"13,044.47",CAPITAL,TUCKER AND TUNSTALLS LTD,107393
North East Lincolnshire Council,http://statistics.data.gov.uk/id/local-authority/00FC,People And Communities,Schools - Capital Allocation,Schools - Capital Allocation,Cap Land/Build-Build Enh Wrk,Cap Land/Build-Build Enh Wrk,YA102,24/04/2012,108147,"19,913.90",CAPITAL,ABM ROOFING CONTRACTORS,100505
North East Lincolnshire Council,http://statistics.data.gov.uk/id/local-authority/00FC,People And Communities,Schools - Capital Allocation,Schools - Capital Allocation,Cap Land/Build-Build Enh Wrk,Cap Land/Build-Build Enh Wrk,YA102,24/04/2012,108143,"27,879.65",CAPITAL,NRA ROOFING & FLOORING SERVICES,101810
North East Lincolnshire Council,http://statistics.data.gov.uk/id/local-authority/00FC,People And Communities,Schools - Basic Needs,Schools - Basic Needs,Cap Auc-Build Enh Wrk,Cap Auc-Build Enh Wrk,YF102,27/04/2012,109027,"68,287.43",CAPITAL,JAMES BRATTON & CO LTD,100714
North East Lincolnshire Council,http://statistics.data.gov.uk/id/local-authority/00FC,Environment Economy & Housing,Housing Assistance,Housing Assistance,Cap Grants To O/Side Sources,Cap Grants To O/Side Sources,YJ101,11/04/2012,104518,622.49,CAPITAL,MAYNE GAS HEATING LTD,101861
North East Lincolnshire Council,http://statistics.data.gov.uk/id/local-authority/00FC,Environment Economy & Housing,Housing Assistance,Housing Assistance,Cap Grants To O/Side Sources,Cap Grants To O/Side Sources,YJ101,05/04/2012,104524,"1,066.67",CAPITAL,BRIAN HOTSON & SONS,109688
North East Lincolnshire Council,http://statistics.data.gov.uk/id/local-authority/00FC,Environment Economy & Housing,Housing Assistance,Housing Assistance,Cap Grants To O/Side Sources,Cap Grants To O/Side Sources,YJ101,24/04/2012,108153,"1,475.00",CAPITAL,MAYNE GAS HEATING LTD,101861
North East Lincolnshire Council,http://statistics.data.gov.uk/id/local-authority/00FC,Environment Economy & Housing,Housing Assistance,Housing Assistance,Cap Grants To O/Side Sources,Cap Grants To O/Side Sources,YJ101,24/04/2012,108128,"1,500.00",CAPITAL,MAYNE GAS HEATING LTD,101861
North East Lincolnshire Council,http://statistics.data.gov.uk/id/local-authority/00FC,Environment Economy & Housing,Housing Assistance,Housing Assistance,Cap Grants To O/Side Sources,Cap Grants To O/Side Sources,YJ101,11/04/2012,104518,"2,315.34",CAPITAL,MAYNE GAS HEATING LTD,101861
North East Lincolnshire Council,http://statistics.data.gov.uk/id/local-authority/00FC,Environment Economy & Housing,Housing Assistance,Housing Assistance,Cap Grants To O/Side Sources,Cap Grants To O/Side Sources,YJ101,24/04/2012,108125,"2,613.00",CAPITAL,M J QUICKFALL,102499
North East Lincolnshire Council,http://statistics.data.gov.uk/id/local-authority/00FC,Environment Economy & Housing,Housing Assistance,Housing Assistance,Cap Grants To O/Side Sources,Cap Grants To O/Side Sources,YJ101,24/04/2012,108155,"2,800.00",CAPITAL,MAYNE GAS HEATING LTD,101861
North East Lincolnshire Council,http://statistics.data.gov.uk/id/local-authority/00FC,Environment Economy & Housing,Housing Assistance,Housing Assistance,Cap Grants To O/Side Sources,Cap Grants To O/Side Sources,YJ101,24/04/2012,108123,"3,912.28",CAPITAL,BC ELECTRIC LTD,108240
North East Lincolnshire Council,http://statistics.data.gov.uk/id/local-authority/00FC,Environment Economy & Housing,Housing Assistance,Housing Assistance,Cap Grants To O/Side Sources,Cap Grants To O/Side Sources,YJ101,11/04/2012,104518,"4,122.00",CAPITAL,MAYNE GAS HEATING LTD,101861
North East Lincolnshire Council,http://statistics.data.gov.uk/id/local-authority/00FC,Environment Economy & Housing,Housing Assistance,Housing Assistance,Cap Grants To O/Side Sources,Cap Grants To O/Side Sources,YJ101,05/04/2012,104524,"10,933.33",CAPITAL,BRIAN HOTSON & SONS,109688
North East Lincolnshire Council,http://statistics.data.gov.uk/id/local-authority/00FC,Environment Economy & Housing,Housing Assistance,Housing Assistance,Cap Grants To O/Side Sources,Cap Grants To O/Side Sources,YJ101,26/04/2012,108535,"16,850.00",CAPITAL,THE NATIONAL ENERGY ACTION CHARITY,109882
North East Lincolnshire Council,http://statistics.data.gov.uk/id/local-authority/00FC,People And Communities,Surplus Place Removal,Surplus Place Removal,Cap Land/Build-Build Enh Wrk,Cap Land/Build-Build Enh Wrk,YA102,26/04/2012,108714,740.00,CAPITAL,THE WATERCOOLER COMPANY LTD,109908
North East Lincolnshire Council,http://statistics.data.gov.uk/id/local-authority/00FC,People And Communities,Surplus Place Removal,Surplus Place Removal,Cap Land/Build-Build Enh Wrk,Cap Land/Build-Build Enh Wrk,YA102,26/04/2012,108524,"1,140.00",CAPITAL,AUTOTINTS,109837
North East Lincolnshire Council,http://statistics.data.gov.uk/id/local-authority/00FC,People And Communities,Surplus Place Removal,Surplus Place Removal,Cap Land/Build-Build Enh Wrk,Cap Land/Build-Build Enh Wrk,YA102,26/04/2012,108712,"1,156.00",CAPITAL,ARK JOINERY AND BUILDING MAINTENANCE LTD,101126
North East Lincolnshire Council,http://statistics.data.gov.uk/id/local-authority/00FC,People And Communities,Surplus Place Removal,Surplus Place Removal,Cap Land/Build-Build Enh Wrk,Cap Land/Build-Build Enh Wrk,YA102,26/04/2012,108754,"5,521.00",CAPITAL,HAITH'S HEATING LTD,101342
North East Lincolnshire Council,http://statistics.data.gov.uk/id/local-authority/00FC,People And Communities,Surplus Place Removal,Surplus Place Removal,Cap Auc-Build Enh Wrk,Cap Auc-Build Enh Wrk,YF102,19/04/2012,106318,"71,829.30",CAPITAL,G S KELSEY LIMITED,101154
North East Lincolnshire Council,http://statistics.data.gov.uk/id/local-authority/00FC,Environment Economy & Housing,Off Road Parking,Off Road Parking,Cap Infrastr-Build Enh Wrk,Cap Infrastr-Build Enh Wrk,YC102,19/04/2012,106965,"23,283.78",CAPITAL,SPECIALIST SURFACING LIMITED,100579
North East Lincolnshire Council,http://statistics.data.gov.uk/id/local-authority/00FC,Resources,Future Shape,Future Shape,Cap Intangible Assets,Cap Intangible Assets,YH101,11/04/2012,104836,765.00,CAPITAL,MIDLAND SOFTWARE LTD,102633
North East Lincolnshire Council,http://statistics.data.gov.uk/id/local-authority/00FC,Resources,Future Shape,Future Shape,Cap Intangible Assets,Cap Intangible Assets,YH101,05/04/2012,104833,927.65,CAPITAL,MIDLAND SOFTWARE LTD,102633
North East Lincolnshire Council,http://statistics.data.gov.uk/id/local-authority/00FC,Resources,Future Shape,Future Shape,Cap Intangible Assets,Cap Intangible Assets,YH101,05/04/2012,104835,"1,641.41",CAPITAL,MIDLAND SOFTWARE LTD,102633
North East Lincolnshire Council,http://statistics.data.gov.uk/id/local-authority/00FC,Resources,Future Shape,Future Shape,Cap Intangible Assets,Cap Intangible Assets,YH101,18/04/2012,106686,"1,700.00",CAPITAL,CEDAR OPEN ACCOUNTS,101614
North East Lincolnshire Council,http://statistics.data.gov.uk/id/local-authority/00FC,Resources,Future Shape,Future Shape,Cap Intangible Assets,Cap Intangible Assets,YH101,11/04/2012,104831,"2,545.65",CAPITAL,MIDLAND SOFTWARE LTD,102633
North East Lincolnshire Council,http://statistics.data.gov.uk/id/local-authority/00FC,Resources,Future Shape,Future Shape,Cap Intangible Assets,Cap Intangible Assets,YH101,11/04/2012,104832,"4,985.90",CAPITAL,MIDLAND SOFTWARE LTD,102633
North East Lincolnshire Council,http://statistics.data.gov.uk/id/local-authority/00FC,Resources,Future Shape,Future Shape,Cap Intangible Assets,Cap Intangible Assets,YH101,05/04/2012,104834,"15,533.44",CAPITAL,MIDLAND SOFTWARE LTD,102633
North East Lincolnshire Council,http://statistics.data.gov.uk/id/local-authority/00FC,Resources,Future Shape,Future Shape,Cap Intangible Assets,Cap Intangible Assets,YH101,05/04/2012,104541,"24,095.00",CAPITAL,MIDLAND SOFTWARE LTD,102633
North East Lincolnshire Council,http://statistics.data.gov.uk/id/local-authority/00FC,Resources,Future Shape,Future Shape,Cap Intangible Assets,Cap Intangible Assets,YH101,24/04/2012,107909,"24,096.00",CAPITAL,MIDLAND SOFTWARE LTD,102633
North East Lincolnshire Council,http://statistics.data.gov.uk/id/local-authority/00FC,People And Communities,Bradley Playing Fields,Bradley Playing Fields,Cap Auc-Purchase,Cap Auc-Purchase,YF101,24/04/2012,107931,"1,339.00",CAPITAL,AGRIPOWER LTD,102404
North East Lincolnshire Council,http://statistics.data.gov.uk/id/local-authority/00FC,Environment Economy & Housing,Highway Infrastructure Imp,Highway Infrastructure Imp,Cap Infrastr-Build Enh Wrk,Cap Infrastr-Build Enh Wrk,YC102,19/04/2012,106967,"2,136.88",CAPITAL,COLAS LTD,100605
North East Lincolnshire Council,http://statistics.data.gov.uk/id/local-authority/00FC,Environment Economy & Housing,Highway Infrastructure Imp,Highway Infrastructure Imp,Cap Infrastr-Build Enh Wrk,Cap Infrastr-Build Enh Wrk,YC102,20/04/2012,107273,"11,996.85",CAPITAL,CLARK CONSTRUCTION LIMITED,109614
North East Lincolnshire Council,http://statistics.data.gov.uk/id/local-authority/00FC,People And Communities,Cromwell Rd Resource Centre,Cromwell Rd Resource Centre,Cap Land/Build-Build Enh Wrk,Cap Land/Build-Build Enh Wrk,YA102,25/04/2012,108469,"16,431.50",CAPITAL,MPW DECORATORS LTD,104322
North East Lincolnshire Council,http://statistics.data.gov.uk/id/local-authority/00FC,Environment Economy & Housing,Legi,Legi,Cap Land/Build-Build Enh Wrk,Cap Land/Build-Build Enh Wrk,YA102,19/04/2012,107250,"110,039.09",CAPITAL,E-FACTOR ENTERPRISES (NEL) LTD,102010
North East Lincolnshire Council,http://statistics.data.gov.uk/id/local-authority/00FC,People And Communities,Creative Play Facilities,Creative Play Facilities,Cap Land/Build-Build Enh Wrk,Cap Land/Build-Build Enh Wrk,YA102,24/04/2012,108148,"6,536.78",CAPITAL,LAPPSET UK LTD,102466
North East Lincolnshire Council,http://statistics.data.gov.uk/id/local-authority/00FC,Environment Economy & Housing,Cctv Project,Cctv Project,Cap Veh Plt Eqp-Purchase,Cap Veh Plt Eqp-Purchase,YB101,05/04/2012,104867,"348,000.00",CAPITAL,BALFOUR BEATTY,102595
North East Lincolnshire Council,http://statistics.data.gov.uk/id/local-authority/00FC,Environment Economy & Housing,Catch 3 Feasibility,Catch 3 Feasibility,Cap Auc-Build Enh Wrk,Cap Auc-Build Enh Wrk,YF102,18/04/2012,106727,"314,208.67",CAPITAL,HOBSON & PORTER,101010
North East Lincolnshire Council,http://statistics.data.gov.uk/id/local-authority/00FC,Environment Economy & Housing,Cremator Replacement,Cremator Replacement,Cap Land/Build-Build Enh Wrk,Cap Land/Build-Build Enh Wrk,YA102,25/04/2012,108467,550.00,CAPITAL,PRODAR SURVEYS LTD,103159
North East Lincolnshire Council,http://statistics.data.gov.uk/id/local-authority/00FC,Environment Economy & Housing,Cremator Replacement,Cremator Replacement,Cap Land/Build-Build Enh Wrk,Cap Land/Build-Build Enh Wrk,YA102,26/04/2012,108716,"2,280.00",CAPITAL,A R TWIGG & SON LTD,109909
North East Lincolnshire Council,http://statistics.data.gov.uk/id/local-authority/00FC,Resources,Agile Working - Civic Pilot,Agile Working - Civic Pilot,Cap Comm Asset-Purchase,Cap Comm Asset-Purchase,YD101,30/04/2012,109047,"7,529.70",CAPITAL,HEWLETT-PACKARD LIMITED,102024
North East Lincolnshire Council,http://statistics.data.gov.uk/id/local-authority/00FC,Environment Economy & Housing,Frontier Isms Project,Frontier Isms Project,Cap Veh Plt Eqp-Purchase,Cap Veh Plt Eqp-Purchase,YB101,05/04/2012,104650,"1,785.70",CAPITAL,BADENOCH & CLARK,101427
North East Lincolnshire Council,http://statistics.data.gov.uk/id/local-authority/00FC,Environment Economy & Housing,Frontier Isms Project,Frontier Isms Project,Cap Veh Plt Eqp-Purchase,Cap Veh Plt Eqp-Purchase,YB101,18/04/2012,106665,"1,785.70",CAPITAL,BADENOCH & CLARK,101427
North East Lincolnshire Council,http://statistics.data.gov.uk/id/local-authority/00FC,Environment Economy & Housing,Frontier Isms Project,Frontier Isms Project,Cap Veh Plt Eqp-Purchase,Cap Veh Plt Eqp-Purchase,YB101,18/04/2012,106666,"1,785.70",CAPITAL,BADENOCH & CLARK,101427
North East Lincolnshire Council,http://statistics.data.gov.uk/id/local-authority/00FC,Environment Economy & Housing,Frontier Isms Project,Frontier Isms Project,Cap Veh Plt Eqp-Purchase,Cap Veh Plt Eqp-Purchase,YB101,27/04/2012,109071,"1,785.70",CAPITAL,BADENOCH & CLARK,101427
North East Lincolnshire Council,http://statistics.data.gov.uk/id/local-authority/00FC,Environment Economy & Housing,Queen Street Upgrade,Queen Street Upgrade,Cap Land/Build-Build Enh Wrk,Cap Land/Build-Build Enh Wrk,YA102,23/04/2012,107913,"92,153.70",CAPITAL,ISG REGIONS LTD,108070
North East Lincolnshire Council,http://statistics.data.gov.uk/id/local-authority/00FC,Environment Economy & Housing,Property Rationalisation,Property Rationalisation,Cap Land/Build-Build Enh Wrk,Cap Land/Build-Build Enh Wrk,YA102,24/04/2012,108101,"1,173.00",CAPITAL,MANTA SHOPFITTERS LTD,102230
North East Lincolnshire Council,http://statistics.data.gov.uk/id/local-authority/00FC,Environment Economy & Housing,Queen St Upgrade,Queen St Upgrade,Cap Veh Plt Eqp-Purchase,Cap Veh Plt Eqp-Purchase,YB101,19/04/2012,107019,"18,677.80",CAPITAL,WYBONE LIMITED,100571
North East Lincolnshire Council,http://statistics.data.gov.uk/id/local-authority/00FC,Chief Executive,Chief Executive,Recharges To Corp Management,Government Departments,Third Party Prov - Govt Depts,PE101,02/04/2012,103900,"-1,755.00",REVENUE,AUDIT COMMISSION,100510
North East Lincolnshire Council,http://statistics.data.gov.uk/id/local-authority/00FC,Chief Executive,Chief Executive,Chief Exec & Support,Contributions To Provisions,Contributions - Third Sector,LK102,13/04/2012,105778,Redacted Commercially Sensitive,REVENUE,BELVOIR PARK RESIDENTS ASSOCIATION,109229
North East Lincolnshire Council,http://statistics.data.gov.uk/id/local-authority/00FC,Chief Executive,Chief Executive,Chief Exec & Support,Contributions To Provisions,Contributions - Third Sector,LK102,05/04/2012,104613,Redacted Commercially Sensitive,REVENUE,SEAVIEW TRAIN,109694
North East Lincolnshire Council,http://statistics.data.gov.uk/id/local-authority/00FC,Chief Executive,Chief Executive,Recharges To Corp Management,Government Departments,Third Party Prov - Govt Depts,PE101,02/04/2012,103900,"21,945.00",REVENUE,AUDIT COMMISSION,100510
North East Lincolnshire Council,http://statistics.data.gov.uk/id/local-authority/00FC,Other Corporate Budgets,Other Corporate Budgets,Future Shape,Private Contractors,Third Party Prov - Private,PH101,05/04/2012,104864,"37,500.00",REVENUE,KINGSTON UPON HULL CITY COUNCIL,100541
North East Lincolnshire Council,http://statistics.data.gov.uk/id/local-authority/00FC,People And Communities,Childrens Hlth & Family Supp,Integrated Youth Services,Government Grants,Grants,VA101,24/04/2012,108165,-414.99,REVENUE,STUDIOSPARES LTD,109634
North East Lincolnshire Council,http://statistics.data.gov.uk/id/local-authority/00FC,People And Communities,Childrens Hlth & Family Supp,Childrens Centre Development,Catering,Provisions,LB101,20/04/2012,107472,-413.01,REVENUE,PHS GROUP LTD,100554
North East Lincolnshire Council,http://statistics.data.gov.uk/id/local-authority/00FC,People And Communities,Childrens Hlth & Family Supp,Integ Local Service Delivery,Direct Employee Expenses,Agency Staff,EA105,17/04/2012,106247,-360.17,REVENUE,MATRIX SCM LTD,108117
North East Lincolnshire Council,http://statistics.data.gov.uk/id/local-authority/00FC,People And Communities,Childrens Hlth & Family Supp,Childrens Centre Development,Catering,Provisions,LB101,20/04/2012,107471,-266.81,REVENUE,PHS GROUP LTD,100554
North East Lincolnshire Council,http://statistics.data.gov.uk/id/local-authority/00FC,People And Communities,Childrens Hlth & Family Supp,Childrens Centre Development,Other Agencies,Child Care Payments,PJ104,23/04/2012,107912,507.57,REVENUE,FOR UNDER FIVES (QUEENSWAY),102496
North East Lincolnshire Council,http://statistics.data.gov.uk/id/local-authority/00FC,People And Communities,Childrens Hlth & Family Supp,Childrens Health Provision,Communications And Computing,Postage,LF111,23/04/2012,107883,540.00,REVENUE,LYRECO UK LIMITED,101120
North East Lincolnshire Council,http://statistics.data.gov.uk/id/local-authority/00FC,People And Communities,Childrens Hlth & Family Supp,Childrens Health Provision,Direct Employee Expenses,Agency Staff,EA105,25/04/2012,108156,546.01,REVENUE,MATRIX SCM LTD,108117
North East Lincolnshire Council,http://statistics.data.gov.uk/id/local-authority/00FC,People And Communities,Childrens Hlth & Family Supp,Childrens Health Provision,Communications And Computing,Telephones,LF112,23/04/2012,107785,553.90,REVENUE,ETS COMMUNICATION LTD,105452
North East Lincolnshire Council,http://statistics.data.gov.uk/id/local-authority/00FC,People And Communities,Childrens Hlth & Family Supp,Childrens Health Provision,Communications And Computing,Telephones,LF112,23/04/2012,107786,555.73,REVENUE,ETS COMMUNICATION LTD,105452
North East Lincolnshire Council,http://statistics.data.gov.uk/id/local-authority/00FC,People And Communities,Childrens Hlth & Family Supp,Childrens Health Provision,Equip / Furniture / Materials,Equipment - Purchase,LA101,02/04/2012,103902,575.00,REVENUE,LYRECO UK LIMITED,101120
North East Lincolnshire Council,http://statistics.data.gov.uk/id/local-authority/00FC,People And Communities,Childrens Hlth & Family Supp,Integrated Youth Services,Miscellaneous Expenses,Activities - Service Users,LL114,17/04/2012,106022,Redacted Commercially Sensitive,REVENUE,ST JOHN AMBULANCE,100764
North East Lincolnshire Council,http://statistics.data.gov.uk/id/local-authority/00FC,People And Communities,Childrens Hlth & Family Supp,Integ Local Service Delivery,Other Agencies,Nursery Educ Fund - Standard,PJ139,26/04/2012,108648,597.60,REVENUE,Redacted Personal Information,Redacted Personal Information
North East Lincolnshire Council,http://statistics.data.gov.uk/id/local-authority/00FC,People And Communities,Childrens Hlth & Family Supp,Integ Local Service Delivery,Other Agencies,Nursery Educ Fund - Standard,PJ139,26/04/2012,108645,597.60,REVENUE,Redacted Personal Information,Redacted Personal Information
North East Lincolnshire Council,http://statistics.data.gov.uk/id/local-authority/00FC,People And Communities,Childrens Hlth & Family Supp,Integ Local Service Delivery,Other Agencies,Nursery Educ Fund - Standard,PJ139,26/04/2012,108640,597.60,REVENUE,Redacted Personal Information,Redacted Personal Information
North East Lincolnshire Council,http://statistics.data.gov.uk/id/local-authority/00FC,People And Communities,Childrens Hlth & Family Supp,Childrens Centre Development,Direct Employee Expenses,Agency Staff,EA105,17/04/2012,106247,606.39,REVENUE,MATRIX SCM LTD,108117
North East Lincolnshire Council,http://statistics.data.gov.uk/id/local-authority/00FC,People And Communities,Childrens Hlth & Family Supp,Childrens Centre Development,Rep Alterations Maint Building,Buildings - Repairs And Maint,GA102,30/04/2012,109394,613.68,REVENUE,EXPERT RADIOLINK SECURITY,101603
North East Lincolnshire Council,http://statistics.data.gov.uk/id/local-authority/00FC,People And Communities,Childrens Hlth & Family Supp,Integ Local Service Delivery,Other Agencies,Nursery Educ Fund - Standard,PJ139,26/04/2012,108653,615.60,REVENUE,Redacted Personal Information,Redacted
North East Lincolnshire Council,http://statistics.data.gov.uk/id/local-authority/00FC,People And Communities,Childrens Hlth & Family Supp,Childrens Centre Development,Rep Alterations Maint Building,Buildings - Repairs And Maint,GA102,18/04/2012,106513,634.80,REVENUE,JOHN DASS,100526
North East Lincolnshire Council,http://statistics.data.gov.uk/id/local-authority/00FC,People And Communities,Childrens Hlth & Family Supp,Childrens Centre Development,Direct Employee Expenses,Agency Staff,EA105,17/04/2012,106197,664.34,REVENUE,MATRIX SCM LTD,108117
North East Lincolnshire Council,http://statistics.data.gov.uk/id/local-authority/00FC,People And Communities,Childrens Hlth & Family Supp,Childrens Centre Development,Direct Employee Expenses,Agency Staff,EA105,17/04/2012,106197,674.27,REVENUE,MATRIX SCM LTD,108117
North East Lincolnshire Council,http://statistics.data.gov.uk/id/local-authority/00FC,People And Communities,Childrens Hlth & Family Supp,Childrens Health Provision,Equip / Furniture / Materials,Equipment - Purchase,LA101,23/04/2012,107834,699.98,REVENUE,WILLIAMS MEDICAL SUPPLIES,106409
North East Lincolnshire Council,http://statistics.data.gov.uk/id/local-authority/00FC,People And Communities,Childrens Hlth & Family Supp,Childrens Centre Development,Direct Employee Expenses,Agency Staff,EA105,05/04/2012,104868,701.91,REVENUE,MATRIX SCM LTD,108117
North East Lincolnshire Council,http://statistics.data.gov.uk/id/local-authority/00FC,People And Communities,Childrens Hlth & Family Supp,Childrens Centre Development,Direct Employee Expenses,Agency Staff,EA105,17/04/2012,106102,701.91,REVENUE,MATRIX SCM LTD,108117
North East Lincolnshire Council,http://statistics.data.gov.uk/id/local-authority/00FC,People And Communities,Childrens Hlth & Family Supp,Childrens Centre Development,Direct Employee Expenses,Agency Staff,EA105,05/04/2012,104655,701.91,REVENUE,MATRIX SCM LTD,108117
North East Lincolnshire Council,http://statistics.data.gov.uk/id/local-authority/00FC,People And Communities,Childrens Hlth & Family Supp,Childrens Health Provision,Rents,Rent,GC101,02/04/2012,103802,715.00,REVENUE,GRIMSBY CENTRAL HALL TRUST,100882
North East Lincolnshire Council,http://statistics.data.gov.uk/id/local-authority/00FC,People And Communities,Childrens Hlth & Family Supp,Childrens Centre Development,Other Agencies,Child Care Payments,PJ104,24/04/2012,107928,721.71,REVENUE,LISLE MARSDEN C OF E PRIMARY ACADEMY,107922
North East Lincolnshire Council,http://statistics.data.gov.uk/id/local-authority/00FC,People And Communities,Childrens Hlth & Family Supp,Integ Local Service Delivery,Communications And Computing,Postage,LF111,23/04/2012,107772,750.00,REVENUE,ROYAL MAIL GROUP PLC,101082
North East Lincolnshire Council,http://statistics.data.gov.uk/id/local-authority/00FC,People And Communities,Childrens Hlth & Family Supp,Childrens Centre Development,Catering,Provisions,LB101,23/04/2012,107730,787.30,REVENUE,PHS GROUP LTD,100554
North East Lincolnshire Council,http://statistics.data.gov.uk/id/local-authority/00FC,People And Communities,Childrens Hlth & Family Supp,Integrated Youth Services,Direct Transport Costs,Hired Transport - Service User,JA102,25/04/2012,108480,Redacted Commercially Sensitive,REVENUE,COXONS CARS LIMITED,100578
North East Lincolnshire Council,http://statistics.data.gov.uk/id/local-authority/00FC,People And Communities,Childrens Hlth & Family Supp,Integrated Youth Services,Grants And Subscriptions,Subscriptions,LJ101,17/04/2012,106018,850.00,REVENUE,NATIONAL CONNEXIONS NETWORK LTD,109778
North East Lincolnshire Council,http://statistics.data.gov.uk/id/local-authority/00FC,People And Communities,Childrens Hlth & Family Supp,Childrens Centre Development,Rep Alterations Maint Building,Buildings - Repairs And Maint,GA102,18/04/2012,106523,857.63,REVENUE,EXCELL ELECTRICAL CONTRACTORS,100601
North East Lincolnshire Council,http://statistics.data.gov.uk/id/local-authority/00FC,People And Communities,Childrens Hlth & Family Supp,Integ Local Service Delivery,Cleaning And Domestic Supplies,Cleaning - Services,GH102,23/04/2012,107773,860.00,REVENUE,FUTURE CLEANING SERVICES LTD,102557
North East Lincolnshire Council,http://statistics.data.gov.uk/id/local-authority/00FC,People And Communities,Childrens Hlth & Family Supp,Childrens Centre Development,Direct Employee Expenses,Agency Staff,EA105,17/04/2012,106197,876.70,REVENUE,MATRIX SCM LTD,108117
North East Lincolnshire Council,http://statistics.data.gov.uk/id/local-authority/00FC,People And Communities,Childrens Hlth & Family Supp,Childrens Health Provision,Miscellaneous Expenses,Other Supplies & Services,LL110,23/04/2012,107851,899.54,REVENUE,MACMILLAN DISTRIBUTION LTD,100548
North East Lincolnshire Council,http://statistics.data.gov.uk/id/local-authority/00FC,People And Communities,Childrens Hlth & Family Supp,Childrens Centre Development,Energy Costs,Electricity,GB102,23/04/2012,107598,"1,019.09",REVENUE,NPOWER LIMITED,101414
North East Lincolnshire Council,http://statistics.data.gov.uk/id/local-authority/00FC,People And Communities,Childrens Hlth & Family Supp,Childrens Centre Development,Cleaning And Domestic Supplies,Cleaning - Services,GH102,23/04/2012,107738,"1,021.09",REVENUE,FUTURE CLEANING SERVICES LTD,102557
North East Lincolnshire Council,http://statistics.data.gov.uk/id/local-authority/00FC,People And Communities,Childrens Hlth & Family Supp,Childrens Health Provision,Equip / Furniture / Materials,Furniture - Purchase,LA105,24/04/2012,108091,"1,039.87",REVENUE,LYRECO UK LIMITED,101120
North East Lincolnshire Council,http://statistics.data.gov.uk/id/local-authority/00FC,People And Communities,Childrens Hlth & Family Supp,Childrens Health Provision,Communications And Computing,Postage,LF111,23/04/2012,107744,"1,080.00",REVENUE,LYRECO UK LIMITED,101120
North East Lincolnshire Council,http://statistics.data.gov.uk/id/local-authority/00FC,People And Communities,Childrens Hlth & Family Supp,Integrated Youth Services,Equip / Furniture / Materials,Equipment - Purchase,LA101,18/04/2012,106693,Redacted Commercially Sensitive,REVENUE,THE SAVILLE GROUP LTD,100560
North East Lincolnshire Council,http://statistics.data.gov.uk/id/local-authority/00FC,People And Communities,Childrens Hlth & Family Supp,Childrens Health Provision,Rates,Rates,GD101,30/04/2012,109294,"1,102.50",REVENUE,NORTH EAST LINCOLNSHIRE COUNCIL,100894
North East Lincolnshire Council,http://statistics.data.gov.uk/id/local-authority/00FC,People And Communities,Childrens Hlth & Family Supp,Integrated Youth Services,Other Agencies,Clothing,PJ106,19/04/2012,106960,"1,127.90",REVENUE,SILK GROUP,101567
North East Lincolnshire Council,http://statistics.data.gov.uk/id/local-authority/00FC,People And Communities,Childrens Hlth & Family Supp,Childrens Centre Development,Energy Costs,Gas,GB101,23/04/2012,107780,"1,188.53",REVENUE,BRITISH GAS TRADING LTD,101507
North East Lincolnshire Council,http://statistics.data.gov.uk/id/local-authority/00FC,People And Communities,Childrens Hlth & Family Supp,Childrens Centre Development,Other Agencies,Child Care Payments,PJ104,23/04/2012,107879,"1,194.05",REVENUE,LISLE MARSDEN C OF E PRIMARY ACADEMY,107922
North East Lincolnshire Council,http://statistics.data.gov.uk/id/local-authority/00FC,People And Communities,Childrens Hlth & Family Supp,Childrens Centre Development,Other Agencies,Child Care Payments,PJ104,24/04/2012,107929,"1,292.25",REVENUE,LISLE MARSDEN CHILDCARE LTD,108116
North East Lincolnshire Council,http://statistics.data.gov.uk/id/local-authority/00FC,People And Communities,Childrens Hlth & Family Supp,Integ Local Service Delivery,Private Contractors,Third Party Prov - Private,PH101,05/04/2012,104813,"25,000.00",REVENUE,BARNARDO SERVICES LTD,100782
North East Lincolnshire Council,http://statistics.data.gov.uk/id/local-authority/00FC,People And Communities,Childrens Hlth & Family Supp,Integrated Youth Services,Communications And Computing,Computer S/Ware - Licences,LF103,17/04/2012,106177,Redacted Commercially Sensitive,REVENUE,CASMACO LTD,109787
North East Lincolnshire Council,http://statistics.data.gov.uk/id/local-authority/00FC,People And Communities,Childrens Hlth & Family Supp,Integ Local Service Delivery,Other Agencies,Nursery Educ Fund - Standard,PJ139,26/04/2012,108650,"1,385.10",REVENUE,FOR UNDER FIVES LTD,100647
North East Lincolnshire Council,http://statistics.data.gov.uk/id/local-authority/00FC,People And Communities,Childrens Hlth & Family Supp,Integrated Youth Services,Miscellaneous Expenses,Legal Fees - General,LL103,05/04/2012,104695,Redacted Commercially Sensitive,REVENUE,WILKIN CHAPMAN SOLICITORS,100948
North East Lincolnshire Council,http://statistics.data.gov.uk/id/local-authority/00FC,People And Communities,Childrens Hlth & Family Supp,Integrated Youth Services,Communications And Computing,Computer S/Ware - Maintenance,LF102,27/04/2012,108940,Redacted Commercially Sensitive,REVENUE,NTA MONITOR LTD,103458
North East Lincolnshire Council,http://statistics.data.gov.uk/id/local-authority/00FC,People And Communities,Childrens Hlth & Family Supp,Integrated Youth Services,Communications And Computing,Computer S/Ware - Maintenance,LF102,27/04/2012,108941,Redacted Commercially Sensitive,REVENUE,NTA MONITOR LTD,103458
North East Lincolnshire Council,http://statistics.data.gov.uk/id/local-authority/00FC,People And Communities,Childrens Hlth & Family Supp,Childrens Centre Development,Energy Costs,Electricity,GB102,05/04/2012,104052,"1,600.47",REVENUE,NPOWER LIMITED,101414
North East Lincolnshire Council,http://statistics.data.gov.uk/id/local-authority/00FC,People And Communities,Childrens Hlth & Family Supp,Childrens Health Provision,Contributions To Provisions,Contributions - Other,LK103,05/04/2012,104338,"1,785.43",REVENUE,NORTH EAST LINCOLNSHIRE CARE TRUST PLUS LD,100340
North East Lincolnshire Council,http://statistics.data.gov.uk/id/local-authority/00FC,People And Communities,Childrens Hlth & Family Supp,Integrated Youth Services,Miscellaneous Expenses,Legal Fees - General,LL103,05/04/2012,74041,Redacted Commercially Sensitive,REVENUE,LEANNE GROVES,109712
North East Lincolnshire Council,http://statistics.data.gov.uk/id/local-authority/00FC,People And Communities,Childrens Hlth & Family Supp,Childrens Centre Development,Rep Alterations Maint Building,Internal Decoration,GA119,26/04/2012,108710,"2,000.00",REVENUE,NEWBY LEISURE LTD,101227
North East Lincolnshire Council,http://statistics.data.gov.uk/id/local-authority/00FC,People And Communities,Childrens Hlth & Family Supp,Integ Local Service Delivery,Other Agencies,Nursery Educ Fund - Standard,PJ139,26/04/2012,108680,"2,091.60",REVENUE,FOR UNDER FIVES LTD,100647
North East Lincolnshire Council,http://statistics.data.gov.uk/id/local-authority/00FC,People And Communities,Childrens Hlth & Family Supp,Childrens Centre Development,Direct Employee Expenses,Agency Staff,EA105,23/04/2012,107714,"2,150.00",REVENUE,FUTURE CLEANING SERVICES LTD,102557
North East Lincolnshire Council,http://statistics.data.gov.uk/id/local-authority/00FC,People And Communities,Childrens Hlth & Family Supp,Childrens Centre Development,Rep Alterations Maint Building,Buildings - Repairs And Maint,GA102,26/04/2012,108724,"2,250.00",REVENUE,HAITH'S HEATING LTD,101342
North East Lincolnshire Council,http://statistics.data.gov.uk/id/local-authority/00FC,People And Communities,Childrens Hlth & Family Supp,Integ Local Service Delivery,Other Agencies,Nursery Educ Fund - Standard,PJ139,26/04/2012,108655,"2,426.40",REVENUE,Redacted Personal Information,Redacted Personal Information
North East Lincolnshire Council,http://statistics.data.gov.uk/id/local-authority/00FC,People And Communities,Childrens Hlth & Family Supp,Integrated Youth Services,Miscellaneous Expenses,Activities - Service Users,LL114,17/04/2012,106120,"2,500.00",REVENUE,GRIMSBY TOWN FOOTBALL IN THE COMMUNITY,100978
North East Lincolnshire Council,http://statistics.data.gov.uk/id/local-authority/00FC,People And Communities,Childrens Hlth & Family Supp,Childrens Centre Development,Rates,Rates,GD101,11/04/2012,105163,"2,775.00",REVENUE,NORTH EAST LINCOLNSHIRE COUNCIL,109736
North East Lincolnshire Council,http://statistics.data.gov.uk/id/local-authority/00FC,People And Communities,Childrens Hlth & Family Supp,Integ Local Service Delivery,Other Agencies,Nursery Educ Fund - Standard,PJ139,26/04/2012,108657,"3,824.64",REVENUE,Redacted Personal Information,Redacted Personal Information
North East Lincolnshire Council,http://statistics.data.gov.uk/id/local-authority/00FC,People And Communities,Childrens Hlth & Family Supp,Integ Local Service Delivery,Other Agencies,Nursery Educ Fund - Standard,PJ139,26/04/2012,108668,"4,003.92",REVENUE,HUMBERSTON VILLAGE NURSERY,102006
North East Lincolnshire Council,http://statistics.data.gov.uk/id/local-authority/00FC,People And Communities,Childrens Hlth & Family Supp,Childrens Centre Development,Rates,Rates,GD101,05/04/2012,104512,"4,140.32",REVENUE,NORTH EAST LINCOLNSHIRE COUNCIL,100894
North East Lincolnshire Council,http://statistics.data.gov.uk/id/local-authority/00FC,People And Communities,Childrens Hlth & Family Supp,Integ Local Service Delivery,Other Agencies,Nursery Educ Fund - Standard,PJ139,26/04/2012,108637,"4,183.20",REVENUE,LITTLE BLOSSOMS DAY NURSERY,101816
North East Lincolnshire Council,http://statistics.data.gov.uk/id/local-authority/00FC,People And Communities,Childrens Hlth & Family Supp,Childrens Health Provision,Miscellaneous Expenses,Other Supplies & Services,LL110,23/04/2012,107853,"4,385.00",REVENUE,NORTHERN LINCOLNSHIRE & GOOLE HOSPITALS,101242
North East Lincolnshire Council,http://statistics.data.gov.uk/id/local-authority/00FC,People And Communities,Childrens Hlth & Family Supp,Integ Local Service Delivery,Other Agencies,Nursery Educ Fund - Standard,PJ139,26/04/2012,108675,"4,840.56",REVENUE,EAST RAVENDALE PRE SCHOOL,100941
North East Lincolnshire Council,http://statistics.data.gov.uk/id/local-authority/00FC,People And Communities,Childrens Hlth & Family Supp,Integ Local Service Delivery,Private Contractors,Third Party Prov - Private,PH101,05/04/2012,104814,"25,000.00",REVENUE,BARNARDO SERVICES LTD,100782
North East Lincolnshire Council,http://statistics.data.gov.uk/id/local-authority/00FC,People And Communities,Childrens Hlth & Family Supp,Integrated Youth Services,Contributions To Provisions,Contributions - Other,LK103,17/04/2012,106166,Redacted Commercially Sensitive,REVENUE,MILLMAN COACHES,100700
North East Lincolnshire Council,http://statistics.data.gov.uk/id/local-authority/00FC,People And Communities,Childrens Hlth & Family Supp,Integrated Youth Services,Miscellaneous Expenses,Medical Supplies And Services,LL109,30/04/2012,109089,"6,000.00",REVENUE,PELHAM MEDICAL GROUP,104350
North East Lincolnshire Council,http://statistics.data.gov.uk/id/local-authority/00FC,People And Communities,Childrens Hlth & Family Supp,Integ Local Service Delivery,Other Agencies,Nursery Educ Fund - Standard,PJ139,26/04/2012,108673,"6,962.04",REVENUE,FOR UNDER FIVES LTD,100647
North East Lincolnshire Council,http://statistics.data.gov.uk/id/local-authority/00FC,People And Communities,Childrens Hlth & Family Supp,Integ Local Service Delivery,Other Agencies,Nursery Educ Fund - Standard,PJ139,26/04/2012,108639,"7,821.09",REVENUE,LITTLE LEGS DAYCARE,101753
North East Lincolnshire Council,http://statistics.data.gov.uk/id/local-authority/00FC,People And Communities,Childrens Hlth & Family Supp,Integ Local Service Delivery,Other Agencies,Nursery Educ Fund - Standard,PJ139,26/04/2012,108660,"8,067.60",REVENUE,WENDOVER PRE-SCHOOL,101350
North East Lincolnshire Council,http://statistics.data.gov.uk/id/local-authority/00FC,People And Communities,Childrens Hlth & Family Supp,Integ Local Service Delivery,Other Agencies,Nursery Educ Fund - Standard,PJ139,26/04/2012,108662,"8,495.28",REVENUE,THE AVENUE PLAYGROUP,103168
North East Lincolnshire Council,http://statistics.data.gov.uk/id/local-authority/00FC,People And Communities,Childrens Hlth & Family Supp,Integ Local Service Delivery,Other Agencies,Nursery Educ Fund - Standard,PJ139,26/04/2012,108674,"9,234.00",REVENUE,FIRST STEPS DAY NURSERY,105509
North East Lincolnshire Council,http://statistics.data.gov.uk/id/local-authority/00FC,People And Communities,Childrens Hlth & Family Supp,Integ Local Service Delivery,Other Agencies,Nursery Educ Fund - Standard,PJ139,26/04/2012,108635,"9,280.98",REVENUE,CHAPPILLS DAY NURSERY,100998
North East Lincolnshire Council,http://statistics.data.gov.uk/id/local-authority/00FC,People And Communities,Childrens Hlth & Family Supp,Integ Local Service Delivery,Other Agencies,Nursery Educ Fund - Standard,PJ139,26/04/2012,108652,"9,621.36",REVENUE,READY TEDDY GO,100973
North East Lincolnshire Council,http://statistics.data.gov.uk/id/local-authority/00FC,People And Communities,Childrens Hlth & Family Supp,Integ Local Service Delivery,Other Agencies,Nursery Educ Fund - Standard,PJ139,26/04/2012,108671,"10,249.74",REVENUE,HAVEN METHODIST PRE-SCHOOL,102286
North East Lincolnshire Council,http://statistics.data.gov.uk/id/local-authority/00FC,People And Communities,Childrens Hlth & Family Supp,Integ Local Service Delivery,Other Agencies,Nursery Educ Fund - Standard,PJ139,26/04/2012,108656,"10,547.64",REVENUE,FOR UNDER FIVES LTD,100647
North East Lincolnshire Council,http://statistics.data.gov.uk/id/local-authority/00FC,People And Communities,Childrens Hlth & Family Supp,Integ Local Service Delivery,Other Agencies,Nursery Educ Fund - Standard,PJ139,26/04/2012,108661,"10,936.08",REVENUE,THE CHILDRENS HOUSE,101141
North East Lincolnshire Council,http://statistics.data.gov.uk/id/local-authority/00FC,People And Communities,Childrens Hlth & Family Supp,Integ Local Service Delivery,Other Agencies,Nursery Educ Fund - Standard,PJ139,26/04/2012,108647,"11,922.12",REVENUE,PRECIOUS TIMES CHILDCARE SERVICES,101420
North East Lincolnshire Council,http://statistics.data.gov.uk/id/local-authority/00FC,People And Communities,Childrens Hlth & Family Supp,Integ Local Service Delivery,Other Agencies,Nursery Educ Fund - Standard,PJ139,26/04/2012,108677,"12,004.20",REVENUE,FOR UNDER FIVES LTD,100647
North East Lincolnshire Council,http://statistics.data.gov.uk/id/local-authority/00FC,People And Communities,Childrens Hlth & Family Supp,Integ Local Service Delivery,Other Agencies,Nursery Educ Fund - Standard,PJ139,26/04/2012,108636,"12,004.20",REVENUE,JUDY CLARK PLAYGROUP,100939
North East Lincolnshire Council,http://statistics.data.gov.uk/id/local-authority/00FC,People And Communities,Childrens Hlth & Family Supp,Integ Local Service Delivery,Other Agencies,Nursery Educ Fund - Standard,PJ139,26/04/2012,108658,"12,188.88",REVENUE,ST CHRISTOPHERS PLAYGROUP,102148
North East Lincolnshire Council,http://statistics.data.gov.uk/id/local-authority/00FC,People And Communities,Childrens Hlth & Family Supp,Integ Local Service Delivery,Other Agencies,Nursery Educ Fund - Standard,PJ139,26/04/2012,108670,"13,446.00",REVENUE,FOR UNDER FIVES LTD,100647
North East Lincolnshire Council,http://statistics.data.gov.uk/id/local-authority/00FC,People And Communities,Childrens Hlth & Family Supp,Integ Local Service Delivery,Other Agencies,Nursery Educ Fund - Standard,PJ139,26/04/2012,108676,"13,625.28",REVENUE,CLOVERFIELDS PRE SCHOOL,100971
North East Lincolnshire Council,http://statistics.data.gov.uk/id/local-authority/00FC,People And Communities,Childrens Hlth & Family Supp,Integ Local Service Delivery,Other Agencies,Nursery Educ Fund - Standard,PJ139,26/04/2012,108641,"13,983.84",REVENUE,GRIMSBY INSTITUTE FOR FHE,101649
North East Lincolnshire Council,http://statistics.data.gov.uk/id/local-authority/00FC,People And Communities,Childrens Hlth & Family Supp,Integ Local Service Delivery,Other Agencies,Nursery Educ Fund - Standard,PJ139,26/04/2012,108672,"15,253.74",REVENUE,HEALING VILLAGE NURSERY,101096
North East Lincolnshire Council,http://statistics.data.gov.uk/id/local-authority/00FC,People And Communities,Childrens Hlth & Family Supp,Integ Local Service Delivery,Other Agencies,Nursery Educ Fund - Standard,PJ139,26/04/2012,108663,"15,268.68",REVENUE,ST PETERS CHILDREN CENTRE,101322
North East Lincolnshire Council,http://statistics.data.gov.uk/id/local-authority/00FC,People And Communities,Childrens Hlth & Family Supp,Integ Local Service Delivery,Other Agencies,Nursery Educ Fund - Standard,PJ139,26/04/2012,108646,"15,418.08",REVENUE,PRECIOUS TIMES CHILDCARE SERVICES,101420
North East Lincolnshire Council,http://statistics.data.gov.uk/id/local-authority/00FC,People And Communities,Childrens Hlth & Family Supp,Integ Local Service Delivery,Other Agencies,Nursery Educ Fund - Standard,PJ139,26/04/2012,108678,"15,697.80",REVENUE,BUTTERFLIES DAY NURSERY,101694
North East Lincolnshire Council,http://statistics.data.gov.uk/id/local-authority/00FC,People And Communities,Childrens Hlth & Family Supp,Integ Local Service Delivery,Other Agencies,Nursery Educ Fund - Standard,PJ139,26/04/2012,108659,"15,697.80",REVENUE,WIZ KIDZ,102424
North East Lincolnshire Council,http://statistics.data.gov.uk/id/local-authority/00FC,People And Communities,Childrens Hlth & Family Supp,Integ Local Service Delivery,Other Agencies,Nursery Educ Fund - Standard,PJ139,26/04/2012,108695,"16,762.68",REVENUE,ST MARGARETS PRE-SCHOOL,101724
North East Lincolnshire Council,http://statistics.data.gov.uk/id/local-authority/00FC,People And Communities,Childrens Hlth & Family Supp,Integ Local Service Delivery,Other Agencies,Nursery Educ Fund - Standard,PJ139,26/04/2012,108643,"16,927.02",REVENUE,NEW WALTHAM TRACKERS PLAYGROUP,100972
North East Lincolnshire Council,http://statistics.data.gov.uk/id/local-authority/00FC,People And Communities,Childrens Hlth & Family Supp,Integ Local Service Delivery,Other Agencies,Nursery Educ Fund - Standard,PJ139,26/04/2012,108679,"17,452.26",REVENUE,BURSAR PRE-SCHOOL,103968
North East Lincolnshire Council,http://statistics.data.gov.uk/id/local-authority/00FC,People And Communities,Childrens Hlth & Family Supp,Integ Local Service Delivery,Other Agencies,Nursery Educ Fund - Standard,PJ139,26/04/2012,108638,"17,748.72",REVENUE,CLEETHORPES CHILDCARE,101591
North East Lincolnshire Council,http://statistics.data.gov.uk/id/local-authority/00FC,People And Communities,Childrens Hlth & Family Supp,Integ Local Service Delivery,Other Agencies,Nursery Educ Fund - Standard,PJ139,26/04/2012,108664,"18,316.44",REVENUE,ST JAMES SCHOOL,100940
North East Lincolnshire Council,http://statistics.data.gov.uk/id/local-authority/00FC,People And Communities,Childrens Hlth & Family Supp,Integ Local Service Delivery,Other Agencies,Nursery Educ Fund - Standard,PJ139,26/04/2012,108642,"18,406.08",REVENUE,CLEETHORPES CHILDCARE,101591
North East Lincolnshire Council,http://statistics.data.gov.uk/id/local-authority/00FC,People And Communities,Childrens Hlth & Family Supp,Integ Local Service Delivery,Other Agencies,Nursery Educ Fund - Standard,PJ139,26/04/2012,108654,"18,435.96",REVENUE,CLEETHORPES CHILDCARE,101591
North East Lincolnshire Council,http://statistics.data.gov.uk/id/local-authority/00FC,People And Communities,Childrens Hlth & Family Supp,Integ Local Service Delivery,Other Agencies,Nursery Educ Fund - Standard,PJ139,26/04/2012,108669,"20,228.76",REVENUE,HUMBERSTON C E PRE SCHOOL,101153
North East Lincolnshire Council,http://statistics.data.gov.uk/id/local-authority/00FC,People And Communities,Childrens Hlth & Family Supp,Childrens Centre Development,Communications And Computing,Computer H/Ware - Purchases,LF105,23/04/2012,107829,"24,172.20",REVENUE,CAPITA BUSINESS SERVICES LTD,102314
North East Lincolnshire Council,http://statistics.data.gov.uk/id/local-authority/00FC,People And Communities,Childrens Hlth & Family Supp,Integ Local Service Delivery,Other Agencies,Nursery Educ Fund - Standard,PJ139,26/04/2012,108684,"25,099.20",REVENUE,WALTHAM LEAS PRE-SCHOOL,108236
North East Lincolnshire Council,http://statistics.data.gov.uk/id/local-authority/00FC,People And Communities,Childrens Hlth & Family Supp,Integ Local Service Delivery,Other Agencies,Nursery Educ Fund - Standard,PJ139,26/04/2012,108685,"29,548.80",REVENUE,WELHOLME PRE SCHOOL,101258
North East Lincolnshire Council,http://statistics.data.gov.uk/id/local-authority/00FC,People And Communities,Childrens Hlth & Family Supp,Integ Local Service Delivery,Other Agencies,Nursery Educ Fund - Standard,PJ139,26/04/2012,108683,"33,704.64",REVENUE,LISLE MARSDEN PRE-SCHOOL,101465
North East Lincolnshire Council,http://statistics.data.gov.uk/id/local-authority/00FC,People And Communities,Childrens Hlth & Family Supp,Palliative / Complex Care,Private Contractors,Third Party Prov - Private,PH101,05/04/2012,104600,"6,206.52",REVENUE,INDEPENDENT COMMUNITY CARE MANAGEMENT LTD,105477
North East Lincolnshire Council,http://statistics.data.gov.uk/id/local-authority/00FC,People And Communities,Childrens Hlth & Family Supp,Palliative / Complex Care,Private Contractors,Third Party Prov - Private,PH101,05/04/2012,104599,"1,320.00",REVENUE,Redacted Personal Information,Redacted Personal Information
North East Lincolnshire Council,http://statistics.data.gov.uk/id/local-authority/00FC,People And Communities,Childrens Hlth & Family Supp,Childrens Health Provision,Private Contractors,Third Party Prov - Private,PH101,30/04/2012,109366,"225,110.11",REVENUE,LINCS PARTNERSHIP NHS FOUNDATION TRUST,105021
North East Lincolnshire Council,http://statistics.data.gov.uk/id/local-authority/00FC,People And Communities,Childrens Hlth & Family Supp,Childrens Health Provision,Private Contractors,Third Party Prov - Private,PH101,23/04/2012,107778,"5,000.00",REVENUE,NORTH EAST LINCOLNSHIRE PRIMARY CARE TRUST,100337
North East Lincolnshire Council,http://statistics.data.gov.uk/id/local-authority/00FC,People And Communities,Childrens Hlth & Family Supp,Head Of Child Hlth - Fam Supp,Private Contractors,Third Party Prov - Private,PH101,23/04/2012,107779,"45,904.00",REVENUE,NORTH LINCOLNSHIRE NHS PRIMARY CARE TRUST,105359
North East Lincolnshire Council,http://statistics.data.gov.uk/id/local-authority/00FC,People And Communities,Childrens Hlth & Family Supp,Childrens Centre Development,Private Contractors,Third Party Prov - Private,PH101,23/04/2012,107828,"7,007.33",REVENUE,NORTHERN LINCOLNSHIRE & GOOLE HOSPITALS,101242
North East Lincolnshire Council,http://statistics.data.gov.uk/id/local-authority/00FC,People And Communities,Childrens Hlth & Family Supp,Childrens Centre Development,Private Contractors,Third Party Prov - Private,PH101,23/04/2012,107826,"7,194.47",REVENUE,NORTHERN LINCOLNSHIRE & GOOLE HOSPITALS,101242
North East Lincolnshire Council,http://statistics.data.gov.uk/id/local-authority/00FC,People And Communities,Childrens Hlth & Family Supp,Integ Local Service Delivery,Private Contractors,Third Party Prov - Private,PH101,05/04/2012,104812,"8,595.00",REVENUE,NORTHERN LINCOLNSHIRE & GOOLE HOSPITALS,101242
North East Lincolnshire Council,http://statistics.data.gov.uk/id/local-authority/00FC,People And Communities,Childrens Hlth & Family Supp,Integ Local Service Delivery,Private Contractors,Third Party Prov - Private,PH101,23/04/2012,107603,"8,595.00",REVENUE,NORTHERN LINCOLNSHIRE & GOOLE HOSPITALS,101242
North East Lincolnshire Council,http://statistics.data.gov.uk/id/local-authority/00FC,People And Communities,Childrens Hlth & Family Supp,Palliative / Complex Care,Private Contractors,Third Party Prov - Private,PH101,05/04/2012,104602,"12,510.00",REVENUE,NORTHERN LINCOLNSHIRE & GOOLE HOSPITALS,101242
North East Lincolnshire Council,http://statistics.data.gov.uk/id/local-authority/00FC,People And Communities,Childrens Hlth & Family Supp,Childrens Centre Development,Private Contractors,Third Party Prov - Private,PH101,23/04/2012,107833,"10,000.00",REVENUE,SCHOOL FOOD TRUST,109863
North East Lincolnshire Council,http://statistics.data.gov.uk/id/local-authority/00FC,People And Communities,Improved Health,Env Commerce Food & Health,Rates,Rates,GD101,05/04/2012,104861,"-2,790.00",REVENUE,NORTH EAST LINCOLNSHIRE COUNCIL,100894
North East Lincolnshire Council,http://statistics.data.gov.uk/id/local-authority/00FC,People And Communities,Improved Health,Ot Stores,Equip / Furniture / Materials,Health & Safety Supplies,LA116,16/04/2012,105997,-585.00,REVENUE,DRIVE MEDICAL LTD,101995
North East Lincolnshire Council,http://statistics.data.gov.uk/id/local-authority/00FC,People And Communities,Improved Health,Head Of Improved Health,Print Stationery / Gen Off Exp,Photocopier - Running Costs,LD102,18/04/2012,106503,-365.70,REVENUE,UNITED CARLTON OFFICE SYSTEMS LTD,101652
North East Lincolnshire Council,http://statistics.data.gov.uk/id/local-authority/00FC,People And Communities,Improved Health,Smoking Cessation,Indirect Employee Expenses,Staff Training,EB122,11/04/2012,105256,-146.00,REVENUE,UNIVERSITY OF BATH,109750
North East Lincolnshire Council,http://statistics.data.gov.uk/id/local-authority/00FC,People And Communities,Improved Health,Smoking Cessation,Miscellaneous Expenses,Medical Supplies And Services,LL109,05/04/2012,104122,-38.00,REVENUE,INTERMEDICAL,108219
North East Lincolnshire Council,http://statistics.data.gov.uk/id/local-authority/00FC,People And Communities,Improved Health,Ot Stores,Equip / Furniture / Materials,Health & Safety Supplies,LA116,11/04/2012,104297,506.00,REVENUE,AIDAPT BATHROOMS LTD,101164
North East Lincolnshire Council,http://statistics.data.gov.uk/id/local-authority/00FC,People And Communities,Improved Health,Health Trainers,Direct Employee Expenses,Overtime,EA401,02/04/2012,103700,511.40,REVENUE,CARE PLUS GROUP,106467
North East Lincolnshire Council,http://statistics.data.gov.uk/id/local-authority/00FC,People And Communities,Improved Health,Ot Stores,Equip / Furniture / Materials,Health & Safety Supplies,LA116,17/04/2012,106015,520.64,REVENUE,PICKERINGS EUROPE LIMITED,100897
North East Lincolnshire Council,http://statistics.data.gov.uk/id/local-authority/00FC,People And Communities,Improved Health,Ot Stores,Equip / Furniture / Materials,Health & Safety Supplies,LA116,24/04/2012,106977,526.00,REVENUE,DRIVE MEDICAL,101627
North East Lincolnshire Council,http://statistics.data.gov.uk/id/local-authority/00FC,People And Communities,Improved Health,Ot Stores,Equip / Furniture / Materials,Health & Safety Supplies,LA116,27/04/2012,109023,551.20,REVENUE,DAYS HEALTHCARE UK LTD,101549
North East Lincolnshire Council,http://statistics.data.gov.uk/id/local-authority/00FC,People And Communities,Improved Health,Ot Stores,Equip / Furniture / Materials,Health & Safety Supplies,LA116,16/04/2012,105811,582.00,REVENUE,LISCLARE LTD,101785
North East Lincolnshire Council,http://statistics.data.gov.uk/id/local-authority/00FC,People And Communities,Improved Health,Smoking Cessation,Miscellaneous Expenses,Medical Supplies And Services,LL109,23/04/2012,107892,584.30,REVENUE,LLOYDS PHARMACY,104027
North East Lincolnshire Council,http://statistics.data.gov.uk/id/local-authority/00FC,People And Communities,Improved Health,Ot Stores,Equip / Furniture / Materials,Health & Safety Supplies,LA116,03/04/2012,104036,585.00,REVENUE,AQUAJOY BATHLIFTS LTD,101315
North East Lincolnshire Council,http://statistics.data.gov.uk/id/local-authority/00FC,People And Communities,Improved Health,Ot Stores,Equip / Furniture / Materials,Health & Safety Supplies,LA116,18/04/2012,106723,588.00,REVENUE,SIDHIL LTD,101166
North East Lincolnshire Council,http://statistics.data.gov.uk/id/local-authority/00FC,People And Communities,Improved Health,Ot Stores,Equip / Furniture / Materials,Health & Safety Supplies,LA116,24/04/2012,106494,590.00,REVENUE,WINDMILL SPECIAL NEEDS,102467
North East Lincolnshire Council,http://statistics.data.gov.uk/id/local-authority/00FC,People And Communities,Improved Health,Ot Stores,Equip / Furniture / Materials,Health & Safety Supplies,LA116,19/04/2012,107168,591.38,REVENUE,F R TOWNSEND & CO LTD,104217
North East Lincolnshire Council,http://statistics.data.gov.uk/id/local-authority/00FC,People And Communities,Improved Health,Smoking Cessation,Print Stationery / Gen Off Exp,Printing And Stationery,LD103,20/04/2012,107543,602.89,REVENUE,LYRECO UK LIMITED,101120
North East Lincolnshire Council,http://statistics.data.gov.uk/id/local-authority/00FC,People And Communities,Improved Health,Ot Stores,Equip / Furniture / Materials,Health & Safety Supplies,LA116,16/04/2012,105824,670.56,REVENUE,INVACARE (UK) LTD,101008
North East Lincolnshire Council,http://statistics.data.gov.uk/id/local-authority/00FC,People And Communities,Improved Health,Env Commerce Food & Health,Government Grants,Grants,VA101,27/04/2012,109008,718.88,REVENUE,OSBORNE RICHARDSON,101354
North East Lincolnshire Council,http://statistics.data.gov.uk/id/local-authority/00FC,People And Communities,Improved Health,Ot Stores,Equip / Furniture / Materials,Health & Safety Supplies,LA116,25/04/2012,108280,720.00,REVENUE,F R TOWNSEND & CO LTD,104217
North East Lincolnshire Council,http://statistics.data.gov.uk/id/local-authority/00FC,People And Communities,Improved Health,Smoking Cessation,Indirect Employee Expenses,Staff Training,EB122,13/04/2012,105671,730.00,REVENUE,UNIVERSITY OF BATH,109750
North East Lincolnshire Council,http://statistics.data.gov.uk/id/local-authority/00FC,People And Communities,Improved Health,Ot Stores,Equip / Furniture / Materials,Health & Safety Supplies,LA116,11/04/2012,104853,780.00,REVENUE,DRIVE MEDICAL LTD,101995
North East Lincolnshire Council,http://statistics.data.gov.uk/id/local-authority/00FC,People And Communities,Improved Health,Ot Stores,Equip / Furniture / Materials,Health & Safety Supplies,LA116,16/04/2012,105822,840.00,REVENUE,DIRECT HEALTHCARE,102678
North East Lincolnshire Council,http://statistics.data.gov.uk/id/local-authority/00FC,People And Communities,Improved Health,Health Promotion,Contributions To Provisions,Contributions - Other,LK103,18/04/2012,106799,842.00,REVENUE,ROYAL SOCIETY FOR PUBLIC HEALTH,104435
North East Lincolnshire Council,http://statistics.data.gov.uk/id/local-authority/00FC,People And Communities,Improved Health,Ot Stores,Equip / Furniture / Materials,Health & Safety Supplies,LA116,18/04/2012,106724,891.50,REVENUE,PATTERSON MEDICAL LTD,104008
North East Lincolnshire Council,http://statistics.data.gov.uk/id/local-authority/00FC,People And Communities,Improved Health,Ot Stores,Equip / Furniture / Materials,Health & Safety Supplies,LA116,16/04/2012,105754,920.00,REVENUE,CLARK & PARTNERS LTD,101269
North East Lincolnshire Council,http://statistics.data.gov.uk/id/local-authority/00FC,People And Communities,Improved Health,Ot Stores,Equip / Furniture / Materials,Health & Safety Supplies,LA116,16/04/2012,105755,920.00,REVENUE,CLARK & PARTNERS LTD,101269
North East Lincolnshire Council,http://statistics.data.gov.uk/id/local-authority/00FC,People And Communities,Improved Health,Ot Stores,Equip / Furniture / Materials,Health & Safety Supplies,LA116,16/04/2012,105756,920.00,REVENUE,CLARK & PARTNERS LTD,101269
North East Lincolnshire Council,http://statistics.data.gov.uk/id/local-authority/00FC,People And Communities,Improved Health,Ot Stores,Equip / Furniture / Materials,Health & Safety Supplies,LA116,16/04/2012,105757,920.00,REVENUE,CLARK & PARTNERS LTD,101269
North East Lincolnshire Council,http://statistics.data.gov.uk/id/local-authority/00FC,People And Communities,Improved Health,Ot Stores,Equip / Furniture / Materials,Health & Safety Supplies,LA116,16/04/2012,105758,920.00,REVENUE,CLARK & PARTNERS LTD,101269
North East Lincolnshire Council,http://statistics.data.gov.uk/id/local-authority/00FC,People And Communities,Improved Health,Ot Stores,Equip / Furniture / Materials,Health & Safety Supplies,LA116,16/04/2012,105827,920.00,REVENUE,CLARK & PARTNERS LTD,101269
North East Lincolnshire Council,http://statistics.data.gov.uk/id/local-authority/00FC,People And Communities,Improved Health,Ot Stores,Equip / Furniture / Materials,Health & Safety Supplies,LA116,16/04/2012,105828,920.00,REVENUE,CLARK & PARTNERS LTD,101269
North East Lincolnshire Council,http://statistics.data.gov.uk/id/local-authority/00FC,People And Communities,Improved Health,Ot Stores,Equip / Furniture / Materials,Health & Safety Supplies,LA116,16/04/2012,105990,920.00,REVENUE,CLARK & PARTNERS LTD,101269
North East Lincolnshire Council,http://statistics.data.gov.uk/id/local-authority/00FC,People And Communities,Improved Health,Ot Stores,Equip / Furniture / Materials,Health & Safety Supplies,LA116,16/04/2012,105991,920.00,REVENUE,CLARK & PARTNERS LTD,101269
North East Lincolnshire Council,http://statistics.data.gov.uk/id/local-authority/00FC,People And Communities,Improved Health,Ot Stores,Equip / Furniture / Materials,Health & Safety Supplies,LA116,16/04/2012,105992,920.00,REVENUE,CLARK & PARTNERS LTD,101269
North East Lincolnshire Council,http://statistics.data.gov.uk/id/local-authority/00FC,People And Communities,Improved Health,Smoking Cessation,Miscellaneous Expenses,Medical Supplies And Services,LL109,20/04/2012,107445,951.46,REVENUE,BIRMINGHAM CHEMIST,103907
North East Lincolnshire Council,http://statistics.data.gov.uk/id/local-authority/00FC,People And Communities,Improved Health,Smoking Cessation,Miscellaneous Expenses,Medical Supplies And Services,LL109,20/04/2012,107446,952.79,REVENUE,ASDA PHARMACY,104011
North East Lincolnshire Council,http://statistics.data.gov.uk/id/local-authority/00FC,People And Communities,Improved Health,Env Commerce Food & Health,Direct Transport Costs,Hired Transport - Employees,JA101,03/04/2012,104065,958.50,REVENUE,OSBORNE RICHARDSON,101354
North East Lincolnshire Council,http://statistics.data.gov.uk/id/local-authority/00FC,People And Communities,Improved Health,Ot Stores,Equip / Furniture / Materials,Health & Safety Supplies,LA116,05/04/2012,104763,984.20,REVENUE,F R TOWNSEND & CO LTD,104217
North East Lincolnshire Council,http://statistics.data.gov.uk/id/local-authority/00FC,People And Communities,Improved Health,Smoking Cessation,Miscellaneous Expenses,Medical Supplies And Services,LL109,05/04/2012,104056,994.73,REVENUE,COHENS CHEMIST,108177
North East Lincolnshire Council,http://statistics.data.gov.uk/id/local-authority/00FC,People And Communities,Improved Health,Smoking Cessation,Miscellaneous Expenses,Medical Supplies And Services,LL109,27/04/2012,109033,"1,117.17",REVENUE,LLOYDS PHARMACY,106385
North East Lincolnshire Council,http://statistics.data.gov.uk/id/local-authority/00FC,People And Communities,Improved Health,Ot Stores,Equip / Furniture / Materials,Health & Safety Supplies,LA116,18/04/2012,106707,"1,140.00",REVENUE,V-M MARKETING ORTHOTICS INTERNATIONAL,103124
North East Lincolnshire Council,http://statistics.data.gov.uk/id/local-authority/00FC,People And Communities,Improved Health,Ot Stores,Equip / Furniture / Materials,Health & Safety Supplies,LA116,17/04/2012,105759,"1,260.00",REVENUE,CLARK & PARTNERS LTD,101269
North East Lincolnshire Council,http://statistics.data.gov.uk/id/local-authority/00FC,People And Communities,Improved Health,Ot Stores,Equip / Furniture / Materials,Health & Safety Supplies,LA116,03/04/2012,104036,"1,335.00",REVENUE,AQUAJOY BATHLIFTS LTD,101315
North East Lincolnshire Council,http://statistics.data.gov.uk/id/local-authority/00FC,People And Communities,Improved Health,Trading Standards,Direct Employee Expenses,Agency Staff,EA105,27/04/2012,108948,"1,383.24",REVENUE,KENYON BLOCK CONSULTANTS,101878
North East Lincolnshire Council,http://statistics.data.gov.uk/id/local-authority/00FC,People And Communities,Improved Health,Trading Standards,Direct Employee Expenses,Agency Staff,EA105,27/04/2012,109007,"1,415.25",REVENUE,KENYON BLOCK CONSULTANTS,101878
North East Lincolnshire Council,http://statistics.data.gov.uk/id/local-authority/00FC,People And Communities,Improved Health,Smoking Cessation,Miscellaneous Expenses,Medical Supplies And Services,LL109,03/04/2012,104120,"1,470.06",REVENUE,LLOYDS PHARMACY,104881
North East Lincolnshire Council,http://statistics.data.gov.uk/id/local-authority/00FC,People And Communities,Improved Health,Smoking Cessation,Miscellaneous Expenses,Medical Supplies And Services,LL109,03/04/2012,104124,"2,383.09",REVENUE,INTERMEDICAL,108219
North East Lincolnshire Council,http://statistics.data.gov.uk/id/local-authority/00FC,People And Communities,Improved Health,Env Commerce Food & Health,Rates,Rates,GD101,03/04/2012,104163,"2,790.00",REVENUE,NORTH EAST LINCOLNSHIRE COUNCIL,100894
North East Lincolnshire Council,http://statistics.data.gov.uk/id/local-authority/00FC,People And Communities,Improved Health,Env Commerce Food & Health,Rates,Rates,GD101,05/04/2012,104862,"2,790.00",REVENUE,NORTH EAST LINCOLNSHIRE COUNCIL,100894
North East Lincolnshire Council,http://statistics.data.gov.uk/id/local-authority/00FC,People And Communities,Improved Health,Ot Stores,Equip / Furniture / Materials,Health & Safety Supplies,LA116,16/04/2012,105760,"2,889.00",REVENUE,LISCLARE LTD,101785
North East Lincolnshire Council,http://statistics.data.gov.uk/id/local-authority/00FC,People And Communities,Improved Health,Ot Stores,Equip / Furniture / Materials,Health & Safety Supplies,LA116,16/04/2012,105810,"2,889.00",REVENUE,LISCLARE LTD,101785
North East Lincolnshire Council,http://statistics.data.gov.uk/id/local-authority/00FC,People And Communities,Improved Health,Trading Standards,Other Local Authorities,Third Pp - Other Local Auth,PC101,23/04/2012,107802,"3,075.00",REVENUE,CITY OF YORK COUNCIL,100874
North East Lincolnshire Council,http://statistics.data.gov.uk/id/local-authority/00FC,People And Communities,Improved Health,Supporting People,Other Agencies,Third Pp - Block Subsidy,PJ102,26/04/2012,108686,Redacted Commercially Sensitive,REVENUE,HUMBERCARE,100311
North East Lincolnshire Council,http://statistics.data.gov.uk/id/local-authority/00FC,People And Communities,Improved Health,Ot Stores,Equip / Furniture / Materials,Health & Safety Supplies,LA116,03/04/2012,104038,"4,380.00",REVENUE,AQUAJOY BATHLIFTS LTD,101315
North East Lincolnshire Council,http://statistics.data.gov.uk/id/local-authority/00FC,People And Communities,Improved Health,Env Commerce Food & Health,Print Stationery / Gen Off Exp,Printing And Stationery,LD103,27/04/2012,109004,"4,602.00",REVENUE,ADARE LIMITED,109922
North East Lincolnshire Council,http://statistics.data.gov.uk/id/local-authority/00FC,People And Communities,Improved Health,Supporting People,Other Agencies,Third Pp - Block Gross,PJ103,02/04/2012,103670,Redacted Commercially Sensitive,REVENUE,YORK HOUSING ASSOCIATION LTD,100341
North East Lincolnshire Council,http://statistics.data.gov.uk/id/local-authority/00FC,People And Communities,Improved Health,Supporting People,Other Agencies,Third Pp - Block Gross,PJ103,30/04/2012,109456,Redacted Commercially Sensitive,REVENUE,YORK HOUSING ASSOCIATION LTD,100341
North East Lincolnshire Council,http://statistics.data.gov.uk/id/local-authority/00FC,People And Communities,Improved Health,Smoking Cessation,Miscellaneous Expenses,Medical Supplies And Services,LL109,03/04/2012,104124,"4,751.91",REVENUE,INTERMEDICAL,108219
North East Lincolnshire Council,http://statistics.data.gov.uk/id/local-authority/00FC,People And Communities,Improved Health,Ot Stores,Equip / Furniture / Materials,Health & Safety Supplies,LA116,03/04/2012,104037,"4,760.00",REVENUE,AQUAJOY BATHLIFTS LTD,101315
North East Lincolnshire Council,http://statistics.data.gov.uk/id/local-authority/00FC,People And Communities,Improved Health,Supporting People,Other Agencies,Third Pp - Block Subsidy,PJ102,26/04/2012,108694,Redacted Commercially Sensitive,REVENUE,CREATIVE SUPPORT LTD,107198
North East Lincolnshire Council,http://statistics.data.gov.uk/id/local-authority/00FC,People And Communities,Improved Health,Supporting People,Other Agencies,Third Pp - Block Subsidy,PJ102,23/04/2012,107790,Redacted Commercially Sensitive,REVENUE,NORTH EAST LINCOLNSHIRE PRIMARY CARE TRUST,100337
North East Lincolnshire Council,http://statistics.data.gov.uk/id/local-authority/00FC,People And Communities,Improved Health,Supporting People,Other Agencies,Third Pp - Block Gross,PJ103,02/04/2012,103672,Redacted Commercially Sensitive,REVENUE,SANCTUARY HOUSING ASSOCIATION,103289
North East Lincolnshire Council,http://statistics.data.gov.uk/id/local-authority/00FC,People And Communities,Improved Health,Supporting People,Other Agencies,Third Pp - Block Gross,PJ103,30/04/2012,109458,Redacted Commercially Sensitive,REVENUE,SANCTUARY HOUSING ASSOCIATION,103289
North East Lincolnshire Council,http://statistics.data.gov.uk/id/local-authority/00FC,People And Communities,Improved Health,Supporting People,Other Agencies,Third Pp - Block Gross,PJ103,02/04/2012,103668,Redacted Commercially Sensitive,REVENUE,CARE,100314
North East Lincolnshire Council,http://statistics.data.gov.uk/id/local-authority/00FC,People And Communities,Improved Health,Supporting People,Other Agencies,Third Pp - Block Gross,PJ103,30/04/2012,109454,Redacted Commercially Sensitive,REVENUE,CARE,100314
North East Lincolnshire Council,http://statistics.data.gov.uk/id/local-authority/00FC,People And Communities,Improved Health,Supporting People,Other Agencies,Third Pp - Block Subsidy,PJ102,26/04/2012,108692,Redacted Commercially Sensitive,REVENUE,NAVIGO HEALTH AND SOCIAL CARE CIC,104262
North East Lincolnshire Council,http://statistics.data.gov.uk/id/local-authority/00FC,People And Communities,Improved Health,Supporting People,Other Agencies,Third Pp - Block Gross,PJ103,02/04/2012,103667,Redacted Commercially Sensitive,REVENUE,HUMBERCARE,100311
North East Lincolnshire Council,http://statistics.data.gov.uk/id/local-authority/00FC,People And Communities,Improved Health,Supporting People,Other Agencies,Third Pp - Block Gross,PJ103,30/04/2012,109453,Redacted Commercially Sensitive,REVENUE,HUMBERCARE,100311
North East Lincolnshire Council,http://statistics.data.gov.uk/id/local-authority/00FC,People And Communities,Improved Health,Supporting People,Other Agencies,Third Pp - Block Subsidy,PJ102,26/04/2012,108693,Redacted Commercially Sensitive,REVENUE,CARE PLUS GROUP,106467
North East Lincolnshire Council,http://statistics.data.gov.uk/id/local-authority/00FC,People And Communities,Improved Health,Supporting People,Other Agencies,Third Pp - Block Gross,PJ103,02/04/2012,103669,Redacted Commercially Sensitive,REVENUE,WOMENS AID,100326
North East Lincolnshire Council,http://statistics.data.gov.uk/id/local-authority/00FC,People And Communities,Improved Health,Supporting People,Other Agencies,Third Pp - Block Gross,PJ103,30/04/2012,109455,Redacted Commercially Sensitive,REVENUE,WOMENS AID,100326
North East Lincolnshire Council,http://statistics.data.gov.uk/id/local-authority/00FC,People And Communities,Improved Health,Supporting People,Other Agencies,Third Pp - Block Subsidy,PJ102,26/04/2012,108687,Redacted Commercially Sensitive,REVENUE,HICA,100319
North East Lincolnshire Council,http://statistics.data.gov.uk/id/local-authority/00FC,People And Communities,Improved Health,Supporting People,Other Agencies,Third Pp - Block Gross,PJ103,02/04/2012,103665,Redacted Commercially Sensitive,REVENUE,THE SALVATION ARMY,100309
North East Lincolnshire Council,http://statistics.data.gov.uk/id/local-authority/00FC,People And Communities,Improved Health,Supporting People,Other Agencies,Third Pp - Block Gross,PJ103,30/04/2012,109451,Redacted Commercially Sensitive,REVENUE,THE SALVATION ARMY,100309
North East Lincolnshire Council,http://statistics.data.gov.uk/id/local-authority/00FC,People And Communities,Improved Health,Supporting People,Other Agencies,Third Pp - Block Gross,PJ103,02/04/2012,103666,Redacted Commercially Sensitive,REVENUE,DOORSTEP,100310
North East Lincolnshire Council,http://statistics.data.gov.uk/id/local-authority/00FC,People And Communities,Improved Health,Supporting People,Other Agencies,Third Pp - Block Gross,PJ103,30/04/2012,109452,Redacted Commercially Sensitive,REVENUE,DOORSTEP,100310
North East Lincolnshire Council,http://statistics.data.gov.uk/id/local-authority/00FC,People And Communities,Improved Health,Supporting People,Other Agencies,Third Pp - Block Subsidy,PJ102,26/04/2012,108689,Redacted Commercially Sensitive,REVENUE,HOUSING & SUPPORT SOLUTIONS,100321
North East Lincolnshire Council,http://statistics.data.gov.uk/id/local-authority/00FC,People And Communities,Improved Health,Supporting People,Other Agencies,Third Pp - Block Gross,PJ103,02/04/2012,103671,Redacted Commercially Sensitive,REVENUE,LONGHURST AND HAVELOK HOMES LTD,100342
North East Lincolnshire Council,http://statistics.data.gov.uk/id/local-authority/00FC,People And Communities,Improved Health,Supporting People,Other Agencies,Third Pp - Block Gross,PJ103,30/04/2012,109457,Redacted Commercially Sensitive,REVENUE,LONGHURST AND HAVELOK HOMES LTD,100342
North East Lincolnshire Council,http://statistics.data.gov.uk/id/local-authority/00FC,People And Communities,Improved Health,Supporting People,Other Agencies,Third Pp - Block Gross,PJ103,02/04/2012,103664,Redacted Commercially Sensitive,REVENUE,GRIMSBY AND CLEETHORPES YMCA,100305
North East Lincolnshire Council,http://statistics.data.gov.uk/id/local-authority/00FC,People And Communities,Improved Health,Supporting People,Other Agencies,Third Pp - Block Gross,PJ103,30/04/2012,109450,Redacted Commercially Sensitive,REVENUE,GRIMSBY AND CLEETHORPES YMCA,100305
North East Lincolnshire Council,http://statistics.data.gov.uk/id/local-authority/00FC,People And Communities,Improved Health,Supporting People,Other Agencies,Third Pp - Block Subsidy,PJ102,26/04/2012,108691,Redacted Commercially Sensitive,REVENUE,LONGHURST AND HAVELOK HOMES LTD,100342
North East Lincolnshire Council,http://statistics.data.gov.uk/id/local-authority/00FC,People And Communities,Improved Health,Health Promotion,Private Contractors,Third Party Prov - Private,PH101,17/04/2012,106031,820.00,REVENUE,Redacted Personal Information,Redacted Personal Information
North East Lincolnshire Council,http://statistics.data.gov.uk/id/local-authority/00FC,People And Communities,Improved Health,Trading Standards,Private Contractors,Third Party Prov - Private,PH101,25/04/2012,108521,"3,640.00",REVENUE,WAKEFIELD MD COUNCIL,100967
North East Lincolnshire Council,http://statistics.data.gov.uk/id/local-authority/00FC,People And Communities,Improved Health,Trading Standards,Private Contractors,Third Party Prov - Private,PH101,25/04/2012,108489,"4,611.00",REVENUE,WAKEFIELD MD COUNCIL,100967
North East Lincolnshire Council,http://statistics.data.gov.uk/id/local-authority/00FC,People And Communities,Vulnerable Young People,Placement & Support,Private Contractors,Third Party Prov - Private,PH101,03/04/2012,103875,"7,714.28",REVENUE,A WILDERNESS WAY LTD,102537
North East Lincolnshire Council,http://statistics.data.gov.uk/id/local-authority/00FC,People And Communities,Vulnerable Young People,Sen/Inclusion,Private Contractors,Third Party Prov - Private,PH101,11/04/2012,105122,"16,948.00",REVENUE,A4E CONSULT LTD,101656
North East Lincolnshire Council,http://statistics.data.gov.uk/id/local-authority/00FC,People And Communities,Vulnerable Young People,Sen/Inclusion,Private Contractors,Third Party Prov - Private,PH101,02/04/2012,103756,500.00,REVENUE,DKM ASSESSMENT & VERIFICATION LTD,101643
North East Lincolnshire Council,http://statistics.data.gov.uk/id/local-authority/00FC,People And Communities,Vulnerable Young People,Sen/Inclusion,Private Contractors,Third Party Prov - Private,PH101,13/04/2012,105597,752.40,REVENUE,DKM ASSESSMENT & VERIFICATION LTD,101643
North East Lincolnshire Council,http://statistics.data.gov.uk/id/local-authority/00FC,People And Communities,Vulnerable Young People,Sen/Inclusion,Private Contractors,Third Party Prov - Private,PH101,02/04/2012,103757,800.00,REVENUE,DKM ASSESSMENT & VERIFICATION LTD,101643
North East Lincolnshire Council,http://statistics.data.gov.uk/id/local-authority/00FC,People And Communities,Vulnerable Young People,Sen/Inclusion,Private Contractors,Third Party Prov - Private,PH101,11/04/2012,105149,"1,000.00",REVENUE,DKM ASSESSMENT & VERIFICATION LTD,101643
North East Lincolnshire Council,http://statistics.data.gov.uk/id/local-authority/00FC,People And Communities,Vulnerable Young People,Sen/Inclusion,Private Contractors,Third Party Prov - Private,PH101,02/04/2012,103759,"1,100.00",REVENUE,DKM ASSESSMENT & VERIFICATION LTD,101643
North East Lincolnshire Council,http://statistics.data.gov.uk/id/local-authority/00FC,People And Communities,Vulnerable Young People,Sen/Inclusion,Private Contractors,Third Party Prov - Private,PH101,16/04/2012,105602,"1,100.00",REVENUE,DKM ASSESSMENT & VERIFICATION LTD,101643
North East Lincolnshire Council,http://statistics.data.gov.uk/id/local-authority/00FC,People And Communities,Vulnerable Young People,Sen/Inclusion,Private Contractors,Third Party Prov - Private,PH101,11/04/2012,105150,"1,200.00",REVENUE,DKM ASSESSMENT & VERIFICATION LTD,101643
North East Lincolnshire Council,http://statistics.data.gov.uk/id/local-authority/00FC,People And Communities,Vulnerable Young People,Through Care & Disability,Private Contractors,Third Party Prov - Private,PH101,24/04/2012,107930,"2,276.50",REVENUE,EAST MIDLANDS CROSSROADS,102400
North East Lincolnshire Council,http://statistics.data.gov.uk/id/local-authority/00FC,People And Communities,Vulnerable Young People,School Access Governor Student,Contract Hire-Operating Leases,Vehicles - Contract Hire,JC101,13/04/2012,105805,Redacted Commercially Sensitive,REVENUE,GLEN WILSON LTD,103600
North East Lincolnshire Council,http://statistics.data.gov.uk/id/local-authority/00FC,People And Communities,Vulnerable Young People,Placement & Support,Other Agencies,Child Care Payments,PJ104,17/04/2012,75504,-114.00,REVENUE,Redacted Personal Information,Redacted Personal Information
North East Lincolnshire Council,http://statistics.data.gov.uk/id/local-authority/00FC,People And Communities,Vulnerable Young People,Youth Offending Team,Direct Transport Costs,Hired Transport - Employees,JA101,18/04/2012,106492,-75.60,REVENUE,NORTHGATE VEHICLE HIRE LTD,109432
North East Lincolnshire Council,http://statistics.data.gov.uk/id/local-authority/00FC,People And Communities,Vulnerable Young People,Placement & Support,Other Agencies,Child Care Payments,PJ104,30/04/2012,78774,-74.00,REVENUE,Redacted Personal Information,Redacted Personal Information
North East Lincolnshire Council,http://statistics.data.gov.uk/id/local-authority/00FC,People And Communities,Vulnerable Young People,Placement & Support,Other Agencies,Child Care Payments,PJ104,17/04/2012,75490,-73.71,REVENUE,Redacted Personal Information,Redacted Personal Information
North East Lincolnshire Council,http://statistics.data.gov.uk/id/local-authority/00FC,People And Communities,Vulnerable Young People,Placement & Support,Other Agencies,Child Care Payments,PJ104,17/04/2012,75504,-65.14,REVENUE,Redacted Personal Information,Redacted Personal Information
North East Lincolnshire Council,http://statistics.data.gov.uk/id/local-authority/00FC,People And Communities,Vulnerable Young People,Placement & Support,Other Agencies,Child Care Payments,PJ104,30/04/2012,78714,-62.14,REVENUE,Redacted Personal Information,Redacted Personal Information
North East Lincolnshire Council,http://statistics.data.gov.uk/id/local-authority/00FC,People And Communities,Vulnerable Young People,Placement & Support,Other Agencies,Child Care Payments,PJ104,30/04/2012,78738,-50.14,REVENUE,Redacted Personal Information,Redacted Personal Information
North East Lincolnshire Council,http://statistics.data.gov.uk/id/local-authority/00FC,People And Communities,Vulnerable Young People,Placement & Support,Other Agencies,Child Care Payments,PJ104,30/04/2012,78771,-50.00,REVENUE,Redacted Personal Information,Redacted Personal Information
North East Lincolnshire Council,http://statistics.data.gov.uk/id/local-authority/00FC,People And Communities,Vulnerable Young People,Placement & Support,Other Agencies,Child Care Payments,PJ104,24/04/2012,76924,-48.86,REVENUE,Redacted Personal Information,Redacted Personal Information
North East Lincolnshire Council,http://statistics.data.gov.uk/id/local-authority/00FC,People And Communities,Vulnerable Young People,Placement & Support,Other Agencies,Child Care Payments,PJ104,17/04/2012,75504,-48.86,REVENUE,Redacted Personal Information,Redacted Personal Information
North East Lincolnshire Council,http://statistics.data.gov.uk/id/local-authority/00FC,People And Communities,Vulnerable Young People,Placement & Support,Other Agencies,Child Care Payments,PJ104,17/04/2012,75492,-46.71,REVENUE,Redacted Personal Information,Redacted Personal Information
North East Lincolnshire Council,http://statistics.data.gov.uk/id/local-authority/00FC,People And Communities,Vulnerable Young People,Placement & Support,Other Agencies,Child Care Payments,PJ104,30/04/2012,78738,-42.29,REVENUE,Redacted Personal Information,Redacted Personal Information
North East Lincolnshire Council,http://statistics.data.gov.uk/id/local-authority/00FC,People And Communities,Vulnerable Young People,Safeguarding,Other Agencies,Contact,PJ126,05/04/2012,104532,-37.92,REVENUE,NYS CORPORATE,102444
North East Lincolnshire Council,http://statistics.data.gov.uk/id/local-authority/00FC,People And Communities,Vulnerable Young People,Sen/Inclusion,Equip / Furniture / Materials,Teaching Materials,LA117,13/04/2012,105783,-36.94,REVENUE,WH SMITH DIRECT,103417
North East Lincolnshire Council,http://statistics.data.gov.uk/id/local-authority/00FC,People And Communities,Vulnerable Young People,Placement & Support,Other Agencies,Child Care Payments,PJ104,24/04/2012,76986,-25.00,REVENUE,Redacted Personal Information,Redacted Personal Information
North East Lincolnshire Council,http://statistics.data.gov.uk/id/local-authority/00FC,People And Communities,Vulnerable Young People,Placement & Support,Other Agencies,Child Care Payments,PJ104,30/04/2012,78835,-25.00,REVENUE,Redacted Personal Information,Redacted Personal Information
North East Lincolnshire Council,http://statistics.data.gov.uk/id/local-authority/00FC,People And Communities,Vulnerable Young People,Placement & Support,Other Agencies,Child Care Payments,PJ104,03/04/2012,73642,-25.00,REVENUE,Redacted Personal Information,Redacted Personal Information
North East Lincolnshire Council,http://statistics.data.gov.uk/id/local-authority/00FC,People And Communities,Vulnerable Young People,Placement & Support,Other Agencies,Child Care Payments,PJ104,10/04/2012,74285,-25.00,REVENUE,Redacted Personal Information,Redacted Personal Information
North East Lincolnshire Council,http://statistics.data.gov.uk/id/local-authority/00FC,People And Communities,Vulnerable Young People,Placement & Support,Other Agencies,Child Care Payments,PJ104,17/04/2012,75551,-25.00,REVENUE,Redacted Personal Information,Redacted Personal Information
North East Lincolnshire Council,http://statistics.data.gov.uk/id/local-authority/00FC,People And Communities,Vulnerable Young People,Placement & Support,Other Agencies,Child Care Payments,PJ104,24/04/2012,76971,-25.00,REVENUE,Redacted Personal Information,Redacted Personal Information
North East Lincolnshire Council,http://statistics.data.gov.uk/id/local-authority/00FC,People And Communities,Vulnerable Young People,Placement & Support,Other Agencies,Child Care Payments,PJ104,30/04/2012,78820,-25.00,REVENUE,Redacted Personal Information,Redacted Personal Information
North East Lincolnshire Council,http://statistics.data.gov.uk/id/local-authority/00FC,People And Communities,Vulnerable Young People,Placement & Support,Other Agencies,Child Care Payments,PJ104,03/04/2012,73629,-24.00,REVENUE,Redacted Personal Information,Redacted Personal Information
North East Lincolnshire Council,http://statistics.data.gov.uk/id/local-authority/00FC,People And Communities,Vulnerable Young People,Placement & Support,Other Agencies,Child Care Payments,PJ104,10/04/2012,74207,-20.71,REVENUE,Redacted Personal Information,Redacted Personal Information
North East Lincolnshire Council,http://statistics.data.gov.uk/id/local-authority/00FC,People And Communities,Vulnerable Young People,Placement & Support,Other Agencies,Child Care Payments,PJ104,10/04/2012,74207,-18.00,REVENUE,Redacted Personal Information,Redacted Personal Information
North East Lincolnshire Council,http://statistics.data.gov.uk/id/local-authority/00FC,People And Communities,Vulnerable Young People,Placement & Support,Other Agencies,Child Care Payments,PJ104,03/04/2012,73607,-16.29,REVENUE,Redacted Personal Information,Redacted Personal Information
North East Lincolnshire Council,http://statistics.data.gov.uk/id/local-authority/00FC,People And Communities,Vulnerable Young People,Placement & Support,Other Agencies,Child Care Payments,PJ104,03/04/2012,73607,-16.29,REVENUE,Redacted Personal Information,Redacted Personal Information
North East Lincolnshire Council,http://statistics.data.gov.uk/id/local-authority/00FC,People And Communities,Vulnerable Young People,Through Care & Disability,Car Allowances,Travel - Employees,JF101,27/04/2012,109022,-14.30,REVENUE,INTERNET STATIONERS LTD,104909
North East Lincolnshire Council,http://statistics.data.gov.uk/id/local-authority/00FC,People And Communities,Vulnerable Young People,Placement & Support,Other Agencies,Child Care Payments,PJ104,24/04/2012,76910,-12.29,REVENUE,Redacted Personal Information,Redacted Personal Information
North East Lincolnshire Council,http://statistics.data.gov.uk/id/local-authority/00FC,People And Communities,Vulnerable Young People,Placement & Support,Other Agencies,Child Care Payments,PJ104,30/04/2012,78843,-10.57,REVENUE,Redacted Personal Information,Redacted Personal Information
North East Lincolnshire Council,http://statistics.data.gov.uk/id/local-authority/00FC,People And Communities,Vulnerable Young People,Placement & Support,Other Agencies,Child Care Payments,PJ104,30/04/2012,78735,-10.00,REVENUE,Redacted Personal Information,Redacted Personal Information
North East Lincolnshire Council,http://statistics.data.gov.uk/id/local-authority/00FC,People And Communities,Vulnerable Young People,Placement & Support,Other Agencies,Child Care Payments,PJ104,03/04/2012,73607,-8.14,REVENUE,Redacted Personal Information,Redacted Personal Information
North East Lincolnshire Council,http://statistics.data.gov.uk/id/local-authority/00FC,People And Communities,Vulnerable Young People,Placement & Support,Other Agencies,Child Care Payments,PJ104,24/04/2012,76924,-1.14,REVENUE,Redacted Personal Information,Redacted Personal Information
North East Lincolnshire Council,http://statistics.data.gov.uk/id/local-authority/00FC,People And Communities,Vulnerable Young People,Placement & Support,Other Agencies,Setting Up,PJ111,24/04/2012,77040,500.00,REVENUE,Redacted Personal Information,Redacted Personal Information
North East Lincolnshire Council,http://statistics.data.gov.uk/id/local-authority/00FC,People And Communities,Vulnerable Young People,Children'S Workforce Developme,Indirect Employee Expenses,Staff Training,EB122,03/04/2012,103845,500.00,REVENUE,COMPASS-NE LTD,109535
North East Lincolnshire Council,http://statistics.data.gov.uk/id/local-authority/00FC,People And Communities,Vulnerable Young People,Through Care & Disability,Other Agencies,Leaving Care Grant,PJ116,30/04/2012,78812,525.00,REVENUE,Redacted Personal Information,Redacted Personal Information
North East Lincolnshire Council,http://statistics.data.gov.uk/id/local-authority/00FC,People And Communities,Vulnerable Young People,Placement & Support,Rep Alterations Maint Building,Buildings - Repairs And Maint,GA102,19/04/2012,107144,550.00,REVENUE,PORTLOCK PAINTING,101144
North East Lincolnshire Council,http://statistics.data.gov.uk/id/local-authority/00FC,People And Communities,Vulnerable Young People,Additional & Enhanced Needs,Direct Employee Expenses,Agency Staff,EA105,24/04/2012,108209,555.50,REVENUE,RANDSTAD EDUCATION LTD,102465
North East Lincolnshire Council,http://statistics.data.gov.uk/id/local-authority/00FC,People And Communities,Vulnerable Young People,Additional & Enhanced Needs,Direct Employee Expenses,Agency Staff,EA105,24/04/2012,108224,555.50,REVENUE,RANDSTAD EDUCATION LTD,102465
North East Lincolnshire Council,http://statistics.data.gov.uk/id/local-authority/00FC,People And Communities,Vulnerable Young People,Additional & Enhanced Needs,Contributions To Provisions,Contributions - Other,LK103,11/04/2012,105266,555.50,REVENUE,RANDSTAD EDUCATION LTD,102465
North East Lincolnshire Council,http://statistics.data.gov.uk/id/local-authority/00FC,People And Communities,Vulnerable Young People,Additional & Enhanced Needs,Contributions To Provisions,Contributions - Other,LK103,11/04/2012,105267,555.50,REVENUE,RANDSTAD EDUCATION LTD,102465
North East Lincolnshire Council,http://statistics.data.gov.uk/id/local-authority/00FC,People And Communities,Vulnerable Young People,Additional & Enhanced Needs,Contributions To Provisions,Contributions - Other,LK103,11/04/2012,105268,555.50,REVENUE,RANDSTAD EDUCATION LTD,102465
North East Lincolnshire Council,http://statistics.data.gov.uk/id/local-authority/00FC,People And Communities,Vulnerable Young People,Additional & Enhanced Needs,Contributions To Provisions,Contributions - Other,LK103,11/04/2012,105269,555.50,REVENUE,RANDSTAD EDUCATION LTD,102465
North East Lincolnshire Council,http://statistics.data.gov.uk/id/local-authority/00FC,People And Communities,Vulnerable Young People,Placement & Support,Catering,Provisions,LB101,30/04/2012,109374,Redacted,REVENUE,PETTY CASH,Redacted
North East Lincolnshire Council,http://statistics.data.gov.uk/id/local-authority/00FC,People And Communities,Vulnerable Young People,Strategic Management,Indirect Employee Expenses,Allowances - Employees,EB110,23/04/2012,107716,567.00,REVENUE,GRIMSBY & DISTRICT TEACHERS ASSOCIATION,107358
North East Lincolnshire Council,http://statistics.data.gov.uk/id/local-authority/00FC,People And Communities,Vulnerable Young People,Safeguarding,Indirect Employee Expenses,Staff Training,EB122,02/04/2012,103869,568.90,REVENUE,LYRECO UK LIMITED,101120
North East Lincolnshire Council,http://statistics.data.gov.uk/id/local-authority/00FC,People And Communities,Vulnerable Young People,Commissioning & Performance,Equip / Furniture / Materials,Equipment - Purchase,LA101,02/04/2012,103902,575.00,REVENUE,LYRECO UK LIMITED,101120
North East Lincolnshire Council,http://statistics.data.gov.uk/id/local-authority/00FC,People And Communities,Vulnerable Young People,Placement & Support,Other Agencies,Setting Up,PJ111,30/04/2012,78888,580.00,REVENUE,Redacted Personal Information,Redacted Personal Information
North East Lincolnshire Council,http://statistics.data.gov.uk/id/local-authority/00FC,People And Communities,Vulnerable Young People,Safeguarding,Indirect Employee Expenses,Staff Training,EB122,03/04/2012,104055,598.00,REVENUE,REED BUSINESS INFORMATION LTD,104954
North East Lincolnshire Council,http://statistics.data.gov.uk/id/local-authority/00FC,People And Communities,Vulnerable Young People,Safeguarding,Miscellaneous Expenses,Legal Fees - General,LL103,17/04/2012,106304,Redacted Commercially Sensitive,REVENUE,INDEPENDENT FAMILY SERVICE,104410
North East Lincolnshire Council,http://statistics.data.gov.uk/id/local-authority/00FC,People And Communities,Vulnerable Young People,Safeguarding,Miscellaneous Expenses,Legal Fees - General,LL103,25/04/2012,108561,Redacted Commercially Sensitive,REVENUE,INDEPENDENT FAMILY SERVICE,104410
North East Lincolnshire Council,http://statistics.data.gov.uk/id/local-authority/00FC,People And Communities,Vulnerable Young People,Sen/Inclusion,Contributions To Provisions,Contributions - Other,LK103,24/04/2012,108188,599.92,REVENUE,DSG RETAIL LTD,101791
North East Lincolnshire Council,http://statistics.data.gov.uk/id/local-authority/00FC,People And Communities,Vulnerable Young People,Through Care & Disability,Other Agencies,Housing Benefit,PJ134,30/04/2012,78780,600.00,REVENUE,Redacted Personal Information,Redacted Personal Information
North East Lincolnshire Council,http://statistics.data.gov.uk/id/local-authority/00FC,People And Communities,Vulnerable Young People,Through Care & Disability,Other Agencies,Leaving Care Grant,PJ116,30/04/2012,78895,600.00,REVENUE,Redacted Personal Information,Redacted Personal Information
North East Lincolnshire Council,http://statistics.data.gov.uk/id/local-authority/00FC,People And Communities,Vulnerable Young People,Through Care & Disability,Other Agencies,Personal Allowance,PJ122,25/04/2012,108470,602.45,REVENUE,16+ SERVICES,100943
North East Lincolnshire Council,http://statistics.data.gov.uk/id/local-authority/00FC,People And Communities,Vulnerable Young People,Placement & Support,Grants And Subscriptions,Subscriptions,LJ101,25/04/2012,108485,606.48,REVENUE,BRITISH AGENCIES FOR,100662
North East Lincolnshire Council,http://statistics.data.gov.uk/id/local-authority/00FC,People And Communities,Vulnerable Young People,Safeguarding,Direct Transport Costs,Voluntary Drivers Expenses,JA107,30/04/2012,109350,626.40,REVENUE,Redacted Personal Information,Redacted Personal Information
North East Lincolnshire Council,http://statistics.data.gov.uk/id/local-authority/00FC,People And Communities,Vulnerable Young People,Through Care & Disability,Consultancy,Consultancy - Curriculum,PL102,13/04/2012,105732,650.00,REVENUE,ENQUIRE LTD,102469
North East Lincolnshire Council,http://statistics.data.gov.uk/id/local-authority/00FC,People And Communities,Vulnerable Young People,Sen/Inclusion,Contributions To Provisions,Contributions - Other,LK103,13/04/2012,105416,665.00,REVENUE,EDUCATION LINCS LTD,101059
North East Lincolnshire Council,http://statistics.data.gov.uk/id/local-authority/00FC,People And Communities,Vulnerable Young People,Placement & Support,Print Stationery / Gen Off Exp,Advertising,LD104,27/04/2012,108915,665.00,REVENUE,ADOPTION UK,101206
North East Lincolnshire Council,http://statistics.data.gov.uk/id/local-authority/00FC,People And Communities,Vulnerable Young People,School Access Governor Student,Contract Hire-Operating Leases,Vehicles - Contract Hire,JC101,23/04/2012,107760,Redacted Commercially Sensitive,REVENUE,COUNTRY CABS,101999
North East Lincolnshire Council,http://statistics.data.gov.uk/id/local-authority/00FC,People And Communities,Vulnerable Young People,Childrens Trust,Direct Employee Expenses,Agency Staff,EA105,27/04/2012,109024,693.42,REVENUE,MATRIX SCM LTD,108117
North East Lincolnshire Council,http://statistics.data.gov.uk/id/local-authority/00FC,People And Communities,Vulnerable Young People,Additional & Enhanced Needs,Other Local Authorities,Third Pp - Other Local Auth,PC101,11/04/2012,105262,695.00,REVENUE,THE CAMBRIDGE PARK ACADEMY,107472
North East Lincolnshire Council,http://statistics.data.gov.uk/id/local-authority/00FC,People And Communities,Vulnerable Young People,Placement & Support,Grants And Subscriptions,Subscriptions,LJ101,30/04/2012,109249,703.40,REVENUE,THE FOSTERING NETWORK,103725
North East Lincolnshire Council,http://statistics.data.gov.uk/id/local-authority/00FC,People And Communities,Vulnerable Young People,Placement & Support,Other Agencies,Special Carer Payments,PJ128,03/04/2012,73594,704.54,REVENUE,Redacted Personal Information,Redacted Personal Information
North East Lincolnshire Council,http://statistics.data.gov.uk/id/local-authority/00FC,People And Communities,Vulnerable Young People,Placement & Support,Other Agencies,Special Carer Payments,PJ128,03/04/2012,73595,704.54,REVENUE,Redacted Personal Information,Redacted Personal Information
North East Lincolnshire Council,http://statistics.data.gov.uk/id/local-authority/00FC,People And Communities,Vulnerable Young People,Placement & Support,Other Agencies,Special Carer Payments,PJ128,03/04/2012,73687,704.54,REVENUE,Redacted Personal Information,Redacted Personal Information
North East Lincolnshire Council,http://statistics.data.gov.uk/id/local-authority/00FC,People And Communities,Vulnerable Young People,Placement & Support,Other Agencies,Special Carer Payments,PJ128,03/04/2012,73598,704.54,REVENUE,Redacted Personal Information,Redacted Personal Information
North East Lincolnshire Council,http://statistics.data.gov.uk/id/local-authority/00FC,People And Communities,Vulnerable Young People,Placement & Support,Other Agencies,Special Carer Payments,PJ128,03/04/2012,73576,704.54,REVENUE,Redacted Personal Information,Redacted Personal Information
North East Lincolnshire Council,http://statistics.data.gov.uk/id/local-authority/00FC,People And Communities,Vulnerable Young People,Placement & Support,Other Agencies,Special Carer Payments,PJ128,10/04/2012,74221,704.54,REVENUE,Redacted Personal Information,Redacted Personal Information
North East Lincolnshire Council,http://statistics.data.gov.uk/id/local-authority/00FC,People And Communities,Vulnerable Young People,Placement & Support,Other Agencies,Special Carer Payments,PJ128,10/04/2012,74238,704.54,REVENUE,Redacted Personal Information,Redacted Personal Information
North East Lincolnshire Council,http://statistics.data.gov.uk/id/local-authority/00FC,People And Communities,Vulnerable Young People,Placement & Support,Other Agencies,Special Carer Payments,PJ128,10/04/2012,74239,704.54,REVENUE,Redacted Personal Information,Redacted Personal Information
North East Lincolnshire Council,http://statistics.data.gov.uk/id/local-authority/00FC,People And Communities,Vulnerable Young People,Placement & Support,Other Agencies,Special Carer Payments,PJ128,10/04/2012,74243,704.54,REVENUE,Redacted Personal Information,Redacted Personal Information
North East Lincolnshire Council,http://statistics.data.gov.uk/id/local-authority/00FC,People And Communities,Vulnerable Young People,Placement & Support,Other Agencies,Special Carer Payments,PJ128,10/04/2012,74332,704.54,REVENUE,Redacted Personal Information,Redacted Personal Information
North East Lincolnshire Council,http://statistics.data.gov.uk/id/local-authority/00FC,People And Communities,Vulnerable Young People,Placement & Support,Other Agencies,Special Carer Payments,PJ128,17/04/2012,75490,704.54,REVENUE,Redacted Personal Information,Redacted Personal Information
North East Lincolnshire Council,http://statistics.data.gov.uk/id/local-authority/00FC,People And Communities,Vulnerable Young People,Placement & Support,Other Agencies,Special Carer Payments,PJ128,17/04/2012,75506,704.54,REVENUE,Redacted Personal Information,Redacted Personal Information
North East Lincolnshire Council,http://statistics.data.gov.uk/id/local-authority/00FC,People And Communities,Vulnerable Young People,Placement & Support,Other Agencies,Special Carer Payments,PJ128,17/04/2012,75507,704.54,REVENUE,Redacted Personal Information,Redacted Personal Information
North East Lincolnshire Council,http://statistics.data.gov.uk/id/local-authority/00FC,People And Communities,Vulnerable Young People,Placement & Support,Other Agencies,Special Carer Payments,PJ128,17/04/2012,75510,704.54,REVENUE,Redacted Personal Information,Redacted Personal Information
North East Lincolnshire Council,http://statistics.data.gov.uk/id/local-authority/00FC,People And Communities,Vulnerable Young People,Placement & Support,Other Agencies,Special Carer Payments,PJ128,17/04/2012,75598,704.54,REVENUE,Redacted Personal Information,Redacted Personal Information
North East Lincolnshire Council,http://statistics.data.gov.uk/id/local-authority/00FC,People And Communities,Vulnerable Young People,Placement & Support,Other Agencies,Special Carer Payments,PJ128,24/04/2012,76896,704.54,REVENUE,Redacted Personal Information,Redacted Personal Information
North East Lincolnshire Council,http://statistics.data.gov.uk/id/local-authority/00FC,People And Communities,Vulnerable Young People,Placement & Support,Other Agencies,Special Carer Payments,PJ128,24/04/2012,76910,704.54,REVENUE,Redacted Personal Information,Redacted Personal Information
North East Lincolnshire Council,http://statistics.data.gov.uk/id/local-authority/00FC,People And Communities,Vulnerable Young People,Placement & Support,Other Agencies,Special Carer Payments,PJ128,24/04/2012,76926,704.54,REVENUE,Redacted Personal Information,Redacted Personal Information
North East Lincolnshire Council,http://statistics.data.gov.uk/id/local-authority/00FC,People And Communities,Vulnerable Young People,Placement & Support,Other Agencies,Special Carer Payments,PJ128,24/04/2012,76927,704.54,REVENUE,Redacted Personal Information,Redacted Personal Information
North East Lincolnshire Council,http://statistics.data.gov.uk/id/local-authority/00FC,People And Communities,Vulnerable Young People,Placement & Support,Other Agencies,Special Carer Payments,PJ128,24/04/2012,76930,704.54,REVENUE,Redacted Personal Information,Redacted Personal Information
North East Lincolnshire Council,http://statistics.data.gov.uk/id/local-authority/00FC,People And Communities,Vulnerable Young People,Placement & Support,Other Agencies,Special Carer Payments,PJ128,24/04/2012,77017,704.54,REVENUE,Redacted Personal Information,Redacted Personal Information
North East Lincolnshire Council,http://statistics.data.gov.uk/id/local-authority/00FC,People And Communities,Vulnerable Young People,Placement & Support,Other Agencies,Special Carer Payments,PJ128,30/04/2012,78742,704.54,REVENUE,Redacted Personal Information,Redacted Personal Information
North East Lincolnshire Council,http://statistics.data.gov.uk/id/local-authority/00FC,People And Communities,Vulnerable Young People,Placement & Support,Other Agencies,Special Carer Payments,PJ128,30/04/2012,78757,704.54,REVENUE,Redacted Personal Information,Redacted Personal Information
North East Lincolnshire Council,http://statistics.data.gov.uk/id/local-authority/00FC,People And Communities,Vulnerable Young People,Placement & Support,Other Agencies,Special Carer Payments,PJ128,30/04/2012,78773,704.54,REVENUE,Redacted Personal Information,Redacted Personal Information
North East Lincolnshire Council,http://statistics.data.gov.uk/id/local-authority/00FC,People And Communities,Vulnerable Young People,Placement & Support,Other Agencies,Special Carer Payments,PJ128,30/04/2012,78774,704.54,REVENUE,Redacted Personal Information,Redacted Personal Information
North East Lincolnshire Council,http://statistics.data.gov.uk/id/local-authority/00FC,People And Communities,Vulnerable Young People,Placement & Support,Other Agencies,Special Carer Payments,PJ128,30/04/2012,78777,704.54,REVENUE,Redacted Personal Information,Redacted Personal Information
North East Lincolnshire Council,http://statistics.data.gov.uk/id/local-authority/00FC,People And Communities,Vulnerable Young People,Safeguarding,Indirect Employee Expenses,Staff Training,EB122,13/04/2012,105741,720.00,REVENUE,BRITISH ASSOCIATION FOR THE STUDY &,104428
North East Lincolnshire Council,http://statistics.data.gov.uk/id/local-authority/00FC,People And Communities,Vulnerable Young People,Child Care Performance & Ict,Direct Employee Expenses,Agency Staff,EA105,17/04/2012,106102,745.92,REVENUE,MATRIX SCM LTD,108117
North East Lincolnshire Council,http://statistics.data.gov.uk/id/local-authority/00FC,People And Communities,Vulnerable Young People,Through Care & Disability,Other Agencies,Incentive Payment,PJ124,27/04/2012,109026,787.00,REVENUE,16+ SERVICES,100943
North East Lincolnshire Council,http://statistics.data.gov.uk/id/local-authority/00FC,People And Communities,Vulnerable Young People,School Access Governor Student,Contract Hire-Operating Leases,Vehicles - Contract Hire,JC101,13/04/2012,105629,Redacted Commercially Sensitive,REVENUE,AMVALE LIMITED,101030
North East Lincolnshire Council,http://statistics.data.gov.uk/id/local-authority/00FC,People And Communities,Vulnerable Young People,School Access Governor Student,Contract Hire-Operating Leases,Vehicles - Contract Hire,JC101,13/04/2012,105623,Redacted Commercially Sensitive,REVENUE,AMVALE LIMITED,101030
North East Lincolnshire Council,http://statistics.data.gov.uk/id/local-authority/00FC,People And Communities,Vulnerable Young People,School Access Governor Student,Contract Hire-Operating Leases,Vehicles - Contract Hire,JC101,13/04/2012,105627,Redacted Commercially Sensitive,REVENUE,AMVALE LIMITED,101030
North East Lincolnshire Council,http://statistics.data.gov.uk/id/local-authority/00FC,People And Communities,Vulnerable Young People,Strategic Management,Indirect Employee Expenses,Allowances - Employees,EB110,17/04/2012,106035,810.00,REVENUE,NASUWT G76 GRIMSBY & DISTRICT,107363
North East Lincolnshire Council,http://statistics.data.gov.uk/id/local-authority/00FC,People And Communities,Vulnerable Young People,Through Care & Disability,Other Agencies,Personal Allowance,PJ122,27/04/2012,109026,818.63,REVENUE,16+ SERVICES,100943
North East Lincolnshire Council,http://statistics.data.gov.uk/id/local-authority/00FC,People And Communities,Vulnerable Young People,Additional & Enhanced Needs,Indirect Employee Expenses,Staff Training,EB122,11/04/2012,105144,824.16,REVENUE,OUSBA,109733
North East Lincolnshire Council,http://statistics.data.gov.uk/id/local-authority/00FC,People And Communities,Vulnerable Young People,Placement & Support,Direct Employee Expenses,Agency Staff,EA105,27/04/2012,109024,942.72,REVENUE,MATRIX SCM LTD,108117
North East Lincolnshire Council,http://statistics.data.gov.uk/id/local-authority/00FC,People And Communities,Vulnerable Young People,Placement & Support,Equip / Furniture / Materials,Equipment - Purchase,LA101,23/04/2012,107581,944.00,REVENUE,N-FORCE SECURITY SOLUTIONS LTD,105280
North East Lincolnshire Council,http://statistics.data.gov.uk/id/local-authority/00FC,People And Communities,Vulnerable Young People,Strategic Management,Indirect Employee Expenses,Allowances - Employees,EB110,17/04/2012,106034,945.00,REVENUE,NASUWT G76 GRIMSBY & DISTRICT,107363
North East Lincolnshire Council,http://statistics.data.gov.uk/id/local-authority/00FC,People And Communities,Vulnerable Young People,School Access Governor Student,Contract Hire-Operating Leases,Vehicles - Contract Hire,JC101,20/04/2012,107508,Redacted Commercially Sensitive,REVENUE,REVELLS TAXIS (ED/SOC SERV),100559
North East Lincolnshire Council,http://statistics.data.gov.uk/id/local-authority/00FC,People And Communities,Vulnerable Young People,Safeguarding,Miscellaneous Expenses,Legal Fees - General,LL103,23/04/2012,107606,Redacted Commercially Sensitive,REVENUE,CENTRE FOR PSCHOLOGY LIMITED,108118
North East Lincolnshire Council,http://statistics.data.gov.uk/id/local-authority/00FC,People And Communities,Vulnerable Young People,Serco Contract,Consultancy,Consultancy,PL101,20/04/2012,107463,"1,000.00",REVENUE,ANGELA DUNKERLEY,103334
North East Lincolnshire Council,http://statistics.data.gov.uk/id/local-authority/00FC,People And Communities,Vulnerable Young People,Placement & Support,Direct Employee Expenses,Agency Staff,EA105,17/04/2012,106247,"1,078.14",REVENUE,MATRIX SCM LTD,108117
North East Lincolnshire Council,http://statistics.data.gov.uk/id/local-authority/00FC,People And Communities,Vulnerable Young People,Standards & Effectiveness,Communications And Computing,Computer H/Ware - Purchases,LF105,03/04/2012,103877,"1,100.00",REVENUE,GAIA TECHNOLOGIES PLC,102572
North East Lincolnshire Council,http://statistics.data.gov.uk/id/local-authority/00FC,People And Communities,Vulnerable Young People,Safeguarding,Direct Transport Costs,Voluntary Drivers Expenses,JA107,30/04/2012,109353,"1,123.34",REVENUE,Redacted Personal Information,Redacted Personal Information
North East Lincolnshire Council,http://statistics.data.gov.uk/id/local-authority/00FC,People And Communities,Vulnerable Young People,Placement & Support,Grants And Subscriptions,Subscriptions,LJ101,30/04/2012,109266,"1,125.00",REVENUE,ADOPTION UK,101206
North East Lincolnshire Council,http://statistics.data.gov.uk/id/local-authority/00FC,People And Communities,Vulnerable Young People,Placement & Support,Miscellaneous Expenses,Other Expenses General,LL119,13/04/2012,105425,"1,154.12",REVENUE,NSPCC,101307
North East Lincolnshire Council,http://statistics.data.gov.uk/id/local-authority/00FC,People And Communities,Vulnerable Young People,Sen/Inclusion,Direct Employee Expenses,Pay Teachers Supply Cover,EA106,13/04/2012,105594,"1,154.70",REVENUE,TEACHING PERSONNEL LTD,101305
North East Lincolnshire Council,http://statistics.data.gov.uk/id/local-authority/00FC,People And Communities,Vulnerable Young People,School Access Governor Student,Contract Hire-Operating Leases,Vehicles - Contract Hire,JC101,13/04/2012,105625,Redacted Commercially Sensitive,REVENUE,NORTH LINCOLNSHIRE COUNCIL,101186
North East Lincolnshire Council,http://statistics.data.gov.uk/id/local-authority/00FC,People And Communities,Vulnerable Young People,Placement & Support,Private Contractors,Third Party Prov - Private,PH101,27/04/2012,109062,"1,194.00",REVENUE,FAITH IN FAMILIES,108346
North East Lincolnshire Council,http://statistics.data.gov.uk/id/local-authority/00FC,People And Communities,Vulnerable Young People,Children'S Workforce Developme,Indirect Employee Expenses,Staff Training,EB122,03/04/2012,73451,"1,250.00",REVENUE,PENELOPE BURTON,109375
North East Lincolnshire Council,http://statistics.data.gov.uk/id/local-authority/00FC,People And Communities,Vulnerable Young People,Children'S Workforce Developme,Indirect Employee Expenses,Staff Training,EB122,03/04/2012,73452,"1,250.00",REVENUE,DANIELLE RYDER,109373
North East Lincolnshire Council,http://statistics.data.gov.uk/id/local-authority/00FC,People And Communities,Vulnerable Young People,Children'S Workforce Developme,Indirect Employee Expenses,Staff Training,EB122,27/04/2012,77948,"1,250.00",REVENUE,DANIELLE RYDER,109373
North East Lincolnshire Council,http://statistics.data.gov.uk/id/local-authority/00FC,People And Communities,Vulnerable Young People,Children'S Workforce Developme,Indirect Employee Expenses,Staff Training,EB122,27/04/2012,77949,"1,250.00",REVENUE,SIMONE KERWICK,109374
North East Lincolnshire Council,http://statistics.data.gov.uk/id/local-authority/00FC,People And Communities,Vulnerable Young People,Children'S Workforce Developme,Indirect Employee Expenses,Staff Training,EB122,27/04/2012,77950,"1,250.00",REVENUE,PENELOPE BURTON,109375
North East Lincolnshire Council,http://statistics.data.gov.uk/id/local-authority/00FC,People And Communities,Vulnerable Young People,Children'S Workforce Developme,Indirect Employee Expenses,Staff Training,EB122,02/04/2012,73454,"1,250.00",REVENUE,SIMONE KERWICK,109374
North East Lincolnshire Council,http://statistics.data.gov.uk/id/local-authority/00FC,People And Communities,Vulnerable Young People,Additional & Enhanced Needs,Consultancy,Consultancy,PL101,27/04/2012,108920,"1,300.00",REVENUE,SUE SMITH,102975
North East Lincolnshire Council,http://statistics.data.gov.uk/id/local-authority/00FC,People And Communities,Vulnerable Young People,School Access Governor Student,Miscellaneous Expenses,Legal Fees - General,LL103,24/04/2012,108108,Redacted Commercially Sensitive,REVENUE,WILKIN CHAPMAN SOLICITORS,100948
North East Lincolnshire Council,http://statistics.data.gov.uk/id/local-authority/00FC,People And Communities,Vulnerable Young People,Children'S Workforce Developme,Indirect Employee Expenses,Staff Training,EB122,20/04/2012,107550,"1,435.00",REVENUE,UNIVERSITY OF LINCOLN,101299
North East Lincolnshire Council,http://statistics.data.gov.uk/id/local-authority/00FC,People And Communities,Vulnerable Young People,Child Care Performance & Ict,Direct Employee Expenses,Agency Staff,EA105,27/04/2012,109024,"1,504.90",REVENUE,MATRIX SCM LTD,108117
North East Lincolnshire Council,http://statistics.data.gov.uk/id/local-authority/00FC,People And Communities,Vulnerable Young People,Additional & Enhanced Needs,Contributions To Provisions,Contributions - Other,LK103,13/04/2012,105419,"1,520.00",REVENUE,DKM ASSESSMENT & VERIFICATION LTD,101643
North East Lincolnshire Council,http://statistics.data.gov.uk/id/local-authority/00FC,People And Communities,Vulnerable Young People,Sen/Inclusion,Communications And Computing,Computer H/Ware - Purchases,LF105,13/04/2012,105595,"1,520.00",REVENUE,EDUCATION LINCS LTD,101059
North East Lincolnshire Council,http://statistics.data.gov.uk/id/local-authority/00FC,People And Communities,Vulnerable Young People,Placement & Support,Grants And Subscriptions,Subscriptions,LJ101,30/04/2012,109290,"1,549.00",REVENUE,OFSTED,101836
North East Lincolnshire Council,http://statistics.data.gov.uk/id/local-authority/00FC,People And Communities,Vulnerable Young People,Placement & Support,Other Agencies,Additional Cost,PJ114,30/04/2012,109449,"1,550.00",REVENUE,FLEXI-E-VOUCHERS LTD,106552
North East Lincolnshire Council,http://statistics.data.gov.uk/id/local-authority/00FC,People And Communities,Vulnerable Young People,Commissioning & Performance,Miscellaneous Expenses,Other Expenses General,LL119,25/04/2012,108550,Redacted Commercially Sensitive,REVENUE,CYGNET CATERING,108880
North East Lincolnshire Council,http://statistics.data.gov.uk/id/local-authority/00FC,People And Communities,Vulnerable Young People,Placement & Support,Equip / Furniture / Materials,Equipment - Purchase,LA101,19/04/2012,107151,"1,685.00",REVENUE,ARJO MED AB LTD,103268
North East Lincolnshire Council,http://statistics.data.gov.uk/id/local-authority/00FC,People And Communities,Vulnerable Young People,Safeguarding,Miscellaneous Expenses,Legal Fees - General,LL103,23/04/2012,107674,Redacted Commercially Sensitive,REVENUE,MR DAVID LOCK,108427
North East Lincolnshire Council,http://statistics.data.gov.uk/id/local-authority/00FC,People And Communities,Vulnerable Young People,Additional & Enhanced Needs,Other Local Authorities,Third Pp - Other Local Auth,PC101,16/04/2012,105415,"1,788.19",REVENUE,HUMBERSTON PARK SPECIAL SCHOOL,107911
North East Lincolnshire Council,http://statistics.data.gov.uk/id/local-authority/00FC,People And Communities,Vulnerable Young People,Children'S Workforce Developme,Indirect Employee Expenses,Staff Training,EB122,03/04/2012,103829,"1,800.00",REVENUE,ELIZABETH WRIGHT,107119
North East Lincolnshire Council,http://statistics.data.gov.uk/id/local-authority/00FC,People And Communities,Vulnerable Young People,School Access Governor Student,Contract Hire-Operating Leases,Vehicles - Contract Hire,JC101,18/04/2012,106698,Redacted Commercially Sensitive,REVENUE,TREV'S MINIBUS,101098
North East Lincolnshire Council,http://statistics.data.gov.uk/id/local-authority/00FC,People And Communities,Vulnerable Young People,Placement & Support,Miscellaneous Expenses,Other Expenses General,LL119,13/04/2012,105424,"1,961.79",REVENUE,NSPCC,101307
North East Lincolnshire Council,http://statistics.data.gov.uk/id/local-authority/00FC,People And Communities,Vulnerable Young People,Additional & Enhanced Needs,Contributions To Provisions,Contributions - Other,LK103,13/04/2012,105418,"2,090.00",REVENUE,DKM ASSESSMENT & VERIFICATION LTD,101643
North East Lincolnshire Council,http://statistics.data.gov.uk/id/local-authority/00FC,People And Communities,Vulnerable Young People,Child Care Performance & Ict,Direct Employee Expenses,Agency Staff,EA105,05/04/2012,104655,"2,166.89",REVENUE,MATRIX SCM LTD,108117
North East Lincolnshire Council,http://statistics.data.gov.uk/id/local-authority/00FC,People And Communities,Vulnerable Young People,Additional & Enhanced Needs,Other Local Authorities,Third Pp - Other Local Auth,PC101,30/04/2012,108924,"2,250.00",REVENUE,DEMETER HOUSE (ENGLAND) LTD,109683
North East Lincolnshire Council,http://statistics.data.gov.uk/id/local-authority/00FC,People And Communities,Vulnerable Young People,Placement & Support,Private Contractors,Third Party Prov - Private,PH101,19/04/2012,107228,750.00,REVENUE,FAMILIES FOR CHILDREN,109586
North East Lincolnshire Council,http://statistics.data.gov.uk/id/local-authority/00FC,People And Communities,Vulnerable Young People,Placement & Support,Grants And Subscriptions,Subscriptions,LJ101,27/04/2012,109070,"2,299.05",REVENUE,BRITISH AGENCIES FOR,100662
North East Lincolnshire Council,http://statistics.data.gov.uk/id/local-authority/00FC,People And Communities,Vulnerable Young People,Placement & Support,Grants And Subscriptions,Subscriptions,LJ101,30/04/2012,109272,"2,421.00",REVENUE,OFSTED,101836
North East Lincolnshire Council,http://statistics.data.gov.uk/id/local-authority/00FC,People And Communities,Vulnerable Young People,School Access Governor Student,Contract Hire-Operating Leases,Vehicles - Contract Hire,JC101,23/04/2012,107557,Redacted Commercially Sensitive,REVENUE,E M EMMERSON,100576
North East Lincolnshire Council,http://statistics.data.gov.uk/id/local-authority/00FC,People And Communities,Vulnerable Young People,Children'S Workforce Developme,Indirect Employee Expenses,Staff Training,EB122,05/04/2012,104597,"2,500.00",REVENUE,THE UNIVERSITY OF YORK,101488
North East Lincolnshire Council,http://statistics.data.gov.uk/id/local-authority/00FC,People And Communities,Vulnerable Young People,Additional & Enhanced Needs,Consultancy,Consultancy,PL101,11/04/2012,105265,"2,570.96",REVENUE,SUE SMITH,102975
North East Lincolnshire Council,http://statistics.data.gov.uk/id/local-authority/00FC,People And Communities,Vulnerable Young People,Placement & Support,Other Agencies,Health Charges,PJ131,19/04/2012,107227,"2,820.00",REVENUE,CHILD AND FAMILY PLAY THERAPY LTD,107832
North East Lincolnshire Council,http://statistics.data.gov.uk/id/local-authority/00FC,People And Communities,Vulnerable Young People,Placement & Support,Grants And Subscriptions,Subscriptions,LJ101,18/04/2012,106701,"3,000.00",REVENUE,NORTH LINCOLNSHIRE COUNCIL,101186
North East Lincolnshire Council,http://statistics.data.gov.uk/id/local-authority/00FC,People And Communities,Vulnerable Young People,Through Care & Disability,Private Contractors,Third Party Prov - Private,PH101,03/04/2012,103777,"10,000.00",REVENUE,FORESIGHT NORTH EAST LINCOLNSHIRE,102869
North East Lincolnshire Council,http://statistics.data.gov.uk/id/local-authority/00FC,People And Communities,Vulnerable Young People,School Access Governor Student,Contract Hire-Operating Leases,Vehicles - Contract Hire,JC101,18/04/2012,106648,Redacted Commercially Sensitive,REVENUE,E M EMMERSON,100576
North East Lincolnshire Council,http://statistics.data.gov.uk/id/local-authority/00FC,People And Communities,Vulnerable Young People,Sen/Inclusion,Other Local Authorities,Third Pp - Other Local Auth,PC101,03/04/2012,104240,"3,684.17",REVENUE,NORTHERN LINCOLNSHIRE & GOOLE HOSPITALS,101242
North East Lincolnshire Council,http://statistics.data.gov.uk/id/local-authority/00FC,People And Communities,Vulnerable Young People,Sen/Inclusion,Other Local Authorities,Third Pp - Other Local Auth,PC101,03/04/2012,104241,"3,684.17",REVENUE,NORTHERN LINCOLNSHIRE & GOOLE HOSPITALS,101242
North East Lincolnshire Council,http://statistics.data.gov.uk/id/local-authority/00FC,People And Communities,Vulnerable Young People,Standards & Effectiveness,Communications And Computing,Computer H/Ware - Purchases,LF105,23/04/2012,107890,"3,720.98",REVENUE,BRITISH TELECOMMUNICATIONS PLC,100974
North East Lincolnshire Council,http://statistics.data.gov.uk/id/local-authority/00FC,People And Communities,Vulnerable Young People,Safeguarding,Indirect Employee Expenses,Staff Training,EB122,30/04/2012,109088,"3,930.00",REVENUE,G-MAP SERVICES,109932
North East Lincolnshire Council,http://statistics.data.gov.uk/id/local-authority/00FC,People And Communities,Vulnerable Young People,School Access Governor Student,Miscellaneous Expenses,Legal Fees - General,LL103,17/04/2012,75442,Redacted Commercially Sensitive,REVENUE,Redacted Personal Information,Redacted Personal Information
North East Lincolnshire Council,http://statistics.data.gov.uk/id/local-authority/00FC,People And Communities,Vulnerable Young People,Additional & Enhanced Needs,Other Local Authorities,Third Pp - Other Local Auth,PC101,11/04/2012,105263,"4,700.00",REVENUE,THE CAMBRIDGE PARK ACADEMY,107472
North East Lincolnshire Council,http://statistics.data.gov.uk/id/local-authority/00FC,People And Communities,Vulnerable Young People,Sen/Inclusion,Contributions To Provisions,Contributions - Other,LK103,13/04/2012,105417,"4,759.00",REVENUE,EDUCATION LINCS LTD,101059
North East Lincolnshire Council,http://statistics.data.gov.uk/id/local-authority/00FC,People And Communities,Vulnerable Young People,Additional & Enhanced Needs,Other Local Authorities,Third Pp - Other Local Auth,PC101,24/04/2012,108207,"4,980.00",REVENUE,RAINBOW,102123
North East Lincolnshire Council,http://statistics.data.gov.uk/id/local-authority/00FC,People And Communities,Vulnerable Young People,Additional & Enhanced Needs,Other Local Authorities,Third Pp - Other Local Auth,PC101,11/04/2012,105147,"5,514.94",REVENUE,HUMBERSTON PARK SPECIAL SCHOOL,107911
North East Lincolnshire Council,http://statistics.data.gov.uk/id/local-authority/00FC,People And Communities,Vulnerable Young People,School Access Governor Student,Contract Hire-Operating Leases,Vehicles - Contract Hire,JC101,16/04/2012,105628,Redacted Commercially Sensitive,REVENUE,STAGECOACH SERVICES,101404
North East Lincolnshire Council,http://statistics.data.gov.uk/id/local-authority/00FC,People And Communities,Vulnerable Young People,Strategic Management,Direct Employee Expenses,Pay,EA101,27/04/2012,108776,"6,045.60",REVENUE,ESCRICK EDUCATION ASSOCIATES,102662
North East Lincolnshire Council,http://statistics.data.gov.uk/id/local-authority/00FC,People And Communities,Vulnerable Young People,Child Care Performance & Ict,Communications And Computing,Computer S/Ware - Maintenance,LF102,11/04/2012,105264,"6,600.00",REVENUE,VISIONWARE LTD,103028
North East Lincolnshire Council,http://statistics.data.gov.uk/id/local-authority/00FC,People And Communities,Vulnerable Young People,School Access Governor Student,Contract Hire-Operating Leases,Vehicles - Contract Hire,JC101,16/04/2012,105642,Redacted Commercially Sensitive,REVENUE,STAGECOACH SERVICES,101404
North East Lincolnshire Council,http://statistics.data.gov.uk/id/local-authority/00FC,People And Communities,Vulnerable Young People,Commissioning & Performance,Catering,Provisions,LB101,25/04/2012,108536,"8,418.56",REVENUE,DAIRY CREST LTD,101743
North East Lincolnshire Council,http://statistics.data.gov.uk/id/local-authority/00FC,People And Communities,Vulnerable Young People,Sen/Inclusion,Consultancy,Consultancy - Curriculum,PL102,05/04/2012,104148,"8,750.00",REVENUE,CAROLE BEYNON,100750
North East Lincolnshire Council,http://statistics.data.gov.uk/id/local-authority/00FC,People And Communities,Vulnerable Young People,Children'S Workforce Developme,Indirect Employee Expenses,Staff Training,EB122,30/04/2012,109093,"9,000.00",REVENUE,BIGTALK EDUCATION,109933
North East Lincolnshire Council,http://statistics.data.gov.uk/id/local-authority/00FC,People And Communities,Vulnerable Young People,Standards & Effectiveness,Communications And Computing,Computer H/Ware - Purchases,LF105,19/04/2012,107271,"11,478.63",REVENUE,VIRGIN MEDIA,107612
North East Lincolnshire Council,http://statistics.data.gov.uk/id/local-authority/00FC,People And Communities,Vulnerable Young People,Placement & Support,Rents,Rent,GC101,25/04/2012,108450,"13,000.00",REVENUE,CAPACITY BUILDINGS LTD,109881
North East Lincolnshire Council,http://statistics.data.gov.uk/id/local-authority/00FC,People And Communities,Vulnerable Young People,Strategic Management,Direct Employee Expenses,Pay,EA101,23/04/2012,107754,"13,082.00",REVENUE,JD AND KM BLACKMORE PARTNERS,102197
North East Lincolnshire Council,http://statistics.data.gov.uk/id/local-authority/00FC,People And Communities,Vulnerable Young People,Commissioning & Performance,Catering,Purchase School Meals,LB103,24/04/2012,108132,Redacted Commercially Sensitive,REVENUE,CYGNET CATERING,108880
North East Lincolnshire Council,http://statistics.data.gov.uk/id/local-authority/00FC,People And Communities,Vulnerable Young People,Child Care Performance & Ict,Communications And Computing,Computer S/Ware - Licences,LF103,11/04/2012,105128,"48,840.90",REVENUE,CAPITA BUSINESS SERVICES LTD,102314
North East Lincolnshire Council,http://statistics.data.gov.uk/id/local-authority/00FC,People And Communities,Vulnerable Young People,Additional & Enhanced Needs,Other Local Authorities,Third Pp - Other Local Auth,PC101,24/04/2012,108171,"96,899.12",REVENUE,KISIMUL SCHOOL,100406
North East Lincolnshire Council,http://statistics.data.gov.uk/id/local-authority/00FC,People And Communities,Vulnerable Young People,Child Care Performance & Ict,Communications And Computing,Computer S/Ware - Maintenance,LF102,05/04/2012,104869,"146,154.00",REVENUE,CAPITA BUSINESS SERVICES LTD,102314
North East Lincolnshire Council,http://statistics.data.gov.uk/id/local-authority/00FC,People And Communities,Vulnerable Young People,Commissioning & Performance,Catering,Purchase School Meals,LB103,25/04/2012,108550,Redacted Commercially Sensitive,REVENUE,CYGNET CATERING,108880
North East Lincolnshire Council,http://statistics.data.gov.uk/id/local-authority/00FC,People And Communities,Vulnerable Young People,Placement & Support,Private Contractors,Third Party Prov - Private,PH101,19/04/2012,107267,"8,758.66",REVENUE,NORTHAMPTONSHIRE COUNTY COUNCIL,109836
North East Lincolnshire Council,http://statistics.data.gov.uk/id/local-authority/00FC,People And Communities,Vulnerable Young People,Through Care & Disability,Private Contractors,Third Party Prov - Private,PH101,05/04/2012,104714,"1,000.00",REVENUE,PUFIN,109700
North East Lincolnshire Council,http://statistics.data.gov.uk/id/local-authority/00FC,People And Communities,Vulnerable Young People,Additional & Enhanced Needs,Private Contractors,Third Party Prov - Private,PH101,11/04/2012,105271,"3,069.00",REVENUE,REFLEXION CARE GROUP LIMITED,106975
North East Lincolnshire Council,http://statistics.data.gov.uk/id/local-authority/00FC,People And Communities,Vulnerable Young People,Additional & Enhanced Needs,Private Contractors,Third Party Prov - Private,PH101,11/04/2012,105271,"18,830.48",REVENUE,REFLEXION CARE GROUP LIMITED,106975
North East Lincolnshire Council,http://statistics.data.gov.uk/id/local-authority/00FC,People And Communities,Vulnerable Young People,Through Care & Disability,Private Contractors,Third Party Prov - Private,PH101,03/04/2012,73702,678.00,REVENUE,THE ROWAN ORGANISATION,105925
North East Lincolnshire Council,http://statistics.data.gov.uk/id/local-authority/00FC,People And Communities,Strat Dir People & Communities,Schools Non Asb,Catering,Provisions,LB101,20/04/2012,107475,-23.35,REVENUE,ANGLIA WOODS,100805
North East Lincolnshire Council,http://statistics.data.gov.uk/id/local-authority/00FC,People And Communities,Strat Dir People & Communities,Schools Non Asb,Catering,Provisions,LB101,20/04/2012,107473,-2.06,REVENUE,ANGLIA WOODS,100805
North East Lincolnshire Council,http://statistics.data.gov.uk/id/local-authority/00FC,People And Communities,Strat Dir People & Communities,Subscription And Insurance Sla,Miscellaneous Expenses,Licences,LL116,18/04/2012,106667,"1,824.00",REVENUE,MOTION PICTURE LICENSING COMPANY,101852
North East Lincolnshire Council,http://statistics.data.gov.uk/id/local-authority/00FC,People And Communities,Strat Dir People & Communities,Subscription And Insurance Sla,Miscellaneous Expenses,Licences,LL116,23/04/2012,107595,"2,561.73",REVENUE,THE EDUCATIONAL RECORDING AGENCY LIMITED,100901
North East Lincolnshire Council,http://statistics.data.gov.uk/id/local-authority/00FC,People And Communities,Strat Dir People & Communities,Subscription And Insurance Sla,Miscellaneous Expenses,Licences,LL116,19/04/2012,107208,"3,497.26",REVENUE,THE CENTRE FOR EDUCATION & FINANCE,100918
North East Lincolnshire Council,http://statistics.data.gov.uk/id/local-authority/00FC,People And Communities,Strat Dir People & Communities,Subscription And Insurance Sla,Miscellaneous Expenses,Licences,LL116,19/04/2012,107246,"3,766.42",REVENUE,THE CENTRE FOR EDUCATION & FINANCE,100918
North East Lincolnshire Council,http://statistics.data.gov.uk/id/local-authority/00FC,People And Communities,Strat Dir People & Communities,Subscription And Insurance Sla,Miscellaneous Expenses,Licences,LL116,23/04/2012,107673,"4,525.00",REVENUE,PVSL,109861
North East Lincolnshire Council,http://statistics.data.gov.uk/id/local-authority/00FC,Resources,Commission & Information Sys,Information Technology,Private Contractors,Third Party Prov - Private,PH101,05/04/2012,104640,"3,000.00",REVENUE,AR PRINTING LTD,100596
North East Lincolnshire Council,http://statistics.data.gov.uk/id/local-authority/00FC,Resources,Commission & Information Sys,Information Technology,Communications And Computing,Computer H/Ware - Purchases,LF105,05/04/2012,104531,"-13,670.14",REVENUE,VIRGIN MEDIA LTD,101831
North East Lincolnshire Council,http://statistics.data.gov.uk/id/local-authority/00FC,Resources,Commission & Information Sys,Information Technology,Print Stationery / Gen Off Exp,Photocopier - Running Costs,LD102,18/04/2012,106488,"-1,105.40",REVENUE,UNITED CARLTON OFFICE SYSTEMS LTD,101652
North East Lincolnshire Council,http://statistics.data.gov.uk/id/local-authority/00FC,Resources,Commission & Information Sys,Information Technology,Print Stationery / Gen Off Exp,Photocopier - Running Costs,LD102,18/04/2012,106501,-752.00,REVENUE,UNITED CARLTON OFFICE SYSTEMS LTD,101652
North East Lincolnshire Council,http://statistics.data.gov.uk/id/local-authority/00FC,Resources,Commission & Information Sys,Information Technology,Communications And Computing,Telephones,LF112,24/04/2012,108159,-365.00,REVENUE,VODAFONE LIMITED,101324
North East Lincolnshire Council,http://statistics.data.gov.uk/id/local-authority/00FC,Resources,Commission & Information Sys,Information Technology,Print Stationery / Gen Off Exp,Photocopier - Running Costs,LD102,18/04/2012,106500,-304.13,REVENUE,UNITED CARLTON OFFICE SYSTEMS LTD,101652
North East Lincolnshire Council,http://statistics.data.gov.uk/id/local-authority/00FC,Resources,Commission & Information Sys,Information Technology,Communications And Computing,Computer H/Ware - Purchases,LF105,24/04/2012,108157,-297.20,REVENUE,GREENWORLD ELECTRONICS LTD,109085
North East Lincolnshire Council,http://statistics.data.gov.uk/id/local-authority/00FC,Resources,Commission & Information Sys,Information Technology,Print Stationery / Gen Off Exp,Photocopier - Running Costs,LD102,19/04/2012,106989,-295.57,REVENUE,UNITED CARLTON OFFICE SYSTEMS LTD,101652
North East Lincolnshire Council,http://statistics.data.gov.uk/id/local-authority/00FC,Resources,Commission & Information Sys,Information Technology,Print Stationery / Gen Off Exp,Photocopier - Running Costs,LD102,18/04/2012,106502,-294.24,REVENUE,UNITED CARLTON OFFICE SYSTEMS LTD,101652
North East Lincolnshire Council,http://statistics.data.gov.uk/id/local-authority/00FC,Resources,Commission & Information Sys,Information Technology,Print Stationery / Gen Off Exp,Photocopier - Running Costs,LD102,18/04/2012,106499,-286.24,REVENUE,UNITED CARLTON OFFICE SYSTEMS LTD,101652
North East Lincolnshire Council,http://statistics.data.gov.uk/id/local-authority/00FC,Resources,Commission & Information Sys,Information Technology,Print Stationery / Gen Off Exp,Photocopier - Running Costs,LD102,18/04/2012,106497,-232.18,REVENUE,UNITED CARLTON OFFICE SYSTEMS LTD,101652
North East Lincolnshire Council,http://statistics.data.gov.uk/id/local-authority/00FC,Resources,Commission & Information Sys,Information Technology,Print Stationery / Gen Off Exp,Photocopier - Running Costs,LD102,18/04/2012,106489,-232.17,REVENUE,UNITED CARLTON OFFICE SYSTEMS LTD,101652
North East Lincolnshire Council,http://statistics.data.gov.uk/id/local-authority/00FC,Resources,Commission & Information Sys,Information Technology,Print Stationery / Gen Off Exp,Photocopier - Running Costs,LD102,18/04/2012,106496,-205.89,REVENUE,UNITED CARLTON OFFICE SYSTEMS LTD,101652
North East Lincolnshire Council,http://statistics.data.gov.uk/id/local-authority/00FC,Resources,Commission & Information Sys,Information Technology,Print Stationery / Gen Off Exp,Photocopier - Running Costs,LD102,18/04/2012,106487,-200.42,REVENUE,UNITED CARLTON OFFICE SYSTEMS LTD,101652
North East Lincolnshire Council,http://statistics.data.gov.uk/id/local-authority/00FC,Resources,Commission & Information Sys,Information Technology,Print Stationery / Gen Off Exp,Photocopier - Running Costs,LD102,18/04/2012,106490,-137.14,REVENUE,UNITED CARLTON OFFICE SYSTEMS LTD,101652
North East Lincolnshire Council,http://statistics.data.gov.uk/id/local-authority/00FC,Resources,Commission & Information Sys,Information Technology,Print Stationery / Gen Off Exp,Photocopier - Running Costs,LD102,18/04/2012,106498,-136.74,REVENUE,UNITED CARLTON OFFICE SYSTEMS LTD,101652
North East Lincolnshire Council,http://statistics.data.gov.uk/id/local-authority/00FC,Resources,Commission & Information Sys,Information Technology,Communications And Computing,Telephones,LF112,25/04/2012,108137,-31.89,REVENUE,VODAFONE LIMITED,101324
North East Lincolnshire Council,http://statistics.data.gov.uk/id/local-authority/00FC,Resources,Commission & Information Sys,Information Technology,Communications And Computing,Computer H/Ware - Purchases,LF105,24/04/2012,108158,-29.58,REVENUE,VIRGIN MEDIA,107612
North East Lincolnshire Council,http://statistics.data.gov.uk/id/local-authority/00FC,Resources,Commission & Information Sys,Head Commission & Info Systems,Indirect Employee Expenses,Recruitment Expenses,EB114,24/04/2012,108117,500.00,REVENUE,PUBLICSERVICE.CO.UK,107299
North East Lincolnshire Council,http://statistics.data.gov.uk/id/local-authority/00FC,Resources,Commission & Information Sys,Information Technology,Communications And Computing,Computer H/Ware - Purchases,LF105,25/04/2012,108548,540.00,REVENUE,VIRGIN MEDIA,107612
North East Lincolnshire Council,http://statistics.data.gov.uk/id/local-authority/00FC,Resources,Commission & Information Sys,Information Technology,Communications And Computing,Computer H/Ware - Maintenance,LF106,18/04/2012,106299,576.00,REVENUE,FULL CONTROL NETWORKS DISTRIBUTION,106157
North East Lincolnshire Council,http://statistics.data.gov.uk/id/local-authority/00FC,Resources,Commission & Information Sys,Information Technology,Communications And Computing,Computer H/Ware - Purchases,LF105,24/04/2012,108232,600.00,REVENUE,INSIGHT DIRECT (UK) LTD,101011
North East Lincolnshire Council,http://statistics.data.gov.uk/id/local-authority/00FC,Resources,Commission & Information Sys,Information Technology,Communications And Computing,Computer H/Ware - Purchases,LF105,25/04/2012,108329,628.50,REVENUE,GREENWORLD ELECTRONICS LTD,109085
North East Lincolnshire Council,http://statistics.data.gov.uk/id/local-authority/00FC,Resources,Commission & Information Sys,Information Technology,Communications And Computing,Telephones,LF112,25/04/2012,108548,644.53,REVENUE,VIRGIN MEDIA,107612
North East Lincolnshire Council,http://statistics.data.gov.uk/id/local-authority/00FC,Resources,Commission & Information Sys,Information Technology,Communications And Computing,Computer H/Ware - Purchases,LF105,24/04/2012,108223,670.14,REVENUE,INSIGHT DIRECT (UK) LTD,101011
North East Lincolnshire Council,http://statistics.data.gov.uk/id/local-authority/00FC,Resources,Commission & Information Sys,Information Technology,Communications And Computing,Computer S/Ware - Purchases,LF101,23/04/2012,107792,707.28,REVENUE,NORTHGATE INFORMATION SOLUTIONS UK LTD,101841
North East Lincolnshire Council,http://statistics.data.gov.uk/id/local-authority/00FC,Resources,Commission & Information Sys,Information Technology,Print Stationery / Gen Off Exp,Photocopier - Running Costs,LD102,18/04/2012,106674,752.00,REVENUE,UNITED CARLTON OFFICE SYSTEMS LTD,101652
North East Lincolnshire Council,http://statistics.data.gov.uk/id/local-authority/00FC,Resources,Commission & Information Sys,Information Technology,Equip / Furniture / Materials,Equipment - Purchase,LA101,30/04/2012,109060,752.97,REVENUE,HEWLETT-PACKARD LIMITED,102024
North East Lincolnshire Council,http://statistics.data.gov.uk/id/local-authority/00FC,Resources,Commission & Information Sys,Information Technology,Equip / Furniture / Materials,Equipment - Purchase,LA101,30/04/2012,109050,752.97,REVENUE,HEWLETT-PACKARD LIMITED,102024
North East Lincolnshire Council,http://statistics.data.gov.uk/id/local-authority/00FC,Resources,Commission & Information Sys,Information Technology,Equip / Furniture / Materials,Equipment - Maintenance,LA104,18/04/2012,106671,942.00,REVENUE,ASSURED FIRE & SECURITY,102014
North East Lincolnshire Council,http://statistics.data.gov.uk/id/local-authority/00FC,Resources,Commission & Information Sys,Information Technology,Communications And Computing,Computer H/Ware - Purchases,LF105,24/04/2012,108233,946.60,REVENUE,INSIGHT DIRECT (UK) LTD,101011
North East Lincolnshire Council,http://statistics.data.gov.uk/id/local-authority/00FC,Resources,Commission & Information Sys,Information Technology,Communications And Computing,Computer S/Ware - Maintenance,LF102,24/04/2012,106705,"1,010.00",REVENUE,CAPITA BUSINESS SERVICES LTD,100992
North East Lincolnshire Council,http://statistics.data.gov.uk/id/local-authority/00FC,Resources,Commission & Information Sys,Information Technology,Print Stationery / Gen Off Exp,Photocopier - Running Costs,LD102,18/04/2012,106664,"1,105.40",REVENUE,UNITED CARLTON OFFICE SYSTEMS LTD,101652
North East Lincolnshire Council,http://statistics.data.gov.uk/id/local-authority/00FC,Resources,Commission & Information Sys,Information Technology,Communications And Computing,Computer H/Ware - Purchases,LF105,25/04/2012,108548,"1,131.00",REVENUE,VIRGIN MEDIA,107612
North East Lincolnshire Council,http://statistics.data.gov.uk/id/local-authority/00FC,Resources,Commission & Information Sys,Information Technology,Direct Employee Expenses,Agency Staff,EA105,18/04/2012,106354,"1,175.52",REVENUE,BADENOCH & CLARK,101427
North East Lincolnshire Council,http://statistics.data.gov.uk/id/local-authority/00FC,Resources,Commission & Information Sys,Information Technology,Direct Employee Expenses,Agency Staff,EA105,17/04/2012,106355,"1,190.40",REVENUE,BADENOCH & CLARK,101427
North East Lincolnshire Council,http://statistics.data.gov.uk/id/local-authority/00FC,Resources,Commission & Information Sys,Information Technology,Direct Employee Expenses,Agency Staff,EA105,20/04/2012,107437,"1,190.40",REVENUE,BADENOCH & CLARK,101427
North East Lincolnshire Council,http://statistics.data.gov.uk/id/local-authority/00FC,Resources,Commission & Information Sys,Corp And Constitutional Govern,Direct Employee Expenses,Agency Staff,EA105,17/04/2012,106247,"1,232.16",REVENUE,MATRIX SCM LTD,108117
North East Lincolnshire Council,http://statistics.data.gov.uk/id/local-authority/00FC,Resources,Commission & Information Sys,Information Technology,Equip / Furniture / Materials,Equipment - Purchase,LA101,30/04/2012,109048,"1,302.00",REVENUE,VIGLEN LIMITED,100883
North East Lincolnshire Council,http://statistics.data.gov.uk/id/local-authority/00FC,Resources,Commission & Information Sys,Information Technology,Communications And Computing,Computer H/Ware - Maintenance,LF106,20/04/2012,106763,"1,359.02",REVENUE,IMERJA LTD,102238
North East Lincolnshire Council,http://statistics.data.gov.uk/id/local-authority/00FC,Resources,Commission & Information Sys,Information Technology,Communications And Computing,Computer H/Ware - Purchases,LF105,24/04/2012,108243,"1,364.85",REVENUE,VIRGIN MEDIA LTD,101831
North East Lincolnshire Council,http://statistics.data.gov.uk/id/local-authority/00FC,Resources,Commission & Information Sys,Information Technology,Print Stationery / Gen Off Exp,Photocopier - Running Costs,LD102,18/04/2012,106695,"1,471.49",REVENUE,UNITED CARLTON OFFICE SYSTEMS LTD,101652
North East Lincolnshire Council,http://statistics.data.gov.uk/id/local-authority/00FC,Resources,Commission & Information Sys,Information Technology,Communications And Computing,Computer H/Ware - Purchases,LF105,25/04/2012,108548,"1,560.00",REVENUE,VIRGIN MEDIA,107612
North East Lincolnshire Council,http://statistics.data.gov.uk/id/local-authority/00FC,Resources,Commission & Information Sys,Head Commission & Info Systems,Grants And Subscriptions,Subscriptions,LJ101,19/04/2012,107212,"1,599.35",REVENUE,PENNA BARKERS,102320
North East Lincolnshire Council,http://statistics.data.gov.uk/id/local-authority/00FC,Resources,Commission & Information Sys,Procurement,Direct Employee Expenses,Agency Staff,EA105,17/04/2012,106193,"2,027.44",REVENUE,MATRIX SCM LTD,108117
North East Lincolnshire Council,http://statistics.data.gov.uk/id/local-authority/00FC,Resources,Commission & Information Sys,Information Technology,Communications And Computing,Computer H/Ware - Purchases,LF105,18/04/2012,106303,"2,100.00",REVENUE,AGGREKO UK LTD,103557
North East Lincolnshire Council,http://statistics.data.gov.uk/id/local-authority/00FC,Resources,Commission & Information Sys,Information Technology,Equip / Furniture / Materials,Equipment - Purchase,LA101,30/04/2012,109058,"2,258.91",REVENUE,HEWLETT-PACKARD LIMITED,102024
North East Lincolnshire Council,http://statistics.data.gov.uk/id/local-authority/00FC,Resources,Commission & Information Sys,Procurement,Direct Employee Expenses,Agency Staff,EA105,17/04/2012,106243,"2,327.82",REVENUE,MATRIX SCM LTD,108117
North East Lincolnshire Council,http://statistics.data.gov.uk/id/local-authority/00FC,Resources,Commission & Information Sys,Information Technology,Communications And Computing,Computer H/Ware - Purchases,LF105,24/04/2012,108334,"2,500.00",REVENUE,LOGMEIN INC,106164
North East Lincolnshire Council,http://statistics.data.gov.uk/id/local-authority/00FC,Resources,Commission & Information Sys,Information Technology,Communications And Computing,Telephones,LF112,24/04/2012,108242,"2,720.26",REVENUE,VIRGIN MEDIA,107612
North East Lincolnshire Council,http://statistics.data.gov.uk/id/local-authority/00FC,Resources,Commission & Information Sys,Information Technology,Communications And Computing,Computer H/Ware - Purchases,LF105,24/04/2012,108222,"2,981.12",REVENUE,INSIGHT DIRECT (UK) LTD,101011
North East Lincolnshire Council,http://statistics.data.gov.uk/id/local-authority/00FC,Resources,Commission & Information Sys,Information Technology,Private Contractors,Third Party Prov - Private,PH101,02/04/2012,103786,"2,333.00",REVENUE,H CHARLESWORTH & CO LTD,106839
North East Lincolnshire Council,http://statistics.data.gov.uk/id/local-authority/00FC,Resources,Commission & Information Sys,Communication Unit,Equip / Furniture / Materials,Promotions,LA124,19/04/2012,107207,"3,372.00",REVENUE,ACCESS INTELLIGENCE MEDIA AND COMMUNICATIONS,109832
North East Lincolnshire Council,http://statistics.data.gov.uk/id/local-authority/00FC,Resources,Commission & Information Sys,Information Technology,Communications And Computing,Computer H/Ware - Purchases,LF105,30/04/2012,109056,"3,569.24",REVENUE,CABLE & WIRELESS,103661
North East Lincolnshire Council,http://statistics.data.gov.uk/id/local-authority/00FC,Resources,Commission & Information Sys,Information Technology,Communications And Computing,Computer H/Ware - Purchases,LF105,11/04/2012,104851,"3,673.63",REVENUE,PHOENIX SOFTWARE LTD,100753
North East Lincolnshire Council,http://statistics.data.gov.uk/id/local-authority/00FC,Resources,Commission & Information Sys,Head Commission & Info Systems,Grants And Subscriptions,Subscriptions,LJ101,19/04/2012,107212,"3,884.05",REVENUE,PENNA BARKERS,102320
North East Lincolnshire Council,http://statistics.data.gov.uk/id/local-authority/00FC,Resources,Commission & Information Sys,Information Technology,Communications And Computing,Computer H/Ware - Purchases,LF105,25/04/2012,108324,"3,885.92",REVENUE,INSIGHT DIRECT (UK) LTD,101011
North East Lincolnshire Council,http://statistics.data.gov.uk/id/local-authority/00FC,Resources,Commission & Information Sys,Information Technology,Communications And Computing,Computer H/Ware - Purchases,LF105,24/04/2012,108231,"4,258.64",REVENUE,INSIGHT DIRECT (UK) LTD,101011
North East Lincolnshire Council,http://statistics.data.gov.uk/id/local-authority/00FC,Resources,Commission & Information Sys,Information Technology,Direct Employee Expenses,Agency Staff,EA105,27/04/2012,108921,"4,272.32",REVENUE,BADENOCH & CLARK,101427
North East Lincolnshire Council,http://statistics.data.gov.uk/id/local-authority/00FC,Resources,Commission & Information Sys,Information Technology,Direct Employee Expenses,Agency Staff,EA105,27/04/2012,108773,"4,272.32",REVENUE,BADENOCH & CLARK,101427
North East Lincolnshire Council,http://statistics.data.gov.uk/id/local-authority/00FC,Resources,Commission & Information Sys,Information Technology,Communications And Computing,Computer H/Ware - Maintenance,LF106,20/04/2012,106300,"4,350.00",REVENUE,NTA MONITOR LTD,103458
North East Lincolnshire Council,http://statistics.data.gov.uk/id/local-authority/00FC,Resources,Commission & Information Sys,Information Technology,Communications And Computing,Computer H/Ware - Maintenance,LF106,18/04/2012,106298,"4,500.00",REVENUE,CANVAS SYSTEMS,103440
North East Lincolnshire Council,http://statistics.data.gov.uk/id/local-authority/00FC,Resources,Commission & Information Sys,Information Technology,Communications And Computing,Telephones,LF112,25/04/2012,108548,"4,641.30",REVENUE,VIRGIN MEDIA,107612
North East Lincolnshire Council,http://statistics.data.gov.uk/id/local-authority/00FC,Resources,Commission & Information Sys,Information Technology,Equip / Furniture / Materials,Equipment - Purchase,LA101,30/04/2012,109048,"6,090.00",REVENUE,VIGLEN LIMITED,100883
North East Lincolnshire Council,http://statistics.data.gov.uk/id/local-authority/00FC,Resources,Commission & Information Sys,Information Technology,Print Stationery / Gen Off Exp,Photocopier - Running Costs,LD102,02/04/2012,103735,"6,275.22",REVENUE,XEROX (UK) LIMITED,100953
North East Lincolnshire Council,http://statistics.data.gov.uk/id/local-authority/00FC,Resources,Commission & Information Sys,Information Technology,Communications And Computing,Computer S/Ware - Purchases,LF101,23/04/2012,107791,"7,033.11",REVENUE,NORTHGATE INFORMATION SOLUTIONS UK LTD,101841
North East Lincolnshire Council,http://statistics.data.gov.uk/id/local-authority/00FC,Resources,Commission & Information Sys,Procurement,Communications And Computing,Computer S/Ware - Maintenance,LF102,17/04/2012,106176,Redacted Commercially Sensitive,REVENUE,EXPERIAN LIMITED,100909
North East Lincolnshire Council,http://statistics.data.gov.uk/id/local-authority/00FC,Resources,Commission & Information Sys,Information Technology,Communications And Computing,Telephones,LF112,25/04/2012,108137,"11,937.37",REVENUE,VODAFONE LIMITED,101324
North East Lincolnshire Council,http://statistics.data.gov.uk/id/local-authority/00FC,Resources,Commission & Information Sys,Information Technology,Communications And Computing,Computer S/Ware - Purchases,LF101,24/04/2012,108124,"14,264.55",REVENUE,CAPITA BUSINESS SERVICES LTD,102314
North East Lincolnshire Council,http://statistics.data.gov.uk/id/local-authority/00FC,Resources,Commission & Information Sys,Head Commission & Info Systems,Miscellaneous Expenses,Legal Fees - Courts Costs,LL104,02/04/2012,103860,"17,215.75",REVENUE,LEONIE COWEN ASSOCIATES SOLICITORS,109641
North East Lincolnshire Council,http://statistics.data.gov.uk/id/local-authority/00FC,Resources,Commission & Information Sys,Information Technology,Communications And Computing,Computer H/Ware - Purchases,LF105,11/04/2012,104852,"34,750.00",REVENUE,GLOBAL SECURE SYSTEMS,109713
North East Lincolnshire Council,http://statistics.data.gov.uk/id/local-authority/00FC,Resources,Commission & Information Sys,Information Technology,Communications And Computing,Computer S/Ware - Purchases,LF101,19/04/2012,107272,"41,396.44",REVENUE,CEDAR OPEN ACCOUNTS,101614
North East Lincolnshire Council,http://statistics.data.gov.uk/id/local-authority/00FC,Resources,Commission & Information Sys,Information Technology,Communications And Computing,Computer S/Ware - Maintenance,LF102,17/04/2012,106024,"46,356.04",REVENUE,ORACLE CORPORATION UK LTD,100696
North East Lincolnshire Council,http://statistics.data.gov.uk/id/local-authority/00FC,Resources,Commission & Information Sys,Information Technology,Communications And Computing,Computer S/Ware - Purchases,LF101,23/04/2012,107789,"120,137.65",REVENUE,NORTHGATE INFORMATION SOLUTIONS UK LTD,101841
North East Lincolnshire Council,http://statistics.data.gov.uk/id/local-authority/00FC,Resources,Commission & Information Sys,Information Technology,Private Contractors,Third Party Prov - Private,PH101,05/04/2012,104639,520.00,REVENUE,SYSTEMATIC DESIGN & PRINT LTD,101147
North East Lincolnshire Council,http://statistics.data.gov.uk/id/local-authority/00FC,Resources,Finance & Assets,Contract Fee Asset Management,Private Contractors,Contract Payments,PH105,27/04/2012,109025,Redacted Commercially Sensitive,REVENUE,BALFOUR BEATTY,102595
North East Lincolnshire Council,http://statistics.data.gov.uk/id/local-authority/00FC,Resources,Finance & Assets,Contract Fee Asset Management,Private Contractors,Contract Payments,PH105,27/04/2012,109025,Redacted Commercially Sensitive,REVENUE,BALFOUR BEATTY,102595
North East Lincolnshire Council,http://statistics.data.gov.uk/id/local-authority/00FC,Resources,Finance & Assets,Facilities Management,Private Contractors,Third Party Prov - Private,PH101,24/04/2012,108111,"1,790.54",REVENUE,CAD-CAPTURE DATA SERVICES LIMITED,102715
North East Lincolnshire Council,http://statistics.data.gov.uk/id/local-authority/00FC,Resources,Finance & Assets,Valuation & Consultancy,Rates,Rates,GD101,27/04/2012,109017,-198.32,REVENUE,NORTH EAST LINCOLNSHIRE SCHOOL,102882
North East Lincolnshire Council,http://statistics.data.gov.uk/id/local-authority/00FC,Resources,Finance & Assets,Valuation & Consultancy,Energy Costs,Electricity,GB102,25/04/2012,108468,500.70,REVENUE,BRITISH GAS TRADING LTD,101507
North East Lincolnshire Council,http://statistics.data.gov.uk/id/local-authority/00FC,Resources,Finance & Assets,Valuation & Consultancy,Cleaning And Domestic Supplies,Refuse Collection,GH104,24/04/2012,108090,519.96,REVENUE,VEOLIA ES CLEANAWAY (UK) LTD,101783
North East Lincolnshire Council,http://statistics.data.gov.uk/id/local-authority/00FC,Resources,Finance & Assets,Facilities Management,Water Services,Water,GE101,18/04/2012,106642,520.63,REVENUE,ANGLIAN WATER,100508
North East Lincolnshire Council,http://statistics.data.gov.uk/id/local-authority/00FC,Resources,Finance & Assets,Income & Payments Service,Communications And Computing,Computer S/Ware - Maintenance,LF102,05/04/2012,104491,523.37,REVENUE,NORTHGATE INFORMATION SOLUTIONS UK LTD,101841
North East Lincolnshire Council,http://statistics.data.gov.uk/id/local-authority/00FC,Resources,Finance & Assets,Income & Payments Service,Communications And Computing,Computer S/Ware - Maintenance,LF102,05/04/2012,104492,530.67,REVENUE,NORTHGATE INFORMATION SOLUTIONS UK LTD,101841
North East Lincolnshire Council,http://statistics.data.gov.uk/id/local-authority/00FC,Resources,Finance & Assets,Facilities Management,Water Services,Water,GE101,18/04/2012,106640,532.23,REVENUE,ANGLIAN WATER,100508
North East Lincolnshire Council,http://statistics.data.gov.uk/id/local-authority/00FC,Resources,Finance & Assets,Facilities Management,Water Services,Water,GE101,18/04/2012,106641,561.55,REVENUE,ANGLIAN WATER,100508
North East Lincolnshire Council,http://statistics.data.gov.uk/id/local-authority/00FC,Resources,Finance & Assets,Income & Payments Service,Communications And Computing,Computer S/Ware - Maintenance,LF102,24/04/2012,108113,562.27,REVENUE,NORTHGATE INFORMATION SOLUTIONS UK LTD,101841
North East Lincolnshire Council,http://statistics.data.gov.uk/id/local-authority/00FC,Resources,Finance & Assets,Facilities Management,Water Services,Water,GE101,18/04/2012,106643,565.00,REVENUE,ANGLIAN WATER,100508
North East Lincolnshire Council,http://statistics.data.gov.uk/id/local-authority/00FC,Resources,Finance & Assets,Valuation & Consultancy,Energy Costs,Gas,GB101,24/04/2012,107933,570.80,REVENUE,BRITISH GAS TRADING LTD,101507
North East Lincolnshire Council,http://statistics.data.gov.uk/id/local-authority/00FC,Resources,Finance & Assets,Income & Payments Service,Print Stationery / Gen Off Exp,Printing And Stationery,LD103,05/04/2012,104276,599.75,REVENUE,PULSTAR DATAPRINT LTD,108027
North East Lincolnshire Council,http://statistics.data.gov.uk/id/local-authority/00FC,Resources,Finance & Assets,Income & Payments Service,Communications And Computing,Computer S/Ware - Maintenance,LF102,05/04/2012,104490,608.70,REVENUE,NORTHGATE INFORMATION SOLUTIONS UK LTD,101841
North East Lincolnshire Council,http://statistics.data.gov.uk/id/local-authority/00FC,Resources,Finance & Assets,Cfs Assets & Pc Programme,Miscellaneous Expenses,Legal Fees - General,LL103,05/04/2012,104507,Redacted Commercially Sensitive,REVENUE,BRIDGE MCFARLAND SOLICITORS,107070
North East Lincolnshire Council,http://statistics.data.gov.uk/id/local-authority/00FC,Resources,Finance & Assets,Income & Payments Service,Indirect Employee Expenses,Staff Training,EB122,18/04/2012,106612,695.00,REVENUE,AIREY CONSULTANCY SERVICES LTD,109816
North East Lincolnshire Council,http://statistics.data.gov.uk/id/local-authority/00FC,Resources,Finance & Assets,Facilities Management,Water Services,Water,GE101,18/04/2012,106644,704.09,REVENUE,ANGLIAN WATER,100508
North East Lincolnshire Council,http://statistics.data.gov.uk/id/local-authority/00FC,Resources,Finance & Assets,Valuation & Consultancy,Cleaning And Domestic Supplies,Refuse Collection,GH104,24/04/2012,108096,704.92,REVENUE,VEOLIA ES CLEANAWAY (UK) LTD,101783
North East Lincolnshire Council,http://statistics.data.gov.uk/id/local-authority/00FC,Resources,Finance & Assets,Facilities Management,Water Services,Water,GE101,19/04/2012,107161,739.14,REVENUE,ANGLIAN WATER,100508
North East Lincolnshire Council,http://statistics.data.gov.uk/id/local-authority/00FC,Resources,Finance & Assets,Facilities Management,Rents,Service Charge,GC102,27/04/2012,108765,780.00,REVENUE,WYKELAND PROPERTIES LTD,101729
North East Lincolnshire Council,http://statistics.data.gov.uk/id/local-authority/00FC,Resources,Finance & Assets,Facilities Management,Rents,Service Charge,GC102,27/04/2012,108775,780.00,REVENUE,WYKELAND PROPERTIES LTD,101729
North East Lincolnshire Council,http://statistics.data.gov.uk/id/local-authority/00FC,Resources,Finance & Assets,Accountancy,Direct Employee Expenses,Agency Staff,EA105,16/04/2012,105814,782.63,REVENUE,BADENOCH & CLARK,101427
North East Lincolnshire Council,http://statistics.data.gov.uk/id/local-authority/00FC,Resources,Finance & Assets,Income & Payments Service,Communications And Computing,Computer S/Ware - Maintenance,LF102,24/04/2012,108113,787.17,REVENUE,NORTHGATE INFORMATION SOLUTIONS UK LTD,101841
North East Lincolnshire Council,http://statistics.data.gov.uk/id/local-authority/00FC,Resources,Finance & Assets,Accountancy,Direct Employee Expenses,Agency Staff,EA105,16/04/2012,105813,798.28,REVENUE,BADENOCH & CLARK,101427
North East Lincolnshire Council,http://statistics.data.gov.uk/id/local-authority/00FC,Resources,Finance & Assets,Facilities Management,Rents,Rent,GC101,25/04/2012,108483,812.50,REVENUE,MARCUS KING & CO,101446
North East Lincolnshire Council,http://statistics.data.gov.uk/id/local-authority/00FC,Resources,Finance & Assets,Income & Payments Service,Communications And Computing,Computer S/Ware - Maintenance,LF102,05/04/2012,104491,872.28,REVENUE,NORTHGATE INFORMATION SOLUTIONS UK LTD,101841
North East Lincolnshire Council,http://statistics.data.gov.uk/id/local-authority/00FC,Resources,Finance & Assets,Accountancy,Direct Employee Expenses,Agency Staff,EA105,16/04/2012,105815,886.98,REVENUE,BADENOCH & CLARK,101427
North East Lincolnshire Council,http://statistics.data.gov.uk/id/local-authority/00FC,Resources,Finance & Assets,Income & Payments Service,Communications And Computing,Computer S/Ware - Maintenance,LF102,05/04/2012,104490,913.04,REVENUE,NORTHGATE INFORMATION SOLUTIONS UK LTD,101841
North East Lincolnshire Council,http://statistics.data.gov.uk/id/local-authority/00FC,Resources,Finance & Assets,Facilities Management,Rents,Rent,GC101,27/04/2012,108936,950.00,REVENUE,Redacted Personal Information,Redacted Personal Information
North East Lincolnshire Council,http://statistics.data.gov.uk/id/local-authority/00FC,Resources,Finance & Assets,Income & Payments Service,Print Stationery / Gen Off Exp,Printing And Stationery,LD103,27/04/2012,109030,"1,004.81",REVENUE,PITNEY BOWES LIMITED,101236
North East Lincolnshire Council,http://statistics.data.gov.uk/id/local-authority/00FC,Resources,Finance & Assets,Income & Payments Service,Communications And Computing,Postage,LF111,24/04/2012,107910,"1,017.58",REVENUE,FINANCIAL DATA MANAGEMENT LTD,101784
North East Lincolnshire Council,http://statistics.data.gov.uk/id/local-authority/00FC,Resources,Finance & Assets,Income & Payments Service,Communications And Computing,Postage,LF111,24/04/2012,107914,"1,021.63",REVENUE,FINANCIAL DATA MANAGEMENT LTD,101784
North East Lincolnshire Council,http://statistics.data.gov.uk/id/local-authority/00FC,Resources,Finance & Assets,Facilities Management,Cleaning And Domestic Supplies,Cleaning - Services,GH102,23/04/2012,107846,"1,058.00",REVENUE,FUTURE CARPET CLEANING SERVICES LTD,109864
North East Lincolnshire Council,http://statistics.data.gov.uk/id/local-authority/00FC,Resources,Finance & Assets,Income & Payments Service,Communications And Computing,Postage,LF111,02/04/2012,103901,"1,121.94",REVENUE,FINANCIAL DATA MANAGEMENT LTD,101784
North East Lincolnshire Council,http://statistics.data.gov.uk/id/local-authority/00FC,Resources,Finance & Assets,Income & Payments Service,Communications And Computing,Computer S/Ware - Maintenance,LF102,05/04/2012,104491,"1,221.19",REVENUE,NORTHGATE INFORMATION SOLUTIONS UK LTD,101841
North East Lincolnshire Council,http://statistics.data.gov.uk/id/local-authority/00FC,Resources,Finance & Assets,Accountancy,Direct Employee Expenses,Agency Staff,EA105,16/04/2012,105819,"1,248.00",REVENUE,BADENOCH & CLARK,101427
North East Lincolnshire Council,http://statistics.data.gov.uk/id/local-authority/00FC,Resources,Finance & Assets,Income & Payments Service,Communications And Computing,Computer S/Ware - Maintenance,LF102,11/04/2012,104682,"1,250.00",REVENUE,NORTHGATE INFORMATION SOLUTIONS UK LTD,101841
North East Lincolnshire Council,http://statistics.data.gov.uk/id/local-authority/00FC,Resources,Finance & Assets,Income & Payments Service,Communications And Computing,Computer S/Ware - Maintenance,LF102,05/04/2012,104492,"1,288.78",REVENUE,NORTHGATE INFORMATION SOLUTIONS UK LTD,101841
North East Lincolnshire Council,http://statistics.data.gov.uk/id/local-authority/00FC,Resources,Finance & Assets,Accountancy,Direct Employee Expenses,Agency Staff,EA105,16/04/2012,105816,"1,312.00",REVENUE,BADENOCH & CLARK,101427
North East Lincolnshire Council,http://statistics.data.gov.uk/id/local-authority/00FC,Resources,Finance & Assets,Accountancy,Direct Employee Expenses,Agency Staff,EA105,16/04/2012,105818,"1,312.00",REVENUE,BADENOCH & CLARK,101427
North East Lincolnshire Council,http://statistics.data.gov.uk/id/local-authority/00FC,Resources,Finance & Assets,Facilities Management,Energy Costs,Gas,GB101,19/04/2012,107156,"1,332.36",REVENUE,E-ON (GAS),101983
North East Lincolnshire Council,http://statistics.data.gov.uk/id/local-authority/00FC,Resources,Finance & Assets,Valuation & Consultancy,Rates,Rates,GD101,20/04/2012,107481,"1,409.10",REVENUE,NORTH EAST LINCOLNSHIRE COUNCIL,100894
North East Lincolnshire Council,http://statistics.data.gov.uk/id/local-authority/00FC,Resources,Finance & Assets,Facilities Management,Energy Costs,Heating Fuel,GB103,19/04/2012,107162,"1,437.40",REVENUE,WATSON PETROLEUM LTD,101348
North East Lincolnshire Council,http://statistics.data.gov.uk/id/local-authority/00FC,Resources,Finance & Assets,Valuation & Consultancy,Water Services,Water,GE101,19/04/2012,107158,"1,464.30",REVENUE,ASSOCIATED BRITISH PORTS,100834
North East Lincolnshire Council,http://statistics.data.gov.uk/id/local-authority/00FC,Resources,Finance & Assets,Valuation & Consultancy,Rents,Rent,GC101,27/04/2012,108777,"1,468.75",REVENUE,ASSOCIATED BRITISH PORTS,100834
North East Lincolnshire Council,http://statistics.data.gov.uk/id/local-authority/00FC,Resources,Finance & Assets,Income & Payments Service,Communications And Computing,Computer S/Ware - Maintenance,LF102,13/04/2012,105420,"1,590.52",REVENUE,NORTHGATE INFORMATION SOLUTIONS UK LTD,101841
North East Lincolnshire Council,http://statistics.data.gov.uk/id/local-authority/00FC,Resources,Finance & Assets,Facilities Management,Water Services,Water,GE101,19/04/2012,107160,"1,785.35",REVENUE,ANGLIAN WATER,100508
North East Lincolnshire Council,http://statistics.data.gov.uk/id/local-authority/00FC,Resources,Finance & Assets,Accountancy,Communications And Computing,Computer S/Ware - Maintenance,LF102,24/04/2012,106728,"1,800.00",REVENUE,LOGOTECH SYSTEMS,102773
North East Lincolnshire Council,http://statistics.data.gov.uk/id/local-authority/00FC,Resources,Finance & Assets,Income & Payments Service,Communications And Computing,Computer S/Ware - Maintenance,LF102,05/04/2012,104490,"1,826.09",REVENUE,NORTHGATE INFORMATION SOLUTIONS UK LTD,101841
North East Lincolnshire Council,http://statistics.data.gov.uk/id/local-authority/00FC,Resources,Finance & Assets,Income & Payments Service,Communications And Computing,Computer S/Ware - Maintenance,LF102,05/04/2012,104684,"1,900.00",REVENUE,NORTHGATE INFORMATION SOLUTIONS UK LTD,101841
North East Lincolnshire Council,http://statistics.data.gov.uk/id/local-authority/00FC,Resources,Finance & Assets,Income & Payments Service,Communications And Computing,Computer S/Ware - Maintenance,LF102,24/04/2012,108113,"1,911.70",REVENUE,NORTHGATE INFORMATION SOLUTIONS UK LTD,101841
North East Lincolnshire Council,http://statistics.data.gov.uk/id/local-authority/00FC,Resources,Finance & Assets,Facilities Management,Water Services,Water,GE101,24/04/2012,107935,"2,294.80",REVENUE,ANGLIAN WATER,100508
North East Lincolnshire Council,http://statistics.data.gov.uk/id/local-authority/00FC,Resources,Finance & Assets,Income & Payments Service,Communications And Computing,Computer S/Ware - Maintenance,LF102,26/04/2012,108666,"2,400.00",REVENUE,ASH INFORMATION SYSTEMS LTD,100982
North East Lincolnshire Council,http://statistics.data.gov.uk/id/local-authority/00FC,Resources,Finance & Assets,Income & Payments Service,Grants And Subscriptions,Subscriptions,LJ101,05/04/2012,104685,"2,440.00",REVENUE,CIPFA BUSINESS LIMITED,102338
North East Lincolnshire Council,http://statistics.data.gov.uk/id/local-authority/00FC,Resources,Finance & Assets,Valuation & Consultancy,Rents,Rent,GC101,27/04/2012,108914,"2,562.50",REVENUE,ASSOCIATED BRITISH PORTS,100834
North East Lincolnshire Council,http://statistics.data.gov.uk/id/local-authority/00FC,Resources,Finance & Assets,Valuation & Consultancy,Rates,Rates,GD101,20/04/2012,107490,"2,669.36",REVENUE,NORTH EAST LINCOLNSHIRE COUNCIL,100894
North East Lincolnshire Council,http://statistics.data.gov.uk/id/local-authority/00FC,Resources,Finance & Assets,Valuation & Consultancy,Rates,Rates,GD101,20/04/2012,107483,"2,718.96",REVENUE,NORTH EAST LINCOLNSHIRE COUNCIL,100894
North East Lincolnshire Council,http://statistics.data.gov.uk/id/local-authority/00FC,Resources,Finance & Assets,Valuation & Consultancy,Rates,Rates,GD101,20/04/2012,107482,"2,718.96",REVENUE,NORTH EAST LINCOLNSHIRE COUNCIL,100894
North East Lincolnshire Council,http://statistics.data.gov.uk/id/local-authority/00FC,Resources,Finance & Assets,Valuation & Consultancy,Rates,Rates,GD101,20/04/2012,107484,"2,718.96",REVENUE,NORTH EAST LINCOLNSHIRE COUNCIL,100894
North East Lincolnshire Council,http://statistics.data.gov.uk/id/local-authority/00FC,Resources,Finance & Assets,Valuation & Consultancy,Rates,Rates,GD101,20/04/2012,107487,"2,718.96",REVENUE,NORTH EAST LINCOLNSHIRE COUNCIL,100894
North East Lincolnshire Council,http://statistics.data.gov.uk/id/local-authority/00FC,Resources,Finance & Assets,Valuation & Consultancy,Rates,Rates,GD101,20/04/2012,107488,"2,718.96",REVENUE,NORTH EAST LINCOLNSHIRE COUNCIL,100894
North East Lincolnshire Council,http://statistics.data.gov.uk/id/local-authority/00FC,Resources,Finance & Assets,Valuation & Consultancy,Rates,Rates,GD101,20/04/2012,107489,"2,718.96",REVENUE,NORTH EAST LINCOLNSHIRE COUNCIL,100894
North East Lincolnshire Council,http://statistics.data.gov.uk/id/local-authority/00FC,Resources,Finance & Assets,Valuation & Consultancy,Rates,Rates,GD101,20/04/2012,107510,"2,718.96",REVENUE,NORTH EAST LINCOLNSHIRE COUNCIL,100894
North East Lincolnshire Council,http://statistics.data.gov.uk/id/local-authority/00FC,Resources,Finance & Assets,Valuation & Consultancy,Rates,Rates,GD101,20/04/2012,107524,"2,718.96",REVENUE,NORTH EAST LINCOLNSHIRE COUNCIL,100894
North East Lincolnshire Council,http://statistics.data.gov.uk/id/local-authority/00FC,Resources,Finance & Assets,Valuation & Consultancy,Rates,Rates,GD101,20/04/2012,107485,"2,718.96",REVENUE,NORTH EAST LINCOLNSHIRE COUNCIL,100894
North East Lincolnshire Council,http://statistics.data.gov.uk/id/local-authority/00FC,Resources,Finance & Assets,Valuation & Consultancy,Rates,Rates,GD101,20/04/2012,107492,"2,718.96",REVENUE,NORTH EAST LINCOLNSHIRE COUNCIL,100894
North East Lincolnshire Council,http://statistics.data.gov.uk/id/local-authority/00FC,Resources,Finance & Assets,Valuation & Consultancy,Rates,Rates,GD101,20/04/2012,107477,"2,718.96",REVENUE,NORTH EAST LINCOLNSHIRE COUNCIL,100894
North East Lincolnshire Council,http://statistics.data.gov.uk/id/local-authority/00FC,Resources,Finance & Assets,Valuation & Consultancy,Rates,Rates,GD101,20/04/2012,107479,"2,718.96",REVENUE,NORTH EAST LINCOLNSHIRE COUNCIL,100894
North East Lincolnshire Council,http://statistics.data.gov.uk/id/local-authority/00FC,Resources,Finance & Assets,Valuation & Consultancy,Rates,Rates,GD101,23/04/2012,107525,"2,718.96",REVENUE,NORTH EAST LINCOLNSHIRE COUNCIL,100894
North East Lincolnshire Council,http://statistics.data.gov.uk/id/local-authority/00FC,Resources,Finance & Assets,Income & Payments Service,Communications And Computing,Computer S/Ware - Maintenance,LF102,26/04/2012,108665,"2,750.00",REVENUE,ASH INFORMATION SYSTEMS LTD,100982
North East Lincolnshire Council,http://statistics.data.gov.uk/id/local-authority/00FC,Resources,Finance & Assets,Income & Payments Service,Communications And Computing,Computer S/Ware - Maintenance,LF102,05/04/2012,104491,"2,965.76",REVENUE,NORTHGATE INFORMATION SOLUTIONS UK LTD,101841
North East Lincolnshire Council,http://statistics.data.gov.uk/id/local-authority/00FC,Resources,Finance & Assets,Income & Payments Service,Communications And Computing,Computer S/Ware - Maintenance,LF102,05/04/2012,104490,"3,043.47",REVENUE,NORTHGATE INFORMATION SOLUTIONS UK LTD,101841
North East Lincolnshire Council,http://statistics.data.gov.uk/id/local-authority/00FC,Resources,Finance & Assets,Facilities Management,Communications And Computing,Computer S/Ware - Purchases,LF101,27/04/2012,108937,"3,311.50",REVENUE,TEAM (EAA LTD),105082
North East Lincolnshire Council,http://statistics.data.gov.uk/id/local-authority/00FC,Resources,Finance & Assets,Income & Payments Service,Grants And Subscriptions,Subscriptions,LJ101,02/04/2012,103736,"3,700.00",REVENUE,TAMESIDE MBC,101207
North East Lincolnshire Council,http://statistics.data.gov.uk/id/local-authority/00FC,Resources,Finance & Assets,Income & Payments Service,Communications And Computing,Computer S/Ware - Maintenance,LF102,05/04/2012,104490,"4,260.87",REVENUE,NORTHGATE INFORMATION SOLUTIONS UK LTD,101841
North East Lincolnshire Council,http://statistics.data.gov.uk/id/local-authority/00FC,Resources,Finance & Assets,Facilities Management,Rates,Rates,GD101,27/04/2012,108910,"4,455.00",REVENUE,NORTH EAST LINCOLNSHIRE COUNCIL,100894
North East Lincolnshire Council,http://statistics.data.gov.uk/id/local-authority/00FC,Resources,Finance & Assets,Valuation & Consultancy,Rates,Rates,GD101,20/04/2012,107476,"5,038.08",REVENUE,NORTH EAST LINCOLNSHIRE COUNCIL,100894
North East Lincolnshire Council,http://statistics.data.gov.uk/id/local-authority/00FC,Resources,Finance & Assets,Facilities Management,Water Services,Water,GE101,24/04/2012,107934,"5,418.40",REVENUE,ANGLIAN WATER,100508
North East Lincolnshire Council,http://statistics.data.gov.uk/id/local-authority/00FC,Resources,Finance & Assets,Facilities Management,Rents,Rent,GC101,27/04/2012,108894,"5,625.00",REVENUE,WYKELAND PROPERTIES LTD,101729
North East Lincolnshire Council,http://statistics.data.gov.uk/id/local-authority/00FC,Resources,Finance & Assets,Facilities Management,Rents,Service Charge,GC102,25/04/2012,108481,"5,912.50",REVENUE,MARCUS KING & CO,101446
North East Lincolnshire Council,http://statistics.data.gov.uk/id/local-authority/00FC,Resources,Finance & Assets,Valuation & Consultancy,Energy Costs,Electricity,GB102,23/04/2012,107750,"6,188.17",REVENUE,BOURNE LEISURE LTD,102429
North East Lincolnshire Council,http://statistics.data.gov.uk/id/local-authority/00FC,Resources,Finance & Assets,Facilities Management,Rents,Rent,GC101,27/04/2012,108911,"7,412.50",REVENUE,CAPAX (C I ) LIMITED,101112
North East Lincolnshire Council,http://statistics.data.gov.uk/id/local-authority/00FC,Resources,Finance & Assets,Facilities Management,Rents,Rent,GC101,27/04/2012,108883,"9,250.00",REVENUE,JOHN SUTCLIFFE & SON (HOLDINGS) LTD,101339
North East Lincolnshire Council,http://statistics.data.gov.uk/id/local-authority/00FC,Resources,Finance & Assets,Income & Payments Service,Communications And Computing,Computer S/Ware - Maintenance,LF102,05/04/2012,104490,"10,347.83",REVENUE,NORTHGATE INFORMATION SOLUTIONS UK LTD,101841
North East Lincolnshire Council,http://statistics.data.gov.uk/id/local-authority/00FC,Resources,Finance & Assets,Facilities Management,Rents,Rent,GC101,25/04/2012,108481,"11,304.75",REVENUE,MARCUS KING & CO,101446
North East Lincolnshire Council,http://statistics.data.gov.uk/id/local-authority/00FC,Resources,Finance & Assets,Income & Payments Service,Communications And Computing,Computer S/Ware - Maintenance,LF102,17/04/2012,106324,"12,405.00",REVENUE,PUMA COMPUTER SYSTEMS LTD,100821
North East Lincolnshire Council,http://statistics.data.gov.uk/id/local-authority/00FC,Resources,Finance & Assets,Facilities Management,Rents,Rent,GC101,27/04/2012,108793,"13,000.00",REVENUE,BEETENSON & GIBBON SOLICITORS,100514
North East Lincolnshire Council,http://statistics.data.gov.uk/id/local-authority/00FC,Resources,Finance & Assets,Facilities Management,Rents,Rent,GC101,27/04/2012,108905,"13,125.00",REVENUE,BLACKTHORN HOLDINGS LTD,101914
North East Lincolnshire Council,http://statistics.data.gov.uk/id/local-authority/00FC,Resources,Finance & Assets,Income & Payments Service,Communications And Computing,Postage,LF111,02/04/2012,103901,"14,971.12",REVENUE,FINANCIAL DATA MANAGEMENT LTD,101784
North East Lincolnshire Council,http://statistics.data.gov.uk/id/local-authority/00FC,Resources,Finance & Assets,Facilities Management,Rents,Rent,GC101,27/04/2012,108912,"17,125.00",REVENUE,ROMANO INTERNATIONAL LTD,101824
North East Lincolnshire Council,http://statistics.data.gov.uk/id/local-authority/00FC,Resources,Finance & Assets,Facilities Management,Rents,Rent,GC101,27/04/2012,108756,"31,288.50",REVENUE,WYKELAND PROPERTIES LTD,101729
North East Lincolnshire Council,http://statistics.data.gov.uk/id/local-authority/00FC,Resources,Finance & Assets,Facilities Management,Rents,Rent,GC101,27/04/2012,108781,"36,270.00",REVENUE,WYKELAND PROPERTIES LTD,101729
North East Lincolnshire Council,http://statistics.data.gov.uk/id/local-authority/00FC,Resources,Governance & Business Support,Payroll,Private Contractors,Third Party Prov - Private,PH101,17/04/2012,106322,"3,249.99",REVENUE,EAST RIDING OF YORKSHIRE,100377
North East Lincolnshire Council,http://statistics.data.gov.uk/id/local-authority/00FC,Resources,Governance & Business Support,Customer Services,Private Contractors,External Security Services,PH103,25/04/2012,108451,Redacted Commercially Sensitive,REVENUE,G4S CASH SERVICES (UK) LIMITED,100952
North East Lincolnshire Council,http://statistics.data.gov.uk/id/local-authority/00FC,Resources,Governance & Business Support,Customer Services,Private Contractors,External Security Services,PH103,25/04/2012,108452,Redacted Commercially Sensitive,REVENUE,G4S CASH SERVICES (UK) LIMITED,100952
North East Lincolnshire Council,http://statistics.data.gov.uk/id/local-authority/00FC,Resources,Governance & Business Support,Customer Services,Private Contractors,External Security Services,PH103,25/04/2012,108453,Redacted Commercially Sensitive,REVENUE,G4S CASH SERVICES (UK) LIMITED,100952
North East Lincolnshire Council,http://statistics.data.gov.uk/id/local-authority/00FC,Resources,Governance & Business Support,Customer Services,Private Contractors,External Security Services,PH103,25/04/2012,108454,Redacted Commercially Sensitive,REVENUE,G4S CASH SERVICES (UK) LIMITED,100952
North East Lincolnshire Council,http://statistics.data.gov.uk/id/local-authority/00FC,Resources,Governance & Business Support,Customer Services,Private Contractors,External Security Services,PH103,25/04/2012,108455,Redacted Commercially Sensitive,REVENUE,G4S CASH SERVICES (UK) LIMITED,100952
North East Lincolnshire Council,http://statistics.data.gov.uk/id/local-authority/00FC,Resources,Governance & Business Support,Customer Services,Private Contractors,External Security Services,PH103,25/04/2012,108456,Redacted Commercially Sensitive,REVENUE,G4S CASH SERVICES (UK) LIMITED,100952
North East Lincolnshire Council,http://statistics.data.gov.uk/id/local-authority/00FC,Resources,Governance & Business Support,Legal Services,Car Allowances,Travel - Employees,JF101,05/04/2012,104539,-99.42,REVENUE,NYS CORPORATE,102444
North East Lincolnshire Council,http://statistics.data.gov.uk/id/local-authority/00FC,Resources,Governance & Business Support,Democratic Services,Print Stationery / Gen Off Exp,Printing And Stationery,LD103,11/04/2012,105255,-50.00,REVENUE,SHAW & SONS LTD,100561
North East Lincolnshire Council,http://statistics.data.gov.uk/id/local-authority/00FC,Resources,Governance & Business Support,Legal Services,Indirect Employee Expenses,Staff Training,EB122,23/04/2012,107865,-10.00,REVENUE,ILEX,106649
North East Lincolnshire Council,http://statistics.data.gov.uk/id/local-authority/00FC,Resources,Governance & Business Support,Coroners,Other Agencies,Post Mortems,PJ148,05/04/2012,104721,521.90,REVENUE,Redacted Personal Information,Redacted Personal Information
North East Lincolnshire Council,http://statistics.data.gov.uk/id/local-authority/00FC,Resources,Governance & Business Support,Learning And Development,Indirect Employee Expenses,Staff Training,EB122,13/04/2012,105632,550.00,REVENUE,IRENE BALLAM INITIATIVES,103822
North East Lincolnshire Council,http://statistics.data.gov.uk/id/local-authority/00FC,Resources,Governance & Business Support,Registrars,Miscellaneous Expenses,Other Expenses General,LL119,03/04/2012,104227,575.00,REVENUE,THE OFFICE OF THE IMMIGRATION SERVICES,109670
North East Lincolnshire Council,http://statistics.data.gov.uk/id/local-authority/00FC,Resources,Governance & Business Support,Legal Services,Miscellaneous Expenses,Legal Fees - General,LL103,05/04/2012,104339,Redacted Commercially Sensitive,REVENUE,WILKIN CHAPMAN SOLICITORS,100948
North East Lincolnshire Council,http://statistics.data.gov.uk/id/local-authority/00FC,Resources,Governance & Business Support,Customer Services,Clothes Uniforms And Laundry,Uniforms,LC102,24/04/2012,107908,584.00,REVENUE,CORPROTEX,102806
North East Lincolnshire Council,http://statistics.data.gov.uk/id/local-authority/00FC,Resources,Governance & Business Support,Learning And Development,Indirect Employee Expenses,Staff Training,EB122,05/04/2012,104301,623.00,REVENUE,IRENE BALLAM INITIATIVES,103822
North East Lincolnshire Council,http://statistics.data.gov.uk/id/local-authority/00FC,Resources,Governance & Business Support,Policy & Partnerships,Contributions To Provisions,Contributions - Third Sector,LK102,24/04/2012,108210,Redacted Commercially Sensitive,REVENUE,M B PICTURE FRAMING,104437
North East Lincolnshire Council,http://statistics.data.gov.uk/id/local-authority/00FC,Resources,Governance & Business Support,Town Hall,Miscellaneous Expenses,Civic Regalia And Events,LL117,20/04/2012,106764,675.71,REVENUE,KINGSWAY HOTEL,100818
North East Lincolnshire Council,http://statistics.data.gov.uk/id/local-authority/00FC,Resources,Governance & Business Support,Learning And Development,Indirect Employee Expenses,Staff Training,EB122,03/04/2012,104295,905.70,REVENUE,INTUITION DISCOVERY & DEVELOPMENT LTD,104760
North East Lincolnshire Council,http://statistics.data.gov.uk/id/local-authority/00FC,Resources,Governance & Business Support,Customer Services,Print Stationery / Gen Off Exp,Printing And Stationery,LD103,25/04/2012,108296,921.50,REVENUE,NORTHGATE INFORMATION SOLUTIONS UK LTD,101841
North East Lincolnshire Council,http://statistics.data.gov.uk/id/local-authority/00FC,Resources,Governance & Business Support,Democratic Services,Print Stationery / Gen Off Exp,Printing And Stationery,LD103,05/04/2012,104724,943.00,REVENUE,SHAW & SONS LTD,100561
North East Lincolnshire Council,http://statistics.data.gov.uk/id/local-authority/00FC,Resources,Governance & Business Support,Customer Services,Equip / Furniture / Materials,Furniture - Purchase,LA105,03/04/2012,103887,990.00,REVENUE,IMMINGHAM TOWN COUNCIL,101597
North East Lincolnshire Council,http://statistics.data.gov.uk/id/local-authority/00FC,Resources,Governance & Business Support,Town Hall,Miscellaneous Expenses,Other Expenses General,LL119,18/04/2012,106699,"1,000.00",REVENUE,BALFOUR BEATTY,102595
North East Lincolnshire Council,http://statistics.data.gov.uk/id/local-authority/00FC,Resources,Governance & Business Support,Human Resources,Indirect Employee Expenses,Staff Training,EB122,30/04/2012,109435,"1,000.00",REVENUE,VOLUNTARY ACTION NORTH EAST LINCOLNSHIRE,103631
North East Lincolnshire Council,http://statistics.data.gov.uk/id/local-authority/00FC,Resources,Governance & Business Support,Coroners,Other Agencies,Post Mortems,PJ148,20/04/2012,107528,"1,064.80",REVENUE,Redacted Personal Information,Redacted Personal Information
North East Lincolnshire Council,http://statistics.data.gov.uk/id/local-authority/00FC,Resources,Governance & Business Support,Legal Services,Direct Employee Expenses,Agency Staff,EA105,05/04/2012,104619,"1,194.88",REVENUE,BADENOCH & CLARK,101427
North East Lincolnshire Council,http://statistics.data.gov.uk/id/local-authority/00FC,Resources,Governance & Business Support,Legal Services,Direct Employee Expenses,Agency Staff,EA105,17/04/2012,106198,"1,194.88",REVENUE,BADENOCH & CLARK,101427
North East Lincolnshire Council,http://statistics.data.gov.uk/id/local-authority/00FC,Resources,Governance & Business Support,Coroners,Other Agencies,Post Mortems,PJ148,05/04/2012,104718,"1,214.50",REVENUE,NORTHERN LINCOLNSHIRE & GOOLE HOSPITALS,101242
North East Lincolnshire Council,http://statistics.data.gov.uk/id/local-authority/00FC,Resources,Governance & Business Support,Health And Safety,Print Stationery / Gen Off Exp,Printing And Stationery,LD103,18/04/2012,106774,"1,493.29",REVENUE,QUANTOR SCANNING LTD,109584
North East Lincolnshire Council,http://statistics.data.gov.uk/id/local-authority/00FC,Resources,Governance & Business Support,Legal Services,Direct Employee Expenses,Agency Staff,EA105,05/04/2012,104618,"1,633.50",REVENUE,BADENOCH & CLARK,101427
North East Lincolnshire Council,http://statistics.data.gov.uk/id/local-authority/00FC,Resources,Governance & Business Support,Legal Services,Direct Employee Expenses,Agency Staff,EA105,11/04/2012,104616,"1,655.28",REVENUE,BADENOCH & CLARK,101427
North East Lincolnshire Council,http://statistics.data.gov.uk/id/local-authority/00FC,Resources,Governance & Business Support,Democratic Services,Print Stationery / Gen Off Exp,Printing And Stationery,LD103,30/04/2012,109303,"1,667.90",REVENUE,PRINT IMAGE NETWORK LTD,103724
North East Lincolnshire Council,http://statistics.data.gov.uk/id/local-authority/00FC,Resources,Governance & Business Support,Policy & Partnerships,Contributions To Provisions,Contributions - Third Sector,LK102,18/04/2012,106745,Redacted Commercially Sensitive,REVENUE,GRIMSBY CENTRAL HALL TRUST,100882
North East Lincolnshire Council,http://statistics.data.gov.uk/id/local-authority/00FC,Resources,Governance & Business Support,Legal Services,Communications And Computing,Postage,LF111,05/04/2012,104213,"1,850.00",REVENUE,NEOPOST FINANCE LIMITED,101065
North East Lincolnshire Council,http://statistics.data.gov.uk/id/local-authority/00FC,Resources,Governance & Business Support,Coroners,Communications And Computing,Computer S/Ware - Licences,LF103,02/04/2012,103773,"1,899.00",REVENUE,MERIDIAN LAW LTD,102764
North East Lincolnshire Council,http://statistics.data.gov.uk/id/local-authority/00FC,Resources,Governance & Business Support,Policy & Partnerships,Contributions To Provisions,Contributions - Third Sector,LK102,05/04/2012,104514,Redacted Commercially Sensitive,REVENUE,WEST MARSH DEVELOPMENT TRUST,105846
North East Lincolnshire Council,http://statistics.data.gov.uk/id/local-authority/00FC,Resources,Governance & Business Support,Democratic Services,Print Stationery / Gen Off Exp,Printing And Stationery,LD103,30/04/2012,109304,"2,339.63",REVENUE,PRINT IMAGE NETWORK LTD,103724
North East Lincolnshire Council,http://statistics.data.gov.uk/id/local-authority/00FC,Resources,Governance & Business Support,Coroners,Other Agencies,Post Mortems,PJ148,02/04/2012,103767,"2,459.00",REVENUE,SHEFFIELD TEACHING HOSPITALS NHS TRUST,101211
North East Lincolnshire Council,http://statistics.data.gov.uk/id/local-authority/00FC,Resources,Governance & Business Support,Health And Safety,Equip / Furniture / Materials,Office Equipment - Purchase,LA110,03/04/2012,103816,"2,492.29",REVENUE,CIRRUS RESEARCH PLC,109638
North East Lincolnshire Council,http://statistics.data.gov.uk/id/local-authority/00FC,Resources,Governance & Business Support,Policy & Partnerships,Contributions To Provisions,Contributions - Third Sector,LK102,27/04/2012,109037,Redacted Commercially Sensitive,REVENUE,GRIMSBY CLEETHORPES & DISTRICT MIND,104458
North East Lincolnshire Council,http://statistics.data.gov.uk/id/local-authority/00FC,Resources,Governance & Business Support,Audit / Insurance And Risk,Grants And Subscriptions,Subscriptions,LJ101,23/04/2012,107755,"2,840.00",REVENUE,CIPFA BUSINESS LIMITED,102338
North East Lincolnshire Council,http://statistics.data.gov.uk/id/local-authority/00FC,Resources,Governance & Business Support,Legal Services,Consultancy,Consultancy,PL101,18/04/2012,106749,"3,827.55",REVENUE,DICKINSON DEES,101644
North East Lincolnshire Council,http://statistics.data.gov.uk/id/local-authority/00FC,Resources,Governance & Business Support,Policy & Partnerships,Contributions To Provisions,Contributions - Third Sector,LK102,05/04/2012,104515,Redacted Commercially Sensitive,REVENUE,BE YOUR BEST FOUNDATION,109000
North East Lincolnshire Council,http://statistics.data.gov.uk/id/local-authority/00FC,Resources,Governance & Business Support,Human Resources,Direct Employee Expenses,Agency Staff,EA105,19/04/2012,107248,"4,524.00",REVENUE,HR4U CONSULTING LTD,104411
North East Lincolnshire Council,http://statistics.data.gov.uk/id/local-authority/00FC,Resources,Governance & Business Support,Human Resources,Direct Employee Expenses,Agency Staff,EA105,02/04/2012,103761,"4,906.85",REVENUE,HR4U CONSULTING LTD,104411
North East Lincolnshire Council,http://statistics.data.gov.uk/id/local-authority/00FC,Resources,Governance & Business Support,Human Resources,Direct Employee Expenses,Agency Staff,EA105,02/04/2012,103753,"4,935.40",REVENUE,HR4U CONSULTING LTD,104411
North East Lincolnshire Council,http://statistics.data.gov.uk/id/local-authority/00FC,Resources,Governance & Business Support,Human Resources,Direct Employee Expenses,Agency Staff,EA105,23/04/2012,107797,"4,937.90",REVENUE,HR4U CONSULTING LTD,104411
